Workbook

Sheet Engagements Pilotes
B2: N° Dossard | C2: Nom | D2: Prénom | E2: Type et N° Licence | F2: Catégorie | G2: Ligue | H2: Club | I2: Date de naissance | J2: Sexe | K2: Validité Licence | M2: Moto. | N2: Cyl. | O2: Enga. | P2: Payé | Q2: Observations
F3: Expert
F4: Expert
F5: Expert
F6: Expert
F7: Expert
F8: Expert
F9: Expert
A10: De 1 à 15 Taille XL Et de 16 à 20 Taille L | B10: 1 | C10: POIROT | D10: Pierre | E10: NTR 220715 | F10: S1 | G10: Grand Est | H10: La Bressaude | I10: 2000-10-05 | J10: M | M10: GASGAS | N10: 300 | O10: Complet | P10: Non | Q10: OK
B11: 2 | C11: PACALIS | D11: Adam | E11: NTR 265793 | F11: S1 | G11: Grand Est | H11: MC Stanislas | I11: 1996-02-23 | J11: M | M11: MONTESA | N11: 300 | O11: Complet | P11: Oui
B12: 3 | C12: THIRIAT | D12: Lionel | E12: NTR 300894 | F12: S1 | G12: Grand Est | H12: AMVHV | I12: 2001-05-31 | J12: M | M12: TRRS | N12: 300 | O12: Complet | P12: Oui
B13: 4 | C13: FEIDT | D13: Mathieu | E13: NTR 059073 | F13: S1 | G13: Grand Est | H13: TC Ban de la Roche | I13: 1982-01-30 | J13: M | M13: SHERCO | N13: 250 | O13: Complet | P13: Oui
B14: 5 | C14: GREMILLET | D14: Alexandre | E14: NTR 056371 | F14: S1 | G14: Grand Est | H14: La Bressaude | I14: 1987-02-11 | J14: M | M14: GASGAS | N14: 300 | O14: Complet | P14: Non | Q14: OK
A15: De 21 à 35 Taille XL Et de 36 à 40 Taille L | B15: 21 | C15: PIQUET | D15: Steve | E15: NTR 312485 | F15: OPEN | G15: Bourg. - Fr Comté | H15: TC Comptois | I15: 1987-09-24 | J15: M | M15: BETA | N15: 300 | O15: Incomplet | P15: Non | Q15: Doit 30 euros
B16: 22 | C16: BADET | D16: Clément | E16: NTR 056023 | F16: OPEN | G16: Bourg. - Fr Comté | H16: TC Comptois | I16: 1981-06-12 | J16: M | M16: TRRS | N16: 280 | O16: Incomplet | P16: Non | Q16: Doit 30 euros
B17: 23 | C17: DROUHIN | D17: Neil | E17: NTR 286005 | F17: OPEN | G17: Bourg. - Fr Comté | H17: TC Comptois | I17: 2002-08-13 | J17: M | M17: TRRS | N17: 300 | O17: Incomplet | P17: Non | Q17: Doit 30 euros
B18: 24 | C18: LAUCHER | D18: Valentin | E18: NTR 200198 | F18: OPEN | G18: Grand Est | H18: MC Zone 68 | I18: 1996-02-11 | J18: M | M18: GASGAS | N18: 300 | O18: Complet | P18: Oui
B19: 25 | C19: POIROT | D19: Louis | E19: NTR 234487 | F19: OPEN | G19: Grand Est | H19: La Bressaude | I19: 2002-06-05 | J19: M | M19: GASGAS | N19: 280 | O19: Complet | P19: Oui | Q19: RENDRE 30 euros
B20: 26 | C20: NORMAND | D20: Sebastien | E20: LJA 055441-564 | F20: OPEN | H20: JOURNEE | I20: 1981-05-21 | J20: M | M20: BETA | N20: 300 | O20: Complet | P20: Oui | Q20: Controler licence
B21: 27 | C21: SABRIA LIORET | D21: Joel | E21: LJA 312865-564 | F21: OPEN | H21: JOURNEE | I21: 1975-07-02 | J21: M | M21: BETA | N21: 300 | O21: Complet | P21: Oui | Q21: ligue?
A22: De 41 à 65 Taille XL Et de 66 à 70 Taille L | B22: 41 | C22: JEUDY | D22: Adrien | E22: NCO 331167 | F22: S2 | G22: Grand Est | H22: RN 66 | I22: 2001-10-11 | J22: M | M22: GASGAS | N22: 300 | O22: Complet | P22: Oui
B23: 42 | C23: POIROT | D23: Kevin | E23: NTR 106709 | F23: S2 | G23: Grand Est | H23: La Bressaude | I23: 1987-07-14 | J23: M | M23: TRRS | N23: 300 | O23: Complet | P23: Non | Q23: OK
B24: 43 | C24: JACQUES | D24: Julien | E24: NTR 117187 | F24: S2 | G24: Grand Est | H24: MC Stanislas | I24: 1988-07-08 | J24: M | M24: GASGAS | N24: 280 | O24: Complet | P24: Oui
B25: 44 | C25: PACALIS | D25: Eric | E25: NTR 018542 | F25: S2 | G25: Grand Est | H25: MC Stanislas | I25: 1961-10-14 | J25: M | M25: VERTIGO | N25: 300 | O25: Complet | P25: Oui
B26: 45 | C26: TRIMOREAU | D26: Stephane | E26: NCO 250394 | F26: S2 | G26: Grand Est | H26: MC Stanislas | I26: 1972-05-21 | J26: M | M26: MONTESA | N26: 260 | O26: Complet | P26: Oui
B27: 46 | C27: POIROT | D27: Thierry | E27: LJA 019778-564 | F27: S2 | G27: Grand Est | H27: La Bressaude | I27: 1968-05-21 | J27: M | M27: GASGAS | N27: 300 | O27: Complet | P27: Non | Q27: OK
B28: 47 | C28: MAGEN-TERRASSE | D28: Corentin | E28: NTR 319153 | F28: S2 | G28: Grand Est | H28: AMVHV | I28: 1994-01-29 | J28: M | M28: BETA | N28: 300 | O28: Complet | P28: Oui
B29: 48 | C29: PERNIN | D29: Simon | E29: NTR 260188 | F29: S2 | G29: Bourg. - Fr Comté | H29: TC Comptois | I29: 1997-10-04 | J29: M | M29: GASGAS | N29: 300 | O29: Complet | P29: Oui
B30: 49 | C30: PIQUET | D30: David | E30: NTR 038065 | F30: S2 | G30: Bourg. - Fr Comté | H30: TC Comptois | I30: 1972-11-29 | J30: M | M30: BETA | N30: 300 | O30: Incomplet | P30: Non | Q30: Doit 30 euros
B31: 50 | C31: PIQUET | D31: Alois | E31: NTR 287931 | F31: S2 | G31: Bourg. - Fr Comté | H31: TC Comptois | I31: 2003-03-23 | J31: M | M31: BETA | N31: 125 | O31: Incomplet | P31: Non | Q31: Doit 30 euros
B32: 51 | C32: ANTOINE | D32: Stephane | E32: NTR 192504 | F32: S2 | G32: Grand Est | H32: AMVHV | I32: 1974-07-31 | J32: M | M32: GASGAS | N32: 300 | O32: Complet | P32: Oui
B33: 53 | C33: MOREL | D33: Alexandre | E33: LJA 108917-056 | F33: S2 | G33: Grand Est | H33: JOURNEE | I33: 1981-04-13 | J33: M | M33: BETA | N33: 270 | O33: Incomplet | P33: Non | Q33: Sous licence
B34: 54 | C34: PROST | D34: Ayrton | E34: NTR 205623 | F34: S2 | G34: Bourg. - Fr Comté | H34: TC Comptois | I34: 1996-02-09 | J34: M | M34: BETA | N34: 300 | O34: Complet | P34: Oui
A35: De 71 à 95 Taille XL Et de 96 à 100 Taille L | B35: 71 | C35: POIROT | D35: Kevin | E35: NTR 132374 | F35: S3+ | G35: Grand Est | H35: La Bressaude | I35: 1992-11-16 | J35: M | M35: GASGAS | N35: 300 | O35: Incomplet | P35: Non | Q35: licence
B36: 72 | C36: POIROT | D36: Hervé | E36: NCO 019772 | F36: S3+ | G36: Grand Est | H36: La Bressaude | I36: 1966-03-01 | J36: M | M36: MONTESA | N36: 260 | O36: Complet | P36: Non | Q36: OK
B37: 73 | C37: RIEGER | D37: Denis | E37: NTR 030508 | F37: S3+ | G37: Grand Est | H37: TC Ban de la Roche | I37: 1960-03-15 | J37: M | M37: SHERCO | N37: 250 | O37: Incomplet | P37: Non | Q37: Doit 30 euros
B38: 74 | C38: MARTIN | D38: Eric | E38: NTR 016638 | F38: S3+ | G38: Grand Est | H38: MC Stanislas | I38: 1967-12-28 | J38: M | M38: TRS | N38: 300 | O38: Incomplet | P38: Non | Q38: Doit 30 euros
B39: 75 | C39: BELLETTINI | D39: Igor | E39: NTR 288844 | F39: S3+ | G39: Bourg. - Fr Comté | H39: TC Comptois | I39: 2006-05-06 | J39: M | M39: BETA | N39: 125 | O39: Complet | P39: Oui
B40: 76 | C40: BECK | D40: Solène | E40: NTR 263869 | F40: S3+ | G40: Grand Est | H40: TC Ban de la Roche | I40: 2001-06-15 | J40: M | M40: SHERCO | N40: 250 | O40: Complet | P40: Oui
B41: 77 | C41: MELET | D41: Denis | E41: NTR 045027 | F41: S3+ | G41: Bourg. - Fr Comté | H41: MC du Risoux | I41: 1963-04-02 | J41: M | M41: MONTESA | N41: 300 | O41: Complet | P41: Oui | AM41: NCO 013920
B42: 78 | C42: CUNAT | D42: Jerome | E42: NTR 007609 | F42: S3+ | G42: Grand Est | H42: AMVHV | I42: 1975-04-07 | J42: M | M42: SHERCO | N42: 300 | O42: Incomplet | P42: Oui | Q42: Licence
B43: 79 | C43: SESSA | D43: Marc | E43: NTR 110020 | F43: S3+ | G43: Grand Est | H43: ETLB | I43: 1991-01-05 | J43: M | M43: MONTESA | N43: 260 | O43: Incomplet | P43: Oui | Q43: Type licence et 30euro
B44: 90 | C44: GERLIER | D44: Denis | E44: NTR 011402 | F44: S3+ MAT2 | G44: Bourg. - Fr Comté | H44: MC Bermont | I44: 1961-01-05 | J44: M | M44: HONDA | N44: 250 | O44: Incomplet | P44: Non | Q44: Doit 30 euros
A45: De 101 à 145 Taille XL Et de 146 à 150 Taille L | B45: 101 | C45: HOLFERT | D45: Dominique | E45: NTR 013020 | F45: S3 | G45: Grand Est | H45: TC Ban de la Roche | I45: 1957-10-24 | J45: M | M45: BETA | N45: 250 | O45: Incomplet | P45: Oui | Q45: Ligue?
B46: 102 | C46: PIERREL | D46: Christophe | E46: NCO 019494 | F46: S3 | G46: Grand Est | H46: La Bressaude | I46: 1962-04-01 | J46: M | M46: MONTESA | N46: 260 | O46: Complet | P46: Non | Q46: OK
B47: 103 | C47: POIROT | D47: Ethan | E47: NJ3C 318948 | F47: S3 | G47: Grand Est | H47: La Bressaude | I47: 2008-10-26 | J47: M | M47: BETA | N47: 125 | O47: Complet | P47: Non | Q47: Licence?
B48: 104 | C48: PETITJEAN | D48: Marc | E48: NTR 037880 | F48: S3 | G48: Grand Est | H48: AMVHV | I48: 1960-04-11 | J48: M | M48: GASGAS | N48: 280 | O48: Complet | P48: Oui
B49: 105 | C49: NADOT | D49: Marie | E49: NTR 329543 | F49: S3 | G49: Grand Est | H49: MC Stanislas | I49: 1989-03-01 | J49: F | M49: GASGAS | N49: 250 | O49: Complet | P49: Oui
B50: 106 | C50: POIROT | D50: Joel | E50: NTR 019775 | F50: S3 | G50: Grand Est | H50: La Bressaude | I50: 1962-05-25 | J50: M | M50: BETA | N50: 300 | O50: Complet | P50: Non | Q50: OK
B51: 107 | C51: ALLHEILY | D51: Jules | E51: NTR 342860 | F51: S3 | G51: Grand Est | H51: MC Zone 68 | I51: 2005-06-14 | J51: M | M51: SCORPA | N51: 250 | O51: Complet | P51: Oui
B52: 108 | C52: BUCHER | D52: Thomas | E52: NTR 005409 | F52: S3 | G52: Grand Est | H52: MC Zone 68 | I52: 1969-05-23 | J52: M | M52: SHERCO | N52: 300 | O52: Complet | P52: Oui
B53: 109 | C53: CHRISTOPH | D53: Claude | E53: NTR 267647 | F53: S3 | G53: Grand Est | H53: MC Stanislas | I53: 1965-08-13 | J53: M | M53: MONTESA | N53: 260 | O53: Complet | P53: Oui | Q53: Controler licence
B54: 110 | C54: THIEBAUT | D54: Mathéo | E54: NCO 340098 | F54: S3 | G54: Grand Est | H54: La Bressaude | I54: 2002-04-26 | J54: M | M54: BETA | N54: 250 | O54: Complet | P54: Oui | Q54: Rendre 30 euros
B55: 112 | C55: COLIN | D55: Jeremy | E55: NTR 081748 | F55: S3 | G55: Grand Est | H55: La Bressaude | I55: 1988-06-21 | J55: M | M55: HONDA TL | N55: 125 | O55: Complet | P55: Non | Q55: OK
B56: 113 | C56: EQUOY | D56: Maxence | E56: LJA 358767-564 | F56: S3 | H56: JOURNEE | I56: 2006-09-25 | J56: M | M56: BETA | N56: 125 | O56: Complet | P56: Oui | Q56: Controler licence
B57: 115 | C57: SCHMIDLIN | D57: Jean Luc | E57: NTR 38884 | F57: S3 | G57: Bourg. - Fr Comté | H57: TC Comptois | I57: 1964-05-25 | J57: M | M57: VERTIGO | N57: 250 | O57: Incomplet | P57: Non | Q57: Doit 30 euros
B58: 116 | C58: BALLAND | D58: Florian | E58: NTR 361550 | F58: S3 | G58: Grand Est | H58: La Bressaude | I58: 2001-02-09 | J58: M | M58: GASGAS | N58: 250 | O58: Incomplet | P58: Non | Q58: A CONTROLER
B59: 117 | C59: ANTOINE | D59: Aurelien | E59: LJA 188981-056 | F59: S3 | G59: Grand Est | H59: La Bressaude | I59: 1988-02-24 | J59: M | M59: SHERCO | N59: 290 | O59: Incomplet | P59: Non | Q59: Licence
B60: 118 | C60: VAXELAIRE | D60: Gerald | E60: NTR 039562 | F60: S3 | G60: Grand Est | H60: La Bressaude | I60: 1972-05-24 | J60: M | M60: GASGAS | N60: 300 | O60: Incomplet | P60: Non | Q60: Licence
B61: 140 | C61: WEIBEL | D61: Christian | E61: MAT2 040920 | F61: S3 MAT2 | G61: Grand Est | H61: TC Ban de la Roche | I61: 1959-03-24 | J61: M | M61: YAMAHA TY | N61: 250 | O61: Incomplet | P61: Oui
B62: 151 | C62: JEUDY | D62: Justin | E62: NTR 331168 | F62: S4+ | G62: Grand Est | H62: RN 66 | I62: 2005-01-21 | J62: M | M62: GASGAS | N62: 280 | O62: Complet | P62: Oui
B63: 152 | C63: POIROT | D63: Noah | E63: NJ3 318952 | F63: S4+ | G63: Grand Est | H63: La Bressaude | I63: 2009-11-25 | J63: M | M63: SHERCO | N63: 125 | O63: Complet | P63: Non | Q63: Licence?
B64: 153 | C64: GREMILLET | D64: Luc | E64: NTR 081896 | F64: S4+ | G64: Grand Est | H64: La Bressaude | I64: 1958-01-12 | J64: M | M64: VERTIGO | N64: 300 | O64: Complet | P64: Non | Q64: OK
B65: 154 | C65: SCHMITZ | D65: Jean Paul | E65: NTR 151263 | F65: S4+ | G65: Grand Est | H65: MC Stanislas | I65: 1957-01-26 | J65: M | M65: BETA | N65: 300 | O65: Complet | P65: Oui
B66: 155 | C66: FLEURETTE | D66: Mathieu | E66: NTR 308338 | F66: S4+ | G66: Grand Est | H66: La Bressaude | I66: 1983-08-13 | J66: M | M66: GASGAS | N66: 125 | O66: Complet | P66: Oui | Q66: Rendre 30 euros
B67: 156 | C67: TOUSSAINT | D67: Laurent | E67: NTR 260384 | F67: S4+ | G67: Grand Est | H67: TC Ban de la Roche | I67: 1967-01-15 | J67: M | M67: SHERCO | N67: 250 | O67: Complet | P67: Oui
B68: 157 | C68: FEIDT | D68: Martin | E68: NTR 010125 | F68: S4+ | G68: Grand Est | H68: TC Ban de la Roche | I68: 1953-01-07 | J68: M | M68: SHERCO | N68: 250 | O68: Complet | P68: Oui
B69: 170 | C69: POIRIER | D69: Regis | E69: MAT2 139683 | F69: S4+ MAT2 | G69: Grand Est | H69: ETLB | I69: 1961-04-28 | J69: M | M69: YAMAHA TY | N69: 250 | O69: Complet | P69: Oui
B70: 171 | C70: DEREMARQUE | D70: Jean Paul | E70: MAT2 154364 | F70: S4+ MAT2 | G70: Grand Est | H70: MC Epernay | I70: 1959-07-02 | J70: M | M70: YAMAHA TY | N70: 250 | O70: Complet | P70: Oui | Q70: Ligue?
B71: 172 | C71: WEBER | D71: Christian | E71: MAT2 286684 | F71: S4+ MAT2 | G71: Grand Est | H71: ETLB | I71: 1962-07-07 | J71: M | M71: OSSA | N71: 250 | O71: Complet | P71: Oui
A72: De 181 à 205 Taille XL Et de 206 à 210 Taille L | B72: 181 | C72: PIERREL | D72: Charlotte | E72: NCO 331170 | F72: S4 | G72: Grand Est | H72: La Bressaude | I72: 2002-10-07 | J72: M | M72: SHERCO | N72: 125 | O72: Complet | P72: Non | Q72: OK
B73: 182 | C73: MANGIN | D73: David | E73: LJA 382075-564 | F73: S4 | H73: JOURNEE | I73: 1989-10-07 | J73: M | M73: GASGAS | N73: 300 | O73: Complet | P73: Oui | Q73: Rendre 30 euros
B74: 183 | C74: NADOT | D74: Camille | E74: NTR 339275 | F74: S4 | G74: Grand Est | H74: MC Stanislas | I74: 1995-06-06 | J74: M | M74: GASGAS | N74: 250 | O74: Complet | P74: Oui
B75: 184 | C75: RIVET | D75: Jean Christophe | E75: NTR 50899 | F75: S4 | G75: Grand Est | H75: AMVHV | I75: 1966-07-03 | J75: M | M75: MONTESA | N75: 250 | O75: Incomplet | P75: Non | Q75: Doit 30 euros
B76: 185 | C76: CLAUDE | D76: Zoe | E76: NJ3C 364632 | F76: S4 | G76: Grand Est | H76: AMVHV | I76: 2007-05-30 | J76: F | M76: GASGAS | N76: 125 | O76: Complet | P76: Oui
B77: 187 | C77: CROUVIZIER | D77: Morgane | E77: NTR 295688 | F77: S4 | G77: Grand Est | H77: ETLB | I77: 1990-04-15 | J77: F | M77: BETA | N77: 270 | O77: Incomplet | Q77: Type licence et 30 euros
B78: 206 | C78: KARST | D78: Nolan | E78: NJ3C 403074 | F78: S4 | G78: Grand Est | H78: MC Gazelec | I78: 2009-06-22 | J78: M | M78: BETA | N78: 50 | O78: Incomplet | Q78: Type licence et 30 euros
B79: 207 | C79: KARST | D79: Leny | E79: NJ3 403068 | F79: S4 | G79: Grand Est | H79: MC Gazelec | I79: 2010-12-15 | J79: M | M79: BETA | N79: 50 | O79: Incomplet | Q79: Type licence et 30 euros
B80: 208 | C80: CAILLEAU | D80: Tom | E80: LJA 395153-564 | F80: S4 | H80: JOURNEE | I80: 2010-10-28 | J80: M | M80: SHERCO | N80: 80 | O80: Complet | P80: Oui
B81: 209 | C81: CAILLEAU | D81: Timothé | E81: LJA 395075-564 | F81: S4 | H81: JOURNEE | I81: 2008-08-12 | J81: M | M81: GASGAS | N81: 125 | O81: Complet | P81: Oui
B82: 200 | C82: THOMAS | D82: Dominique | E82: NTR 023004 | F82: S4 MAT2 | G82: Grand Est | H82: MC Stanislas | I82: 1960-12-14 | J82: M | M82: TLR | N82: 125 | O82: Complet | P82: Oui
B83: 201 | C83: THOMAS | D83: Nicolas | E83: NTR 023012 | F83: S4 MAT2 | G83: Grand Est | H83: MC Stanislas | I83: 1964-11-14 | J83: M | M83: HONDA | N83: 250 | O83: Incomplet | P83: Non | Q83: Doit 30 euros
B84: 202 | C84: FILLER | D84: Jean Marc | E84: MAT2 010275 | F84: S4 MAT2 | G84: Grand Est | H84: TC Ban de la Roche | I84: 1956-04-29 | J84: M | M84: BULTACO | N84: 250 | O84: Complet | P84: Oui | Q84: cylindrée?
A85: Insérer IMPÉRATIVEMENT les nouveaux pilotes avant cette ligne.

Sheet Tables
B2: Ligue | C2: Club | D2: Catégorie | E2: Sexe | F2: Type Licence | G2: Moto | H2: Cylindrée | I2: Engagement | J2: Payement
B3: Auvergne Rhone Alpes | C3: AMVHV | D3: Expert | E3: M | F3: NTR | G3: Beta | H3: 50cc | I3: Incomplet | J3: Oui
B4: Bourg. - Fr Comté | C4: Chaumont Enduro 52 | D4: S1 | E4: F | F4: NCO | G4: GasGas | H4: 80cc | I4: Complet | J4: Non
B5: Bretagne | C5: Enduro Extreme | D5: OPEN | F5: NJ3 | G5: JTG | H5: 125cc
B6: Centre | C6: ETLB | D6: S2 | F6: MAT2 | G6: Montesa | H6: 250cc
B7: Corse | C7: Gazelec | D7: S3+ | F7: Journée | G7: Ossa | H7: 280cc
B8: Grand Est | C8: Hermenonville | D8: S3 | F8: Autre | G8: Scorpa | H8: 300cc
B9: Guadeloupe | C9: MC 3 Lys | D9: S4+ | G9: Sherco
B10: Guyane | C10: MC Amitié | D10: S4 | G10: Vertigo
B11: Haut de France | C11: MC Andlau | D11: S3+ MAT2 | G11: TRS
B12: Ile de France | C12: MC Ban de la Roche | D12: S3 MAT2
B13: La Reunion | C13: MC Bergheim | D13: S4+ MAT2
B14: Martinique | C14: MC Centre Alsace | D14: S4 MAT2
B15: Normandie | C15: MC Charleville | D15: Journée
B16: Nouvelle Aquitaine | C16: MC des Corbeaux
B17: Nouvelle Caledonie | C17: MC Epernay
B18: Nouvelle Occitanie | C18: MC Faulx
B19: Pays de Loire | C19: MC Granges
B20: Provence | C20: MC Gye
C21: MC Haguenau
C22: MC Haut Marnais
C23: MC Haut Saonois
C24: MC La Bressaude
C25: MC Mazel
C26: MC Munster
C27: MC Neuville
C28: MC Nogentais
C29: MC Passion Vitesse
C30: MC Portusien
C31: MC Saint Dié
C32: MC Saint Mihel
C33: MC Saint Remy
C34: MC Soultz
C35: MC Stanislas
C36: MC Viel Armand
C37: MC Villars
C38: MC Zone 68
C39: MC Cercle de l'amitié
C40: SEE
C41: TCVB
C42: TP55
C43: Trial 70
C44: UM Marne
C45: Autres
C46: AO Gazelec

Sheet Données Courses
G3: Attribution des points
B4: TEMPS DE COURSE | E4: 08:30:00 | G4: 1 | H4: 20
G5: 2 | H5: 17
B6: HEURE D'ARRIVÉE MAXI | E6: 17:30:00 | G6: 3 | H6: 15
G7: 4 | H7: 13
G8: 5 | H8: 11
G9: 6 | H9: 10
B10: Nombre de pilotes par catégorie | G10: 7 | H10: 9
B11: Expert | E11: 0 | G11: 8 | H11: 8
B12: S1 | E12: 5 | G12: 9 | H12: 7
B13: OPEN | E13: 7 | G13: 10 | H13: 6
B14: S2 | E14: 13 | G14: 10 | H14: 6
B15: S3+ | E15: 9 | G15: 11 | H15: 5
B16: S3 | E16: 16 | G16: 12 | H16: 4
B17: S4+ | E17: 7 | G17: 13 | H17: 3
B18: S4 | E18: 10 | G18: 14 | H18: 2
B19: S3+ MAT2 | E19: 1
B20: S3 MAT2 | E20: 1
B21: S4+ MAT2 | E21: 3
B22: S4 MAT2 | E22: 3
A23: Dont | B23: Journée | E23: 0 | G23: 15 | H23: 1 | I23: (Déjà compté dans le total)
B24: TOTAL | E24: =SUM(E11:E22) -> 75 | G24: 16 | H24: 0
G25: 17 | H25: 0
G26: 18 | H26: 0
G27: 19 | H27: 0
G28: 20 | H28: 0
G29: 21 | H29: 0
G30: 22 | H30: 0
G31: 23 | H31: 0
G32: 24 | H32: 0
G33: 25 | H33: 0
G34: 26 | H34: 0
G35: 27 | H35: 0
G36: 28 | H36: 0
G37: 29 | H37: 0
G38: 30 | H38: 0
G39: 31 | H39: 0
G40: 32 | H40: 0
G41: 33 | H41: 0
G42: 34 | H42: 0
G43: 35 | H43: 0
G44: 36 | H44: 0
G45: 37 | H45: 0
G46: 38 | H46: 0
G47: 39 | H47: 0
G48: 40 | H48: 0
G49: 41 | H49: 0
G50: 42 | H50: 0
G51: 43 | H51: 0
G52: 44 | H52: 0
G53: 45 | H53: 0
G54: 46 | H54: 0
G55: 47 | H55: 0
G56: 48 | H56: 0
G57: 49 | H57: 0
G58: 50 | H58: 0
G59: 51 | H59: 0
G60: 52 | H60: 0
G61: 53 | H61: 0
G62: 54 | H62: 0
G63: 55 | H63: 0
G64: 56 | H64: 0
G65: 57 | H65: 0
G66: 58 | H66: 0
G67: 59 | H67: 0
G68: 60 | H68: 0
G69: 61 | H69: 0
G70: 62 | H70: 0
G71: 63 | H71: 0
G72: 64 | H72: 0
G73: 65 | H73: 0
G74: 66 | H74: 0
G75: 67 | H75: 0
G76: 68 | H76: 0
G77: 69 | H77: 0
G78: 70 | H78: 0
G79: 71 | H79: 0
G80: 72 | H80: 0
G81: 73 | H81: 0
G82: 74 | H82: 0
G83: 75 | H83: 0
G84: 76 | H84: 0
G85: 77 | H85: 0
G86: 78 | H86: 0
G87: 79 | H87: 0
G88: 80 | H88: 0
G89: 81 | H89: 0
G90: 82 | H90: 0
G91: 83 | H91: 0
G92: 84 | H92: 0
G93: 85 | H93: 0
G94: 86 | H94: 0
G95: 87 | H95: 0
G96: 88 | H96: 0
G97: 89 | H97: 0
G98: 90 | H98: 0
G99: 91 | H99: 0
G100: 92 | H100: 0
G101: 93 | H101: 0
G102: 94 | H102: 0
G103: 95 | H103: 0
G104: 96 | H104: 0
G105: 97 | H105: 0
G106: 98 | H106: 0
G107: 99 | H107: 0
G108: Abd | H108: NC
G109: Disq | H109: NC

Sheet Modele
B2: CLASSEMENT | F2: Cat | H2: Heure d'Arrivée Maxi | O2: ='Données Courses'!E6 -> 17:30:00 | S2: =COUNTA(T:T) -> 1
B4: place | C4: N° | D4: NOM | F4: Moyenne par zone | G4: =IF(SUM(J6:J9)=0,0,(SUM(L6:L9)*1+SUM(M6:M9)*2+SUM(N6:N9)*3+SUM(O6:O9)*5)/SUM(J6:J9)) -> 0 | H4: TOUR | I4: Total/tr | J4: Nbre Zones | K4: Pénalité Temps | M4: =R6 -> 0 | N4: TOTAL | P4: =IF(OR(P6="Disq",P7="Disq",P8="Disq",P9="Disq",R6="HC"),"Disq",IF(OR(P6="Abd",P7="Abd",P8="Abd",P9="Abd"),"Abd",SUM(I6:I9)+M4)) -> 0 | T4: =P4 -> 0
B5: 99 | C5: N° Licence | D5: Prénom | K5: Nbr.0 | L5: Nbr.1 | M5: Nbr.2 | N5: Nbr.3 | O5: Nbr.5 | P5: Pén. Jury
C6: Ligue | F6: Heure Départ | G6: 00:00:00 | H6: T1 | I6: =IF(OR(P6="Disq",P6="Abd"),P6,(L6*1)+(M6*2)+(N6*3)+(O6*5)+P6) -> 0 | J6: =SUM(K6:O6) -> 0 | R6: =IF(G8>$O$2,"HC",0) -> 0 | U6: =SUM(K6:K9) -> 0 | V6: =SUM(L6:L9) -> 0 | W6: =SUM(M6:M9) -> 0
B7: Pts Chpt | C7: Club | H7: T2 | I7: =IF(OR(P7="Disq",P7="Abd"),P7,(L7*1)+(M7*2)+(N7*3)+(O7*5)+P7) -> 0 | J7: =SUM(K7:O7) -> 0
B8: =VLOOKUP(B5,Attribution_des_points,2,FALSE) -> 0 | F8: Heure Arrivée | G8: 00:00:00 | H8: T3 | I8: 0 | J8: =SUM(K8:O8) -> 0
F9: Temps de course | G9: =IF(G8=0,0,G8-G6) -> 00:00:00 | H9: T4 | I9: 0 | J9: =SUM(K9:O9) -> 0

Sheet S1
B2: CLASSEMENT | F2: S1 | H2: Heure d'Arrivée Maxi | O2: ='Données Courses'!E6 -> 17:30:00 | S2: =COUNTA(T:T) -> 5
B4: place | C4: 5 | D4: GREMILLET | F4: Moyenne par zone | G4: =IF(SUM(J6:J9)=0,0,(SUM(L6:L9)*1+SUM(M6:M9)*2+SUM(N6:N9)*3+SUM(O6:O9)*5)/SUM(J6:J9)) -> 0.1944444444 | H4: TOUR | I4: Total/tr | J4: Nbre Zones | K4: Pénalité Temps | M4: =R6 -> 0 | N4: TOTAL | P4: =IF(OR(P6="Disq",P7="Disq",P8="Disq",P9="Disq",R6="HC"),"Disq",IF(OR(P6="Abd",P7="Abd",P8="Abd",P9="Abd"),"Abd",SUM(I6:I9)+M4)) -> 7 | T4: =P4 -> 7
B5: 1 | C5: NTR 056371 | D5: Alexandre | K5: Nbr.0 | L5: Nbr.1 | M5: Nbr.2 | N5: Nbr.3 | O5: Nbr.5 | P5: Pén. Jury
C6: Grand Est | F6: Heure Départ | G6: 09:54:00 | H6: T1 | I6: =IF(OR(P6="Disq",P6="Abd"),P6,(L6*1)+(M6*2)+(N6*3)+(O6*5)+P6) -> 4 | J6: =SUM(K6:O6) -> 12 | K6: 10 | L6: 1 | M6: 0 | N6: 1 | O6: 0 | R6: =IF(G8>$O$2,"HC",0) -> 0 | U6: =SUM(K6:K9) -> 31 | V6: =SUM(L6:L9) -> 4 | W6: =SUM(M6:M9) -> 0
B7: Pts Chpt | C7: La Bressaude | H7: T2 | I7: =IF(OR(P7="Disq",P7="Abd"),P7,(L7*1)+(M7*2)+(N7*3)+(O7*5)+P7) -> 2 | J7: =SUM(K7:O7) -> 12 | K7: 10 | L7: 2 | M7: 0 | N7: 0 | O7: 0
B8: =VLOOKUP(B5,Attribution_des_points,2,FALSE) -> 20 | F8: Heure Arrivée | G8: 16:00:00 | H8: T3 | I8: 1 | J8: =SUM(K8:O8) -> 12 | K8: 11 | L8: 1 | M8: 0 | N8: 0 | O8: 0
F9: Temps de course | G9: =IF(G8=0,0,G8-G6) -> 06:06:00 | H9: T4 | I9: 0 | J9: =SUM(K9:O9) -> 0
B11: place | C11: 1 | D11: POIROT | F11: Moyenne par zone | G11: =IF(SUM(J13:J16)=0,0,(SUM(L13:L16)*1+SUM(M13:M16)*2+SUM(N13:N16)*3+SUM(O13:O16)*5)/SUM(J13:J16)) -> 1.805555556 | H11: TOUR | I11: Total/tr | J11: Nbre Zones | K11: Pénalité Temps | M11: =R13 -> 0 | N11: TOTAL | P11: =IF(OR(P13="Disq",P14="Disq",P15="Disq",P16="Disq",R13="HC"),"Disq",IF(OR(P13="Abd",P14="Abd",P15="Abd",P16="Abd"),"Abd",SUM(I13:I16)+M11)) -> 65 | T11: =P11 -> 65
B12: 2 | C12: NTR 220715 | D12: Pierre | K12: Nbr.0 | L12: Nbr.1 | M12: Nbr.2 | N12: Nbr.3 | O12: Nbr.5 | P12: Pén. Jury
C13: Grand Est | F13: Heure Départ | G13: 10:02:00 | H13: T1 | I13: =IF(OR(P13="Disq",P13="Abd"),P13,(L13*1)+(M13*2)+(N13*3)+(O13*5)+P13) -> 29 | J13: =SUM(K13:O13) -> 12 | K13: 3 | L13: 0 | M13: 2 | N13: 5 | O13: 2 | R13: =IF(G15>$O$2,"HC",0) -> 0 | U13: =SUM(K13:K16) -> 8 | V13: =SUM(L13:L16) -> 9 | W13: =SUM(M13:M16) -> 7
B14: Pts Chpt | C14: La Bressaude | H14: T2 | I14: =IF(OR(P14="Disq",P14="Abd"),P14,(L14*1)+(M14*2)+(N14*3)+(O14*5)+P14) -> 22 | J14: =SUM(K14:O14) -> 12 | K14: 3 | L14: 2 | M14: 3 | N14: 3 | O14: 1
B15: =VLOOKUP(B12,Attribution_des_points,2,FALSE) -> 17 | F15: Heure Arrivée | G15: 17:23:00 | H15: T3 | I15: 14 | J15: =SUM(K15:O15) -> 12 | K15: 2 | L15: 7 | M15: 2 | N15: 1 | O15: 0
F16: Temps de course | G16: =IF(G15=0,0,G15-G13) -> 07:21:00 | H16: T4 | I16: 0 | J16: =SUM(K16:O16) -> 0
B18: place | C18: 4 | D18: FEIDT | F18: Moyenne par zone | G18: =IF(SUM(J20:J23)=0,0,(SUM(L20:L23)*1+SUM(M20:M23)*2+SUM(N20:N23)*3+SUM(O20:O23)*5)/SUM(J20:J23)) -> 2.388888889 | H18: TOUR | I18: Total/tr | J18: Nbre Zones | K18: Pénalité Temps | M18: =R20 -> 0 | N18: TOTAL | P18: =IF(OR(P20="Disq",P21="Disq",P22="Disq",P23="Disq",R20="HC"),"Disq",IF(OR(P20="Abd",P21="Abd",P22="Abd",P23="Abd"),"Abd",SUM(I20:I23)+M18)) -> 86 | T18: =P18 -> 86
B19: 3 | C19: NTR 059073 | D19: Mathieu | K19: Nbr.0 | L19: Nbr.1 | M19: Nbr.2 | N19: Nbr.3 | O19: Nbr.5 | P19: Pén. Jury
C20: Grand Est | F20: Heure Départ | G20: 10:13:00 | H20: T1 | I20: =IF(OR(P20="Disq",P20="Abd"),P20,(L20*1)+(M20*2)+(N20*3)+(O20*5)+P20) -> 42 | J20: =SUM(K20:O20) -> 12 | K20: 0 | L20: 2 | M20: 2 | N20: 2 | O20: 6 | R20: =IF(G22>$O$2,"HC",0) -> 0 | U20: =SUM(K20:K23) -> 4 | V20: =SUM(L20:L23) -> 11 | W20: =SUM(M20:M23) -> 6
B21: Pts Chpt | C21: TC Ban de la Roche | H21: T2 | I21: =IF(OR(P21="Disq",P21="Abd"),P21,(L21*1)+(M21*2)+(N21*3)+(O21*5)+P21) -> 25 | J21: =SUM(K21:O21) -> 12 | K21: 1 | L21: 5 | M21: 2 | N21: 2 | O21: 2
B22: =VLOOKUP(B19,Attribution_des_points,2,FALSE) -> 15 | F22: Heure Arrivée | G22: 17:19:00 | H22: T3 | I22: 19 | J22: =SUM(K22:O22) -> 12 | K22: 3 | L22: 4 | M22: 2 | N22: 2 | O22: 1
F23: Temps de course | G23: =IF(G22=0,0,G22-G20) -> 07:06:00 | H23: T4 | I23: 0 | J23: =SUM(K23:O23) -> 0
B25: place | C25: 2 | D25: PACALIS | F25: Moyenne par zone | G25: =IF(SUM(J27:J30)=0,0,(SUM(L27:L30)*1+SUM(M27:M30)*2+SUM(N27:N30)*3+SUM(O27:O30)*5)/SUM(J27:J30)) -> 3.222222222 | H25: TOUR | I25: Total/tr | J25: Nbre Zones | K25: Pénalité Temps | M25: =R27 -> 0 | N25: TOTAL | P25: =IF(OR(P27="Disq",P28="Disq",P29="Disq",P30="Disq",R27="HC"),"Disq",IF(OR(P27="Abd",P28="Abd",P29="Abd",P30="Abd"),"Abd",SUM(I27:I30)+M25)) -> 116 | T25: =P25 -> 116
B26: 4 | C26: NTR 265793 | D26: Adam | K26: Nbr.0 | L26: Nbr.1 | M26: Nbr.2 | N26: Nbr.3 | O26: Nbr.5 | P26: Pén. Jury
C27: Grand Est | F27: Heure Départ | G27: 09:16:00 | H27: T1 | I27: =IF(OR(P27="Disq",P27="Abd"),P27,(L27*1)+(M27*2)+(N27*3)+(O27*5)+P27) -> 38 | J27: =SUM(K27:O27) -> 12 | K27: 3 | L27: 1 | M27: 1 | N27: 0 | O27: 7 | R27: =IF(G29>$O$2,"HC",0) -> 0 | U27: =SUM(K27:K30) -> 7 | V27: =SUM(L27:L30) -> 3 | W27: =SUM(M27:M30) -> 3
B28: Pts Chpt | C28: MC Stanislas | H28: T2 | I28: =IF(OR(P28="Disq",P28="Abd"),P28,(L28*1)+(M28*2)+(N28*3)+(O28*5)+P28) -> 35 | J28: =SUM(K28:O28) -> 12 | K28: 2 | L28: 2 | M28: 1 | N28: 2 | O28: 5
B29: =VLOOKUP(B26,Attribution_des_points,2,FALSE) -> 13 | F29: Heure Arrivée | G29: 17:28:00 | H29: T3 | I29: 43 | J29: =SUM(K29:O29) -> 12 | K29: 2 | L29: 0 | M29: 1 | N29: 2 | O29: 7
F30: Temps de course | G30: =IF(G29=0,0,G29-G27) -> 08:12:00 | H30: T4 | I30: 0 | J30: =SUM(K30:O30) -> 0
B32: place | C32: 3 | D32: THIRIAT | F32: Moyenne par zone | G32: =IF(SUM(J34:J37)=0,0,(SUM(L34:L37)*1+SUM(M34:M37)*2+SUM(N34:N37)*3+SUM(O34:O37)*5)/SUM(J34:J37)) -> 4.111111111 | H32: TOUR | I32: Total/tr | J32: Nbre Zones | K32: Pénalité Temps | M32: =R34 -> 0 | N32: TOTAL | P32: =IF(OR(P34="Disq",P35="Disq",P36="Disq",P37="Disq",R34="HC"),"Disq",IF(OR(P34="Abd",P35="Abd",P36="Abd",P37="Abd"),"Abd",SUM(I34:I37)+M32)) -> 148 | T32: =P32 -> 148
B33: 5 | C33: NTR 300894 | D33: Lionel | K33: Nbr.0 | L33: Nbr.1 | M33: Nbr.2 | N33: Nbr.3 | O33: Nbr.5 | P33: Pén. Jury
C34: Grand Est | F34: Heure Départ | G34: 09:53:00 | H34: T1 | I34: =IF(OR(P34="Disq",P34="Abd"),P34,(L34*1)+(M34*2)+(N34*3)+(O34*5)+P34) -> 28 | J34: =SUM(K34:O34) -> 12 | K34: 3 | L34: 3 | M34: 1 | N34: 1 | O34: 4 | R34: =IF(G36>$O$2,"HC",0) -> 0 | U34: =SUM(K34:K37) -> 3 | V34: =SUM(L34:L37) -> 3 | W34: =SUM(M34:M37) -> 1
B35: Pts Chpt | C35: AMVHV | H35: T2 | I35: =IF(OR(P35="Disq",P35="Abd"),P35,(L35*1)+(M35*2)+(N35*3)+(O35*5)+P35) -> 60 | J35: =SUM(K35:O35) -> 12 | K35: 0 | L35: 0 | M35: 0 | N35: 0 | O35: 12
B36: =VLOOKUP(B33,Attribution_des_points,2,FALSE) -> 11 | F36: Heure Arrivée | G36: 16:50:00 | H36: T3 | I36: 60 | J36: =SUM(K36:O36) -> 12 | K36: 0 | L36: 0 | M36: 0 | N36: 0 | O36: 12
F37: Temps de course | G37: =IF(G36=0,0,G36-G34) -> 06:57:00 | H37: T4 | I37: 0 | J37: =SUM(K37:O37) -> 0

Sheet OPEN
B2: CLASSEMENT | F2: OPEN | H2: Heure d'Arrivée Maxi | O2: ='Données Courses'!E6 -> 17:30:00 | S2: =COUNTA(T:T) -> 7
B4: place | C4: 21 | D4: PIQUET | F4: Moyenne par zone | G4: =IF(SUM(J6:J9)=0,0,(SUM(L6:L9)*1+SUM(M6:M9)*2+SUM(N6:N9)*3+SUM(O6:O9)*5)/SUM(J6:J9)) -> 2.083333333 | H4: TOUR | I4: Total/tr | J4: Nbre Zones | K4: Pénalité Temps | M4: =R6 -> 0 | N4: TOTAL | P4: =IF(OR(P6="Disq",P7="Disq",P8="Disq",P9="Disq",R6="HC"),"Disq",IF(OR(P6="Abd",P7="Abd",P8="Abd",P9="Abd"),"Abd",SUM(I6:I9)+M4)) -> 75 | T4: =P4 -> 75
B5: 1 | C5: NTR 312485 | D5: Steve | K5: Nbr.0 | L5: Nbr.1 | M5: Nbr.2 | N5: Nbr.3 | O5: Nbr.5 | P5: Pén. Jury
C6: Bourg. - Fr Comté | F6: Heure Départ | G6: 09:43:00 | H6: T1 | I6: =IF(OR(P6="Disq",P6="Abd"),P6,(L6*1)+(M6*2)+(N6*3)+(O6*5)+P6) -> 32 | J6: =SUM(K6:O6) -> 12 | K6: 3 | L6: 2 | M6: 1 | N6: 1 | O6: 5 | R6: =IF(G8>$O$2,"HC",0) -> 0 | U6: =SUM(K6:K9) -> 13 | V6: =SUM(L6:L9) -> 5 | W6: =SUM(M6:M9) -> 4
B7: Pts Chpt | C7: TC Comptois | H7: T2 | I7: =IF(OR(P7="Disq",P7="Abd"),P7,(L7*1)+(M7*2)+(N7*3)+(O7*5)+P7) -> 20 | J7: =SUM(K7:O7) -> 12 | K7: 4 | L7: 3 | M7: 2 | N7: 1 | O7: 2
B8: =VLOOKUP(B5,Attribution_des_points,2,FALSE) -> 20 | F8: Heure Arrivée | G8: 16:10:00 | H8: T3 | I8: 23 | J8: =SUM(K8:O8) -> 12 | K8: 6 | L8: 0 | M8: 1 | N8: 2 | O8: 3
F9: Temps de course | G9: =IF(G8=0,0,G8-G6) -> 06:27:00 | H9: T4 | I9: 0 | J9: =SUM(K9:O9) -> 0
B11: place | C11: 25 | D11: POIROT | F11: Moyenne par zone | G11: =IF(SUM(J13:J16)=0,0,(SUM(L13:L16)*1+SUM(M13:M16)*2+SUM(N13:N16)*3+SUM(O13:O16)*5)/SUM(J13:J16)) -> 2.25 | H11: TOUR | I11: Total/tr | J11: Nbre Zones | K11: Pénalité Temps | M11: =R13 -> 0 | N11: TOTAL | P11: =IF(OR(P13="Disq",P14="Disq",P15="Disq",P16="Disq",R13="HC"),"Disq",IF(OR(P13="Abd",P14="Abd",P15="Abd",P16="Abd"),"Abd",SUM(I13:I16)+M11)) -> 81 | T11: =P11 -> 81
B12: 2 | C12: NTR 234487 | D12: Louis | K12: Nbr.0 | L12: Nbr.1 | M12: Nbr.2 | N12: Nbr.3 | O12: Nbr.5 | P12: Pén. Jury
C13: Grand Est | F13: Heure Départ | G13: 10:03:00 | H13: T1 | I13: =IF(OR(P13="Disq",P13="Abd"),P13,(L13*1)+(M13*2)+(N13*3)+(O13*5)+P13) -> 34 | J13: =SUM(K13:O13) -> 12 | K13: 3 | L13: 0 | M13: 1 | N13: 4 | O13: 4 | R13: =IF(G15>$O$2,"HC",0) -> 0 | U13: =SUM(K13:K16) -> 11 | V13: =SUM(L13:L16) -> 4 | W13: =SUM(M13:M16) -> 4
B14: Pts Chpt | C14: La Bressaude | H14: T2 | I14: =IF(OR(P14="Disq",P14="Abd"),P14,(L14*1)+(M14*2)+(N14*3)+(O14*5)+P14) -> 21 | J14: =SUM(K14:O14) -> 12 | K14: 4 | L14: 2 | M14: 3 | N14: 1 | O14: 2
B15: =VLOOKUP(B12,Attribution_des_points,2,FALSE) -> 17 | F15: Heure Arrivée | G15: 17:24:00 | H15: T3 | I15: 26 | J15: =SUM(K15:O15) -> 12 | K15: 4 | L15: 2 | M15: 0 | N15: 3 | O15: 3
F16: Temps de course | G16: =IF(G15=0,0,G15-G13) -> 07:21:00 | H16: T4 | I16: 0 | J16: =SUM(K16:O16) -> 0
B18: place | C18: 23 | D18: DROUHIN | F18: Moyenne par zone | G18: =IF(SUM(J20:J23)=0,0,(SUM(L20:L23)*1+SUM(M20:M23)*2+SUM(N20:N23)*3+SUM(O20:O23)*5)/SUM(J20:J23)) -> 2.25 | H18: TOUR | I18: Total/tr | J18: Nbre Zones | K18: Pénalité Temps | M18: =R20 -> 0 | N18: TOTAL | P18: =IF(OR(P20="Disq",P21="Disq",P22="Disq",P23="Disq",R20="HC"),"Disq",IF(OR(P20="Abd",P21="Abd",P22="Abd",P23="Abd"),"Abd",SUM(I20:I23)+M18)) -> 81 | T18: =P18 -> 81
B19: 3 | C19: NTR 286005 | D19: Neil | K19: Nbr.0 | L19: Nbr.1 | M19: Nbr.2 | N19: Nbr.3 | O19: Nbr.5 | P19: Pén. Jury
C20: Bourg. - Fr Comté | F20: Heure Départ | G20: 09:44:00 | H20: T1 | I20: =IF(OR(P20="Disq",P20="Abd"),P20,(L20*1)+(M20*2)+(N20*3)+(O20*5)+P20) -> 28 | J20: =SUM(K20:O20) -> 12 | K20: 3 | L20: 1 | M20: 3 | N20: 2 | O20: 3 | R20: =IF(G22>$O$2,"HC",0) -> 0 | U20: =SUM(K20:K23) -> 10 | V20: =SUM(L20:L23) -> 4 | W20: =SUM(M20:M23) -> 7
B21: Pts Chpt | C21: TC Comptois | H21: T2 | I21: =IF(OR(P21="Disq",P21="Abd"),P21,(L21*1)+(M21*2)+(N21*3)+(O21*5)+P21) -> 32 | J21: =SUM(K21:O21) -> 12 | K21: 3 | L21: 0 | M21: 3 | N21: 2 | O21: 4
B22: =VLOOKUP(B19,Attribution_des_points,2,FALSE) -> 15 | F22: Heure Arrivée | G22: 17:13:00 | H22: T3 | I22: 21 | J22: =SUM(K22:O22) -> 12 | K22: 4 | L22: 3 | M22: 1 | N22: 2 | O22: 2
F23: Temps de course | G23: =IF(G22=0,0,G22-G20) -> 07:29:00 | H23: T4 | I23: 0 | J23: =SUM(K23:O23) -> 0
B25: place | C25: 24 | D25: LAUCHER | F25: Moyenne par zone | G25: =IF(SUM(J27:J30)=0,0,(SUM(L27:L30)*1+SUM(M27:M30)*2+SUM(N27:N30)*3+SUM(O27:O30)*5)/SUM(J27:J30)) -> 2.361111111 | H25: TOUR | I25: Total/tr | J25: Nbre Zones | K25: Pénalité Temps | M25: =R27 -> 0 | N25: TOTAL | P25: =IF(OR(P27="Disq",P28="Disq",P29="Disq",P30="Disq",R27="HC"),"Disq",IF(OR(P27="Abd",P28="Abd",P29="Abd",P30="Abd"),"Abd",SUM(I27:I30)+M25)) -> 85 | T25: =P25 -> 85
B26: 4 | C26: NTR 200198 | D26: Valentin | K26: Nbr.0 | L26: Nbr.1 | M26: Nbr.2 | N26: Nbr.3 | O26: Nbr.5 | P26: Pén. Jury
C27: Grand Est | F27: Heure Départ | G27: 09:51:00 | H27: T1 | I27: =IF(OR(P27="Disq",P27="Abd"),P27,(L27*1)+(M27*2)+(N27*3)+(O27*5)+P27) -> 35 | J27: =SUM(K27:O27) -> 12 | K27: 1 | L27: 2 | M27: 2 | N27: 3 | O27: 4 | R27: =IF(G29>$O$2,"HC",0) -> 0 | U27: =SUM(K27:K30) -> 8 | V27: =SUM(L27:L30) -> 8 | W27: =SUM(M27:M30) -> 5
B28: Pts Chpt | C28: MC Zone 68 | H28: T2 | I28: =IF(OR(P28="Disq",P28="Abd"),P28,(L28*1)+(M28*2)+(N28*3)+(O28*5)+P28) -> 26 | J28: =SUM(K28:O28) -> 12 | K28: 2 | L28: 4 | M28: 2 | N28: 1 | O28: 3
B29: =VLOOKUP(B26,Attribution_des_points,2,FALSE) -> 13 | F29: Heure Arrivée | G29: 16:54:00 | H29: T3 | I29: 24 | J29: =SUM(K29:O29) -> 12 | K29: 5 | L29: 2 | M29: 1 | N29: 0 | O29: 4
F30: Temps de course | G30: =IF(G29=0,0,G29-G27) -> 07:03:00 | H30: T4 | I30: 0 | J30: =SUM(K30:O30) -> 0
B32: place | C32: 26 | D32: NORMAND | F32: Moyenne par zone | G32: =IF(SUM(J34:J37)=0,0,(SUM(L34:L37)*1+SUM(M34:M37)*2+SUM(N34:N37)*3+SUM(O34:O37)*5)/SUM(J34:J37)) -> 2.444444444 | H32: TOUR | I32: Total/tr | J32: Nbre Zones | K32: Pénalité Temps | M32: =R34 -> 0 | N32: TOTAL | P32: =IF(OR(P34="Disq",P35="Disq",P36="Disq",P37="Disq",R34="HC"),"Disq",IF(OR(P34="Abd",P35="Abd",P36="Abd",P37="Abd"),"Abd",SUM(I34:I37)+M32)) -> 88 | T32: =P32 -> 88
B33: 5 | C33: LJA 055441-564 | D33: Sebastien | K33: Nbr.0 | L33: Nbr.1 | M33: Nbr.2 | N33: Nbr.3 | O33: Nbr.5 | P33: Pén. Jury
F34: Heure Départ | G34: 09:58:00 | H34: T1 | I34: =IF(OR(P34="Disq",P34="Abd"),P34,(L34*1)+(M34*2)+(N34*3)+(O34*5)+P34) -> 32 | J34: =SUM(K34:O34) -> 12 | K34: 2 | L34: 3 | M34: 2 | N34: 0 | O34: 5 | R34: =IF(G36>$O$2,"HC",0) -> 0 | U34: =SUM(K34:K37) -> 8 | V34: =SUM(L34:L37) -> 8 | W34: =SUM(M34:M37) -> 2
B35: Pts Chpt | C35: JOURNEE | H35: T2 | I35: =IF(OR(P35="Disq",P35="Abd"),P35,(L35*1)+(M35*2)+(N35*3)+(O35*5)+P35) -> 35 | J35: =SUM(K35:O35) -> 12 | K35: 1 | L35: 3 | M35: 0 | N35: 4 | O35: 4
B36: =VLOOKUP(B33,Attribution_des_points,2,FALSE) -> 11 | F36: Heure Arrivée | G36: 17:23:00 | H36: T3 | I36: 21 | J36: =SUM(K36:O36) -> 12 | K36: 5 | L36: 2 | M36: 0 | N36: 3 | O36: 2
F37: Temps de course | G37: =IF(G36=0,0,G36-G34) -> 07:25:00 | H37: T4 | I37: 0 | J37: =SUM(K37:O37) -> 0
B39: place | C39: 27 | D39: SABRIA LIORET | F39: Moyenne par zone | G39: =IF(SUM(J41:J44)=0,0,(SUM(L41:L44)*1+SUM(M41:M44)*2+SUM(N41:N44)*3+SUM(O41:O44)*5)/SUM(J41:J44)) -> 2.944444444 | H39: TOUR | I39: Total/tr | J39: Nbre Zones | K39: Pénalité Temps | M39: =R41 -> 0 | N39: TOTAL | P39: =IF(OR(P41="Disq",P42="Disq",P43="Disq",P44="Disq",R41="HC"),"Disq",IF(OR(P41="Abd",P42="Abd",P43="Abd",P44="Abd"),"Abd",SUM(I41:I44)+M39)) -> 106 | T39: =P39 -> 106
B40: 6 | C40: LJA 312865-564 | D40: Joel | K40: Nbr.0 | L40: Nbr.1 | M40: Nbr.2 | N40: Nbr.3 | O40: Nbr.5 | P40: Pén. Jury
F41: Heure Départ | G41: 09:18:00 | H41: T1 | I41: =IF(OR(P41="Disq",P41="Abd"),P41,(L41*1)+(M41*2)+(N41*3)+(O41*5)+P41) -> 35 | J41: =SUM(K41:O41) -> 12 | K41: 1 | L41: 3 | M41: 0 | N41: 4 | O41: 4 | R41: =IF(G43>$O$2,"HC",0) -> 0 | U41: =SUM(K41:K44) -> 5 | V41: =SUM(L41:L44) -> 6 | W41: =SUM(M41:M44) -> 3
B42: Pts Chpt | C42: JOURNEE | H42: T2 | I42: =IF(OR(P42="Disq",P42="Abd"),P42,(L42*1)+(M42*2)+(N42*3)+(O42*5)+P42) -> 38 | J42: =SUM(K42:O42) -> 12 | K42: 1 | L42: 3 | M42: 1 | N42: 1 | O42: 6
B43: =VLOOKUP(B40,Attribution_des_points,2,FALSE) -> 10 | F43: Heure Arrivée | G43: 15:52:00 | H43: T3 | I43: 33 | J43: =SUM(K43:O43) -> 12 | K43: 3 | L43: 0 | M43: 2 | N43: 3 | O43: 4
F44: Temps de course | G44: =IF(G43=0,0,G43-G41) -> 06:34:00 | H44: T4 | I44: 0 | J44: =SUM(K44:O44) -> 0
B46: place | C46: 22 | D46: BADET | F46: Moyenne par zone | G46: =IF(SUM(J48:J51)=0,0,(SUM(L48:L51)*1+SUM(M48:M51)*2+SUM(N48:N51)*3+SUM(O48:O51)*5)/SUM(J48:J51)) -> 2.944444444 | H46: TOUR | I46: Total/tr | J46: Nbre Zones | K46: Pénalité Temps | M46: =R48 -> 0 | N46: TOTAL | P46: =IF(OR(P48="Disq",P49="Disq",P50="Disq",P51="Disq",R48="HC"),"Disq",IF(OR(P48="Abd",P49="Abd",P50="Abd",P51="Abd"),"Abd",SUM(I48:I51)+M46)) -> 106 | T46: =P46 -> 106
B47: 7 | C47: NTR 056023 | D47: Clément | K47: Nbr.0 | L47: Nbr.1 | M47: Nbr.2 | N47: Nbr.3 | O47: Nbr.5 | P47: Pén. Jury
C48: Bourg. - Fr Comté | F48: Heure Départ | G48: 09:59:00 | H48: T1 | I48: =IF(OR(P48="Disq",P48="Abd"),P48,(L48*1)+(M48*2)+(N48*3)+(O48*5)+P48) -> 35 | J48: =SUM(K48:O48) -> 12 | K48: 0 | L48: 4 | M48: 1 | N48: 3 | O48: 4 | R48: =IF(G50>$O$2,"HC",0) -> 0 | U48: =SUM(K48:K51) -> 2 | V48: =SUM(L48:L51) -> 9 | W48: =SUM(M48:M51) -> 4
B49: Pts Chpt | C49: TC Comptois | H49: T2 | I49: =IF(OR(P49="Disq",P49="Abd"),P49,(L49*1)+(M49*2)+(N49*3)+(O49*5)+P49) -> 37 | J49: =SUM(K49:O49) -> 12 | K49: 1 | L49: 2 | M49: 2 | N49: 2 | O49: 5
B50: =VLOOKUP(B47,Attribution_des_points,2,FALSE) -> 9 | F50: Heure Arrivée | G50: 17:23:00 | H50: T3 | I50: 34 | J50: =SUM(K50:O50) -> 12 | K50: 1 | L50: 3 | M50: 1 | N50: 3 | O50: 4
F51: Temps de course | G51: =IF(G50=0,0,G50-G48) -> 07:24:00 | H51: T4 | I51: 0 | J51: =SUM(K51:O51) -> 0

Sheet S2
B2: CLASSEMENT | F2: S2 | H2: Heure d'Arrivée Maxi | O2: ='Données Courses'!E6 -> 17:30:00 | S2: =COUNTA(T:T) -> 13
B4: place | C4: 46 | D4: POIROT | F4: Moyenne par zone | G4: =IF(SUM(J6:J9)=0,0,(SUM(L6:L9)*1+SUM(M6:M9)*2+SUM(N6:N9)*3+SUM(O6:O9)*5)/SUM(J6:J9)) -> 0.4722222222 | H4: TOUR | I4: Total/tr | J4: Nbre Zones | K4: Pénalité Temps | M4: =R6 -> 0 | N4: TOTAL | P4: =IF(OR(P6="Disq",P7="Disq",P8="Disq",P9="Disq",R6="HC"),"Disq",IF(OR(P6="Abd",P7="Abd",P8="Abd",P9="Abd"),"Abd",SUM(I6:I9)+M4)) -> 17 | T4: =P4 -> 17
B5: 1 | C5: LJA 019778-564 | D5: Thierry | K5: Nbr.0 | L5: Nbr.1 | M5: Nbr.2 | N5: Nbr.3 | O5: Nbr.5 | P5: Pén. Jury
C6: Grand Est | F6: Heure Départ | G6: 10:05:00 | H6: T1 | I6: =IF(OR(P6="Disq",P6="Abd"),P6,(L6*1)+(M6*2)+(N6*3)+(O6*5)+P6) -> 9 | J6: =SUM(K6:O6) -> 12 | K6: 5 | L6: 5 | M6: 2 | N6: 0 | O6: 0 | R6: =IF(G8>$O$2,"HC",0) -> 0 | U6: =SUM(K6:K9) -> 22 | V6: =SUM(L6:L9) -> 11 | W6: =SUM(M6:M9) -> 3
B7: Pts Chpt | C7: La Bressaude | H7: T2 | I7: =IF(OR(P7="Disq",P7="Abd"),P7,(L7*1)+(M7*2)+(N7*3)+(O7*5)+P7) -> 2 | J7: =SUM(K7:O7) -> 12 | K7: 10 | L7: 2 | M7: 0 | N7: 0 | O7: 0
B8: =VLOOKUP(B5,Attribution_des_points,2,FALSE) -> 20 | F8: Heure Arrivée | G8: 16:50:00 | H8: T3 | I8: 6 | J8: =SUM(K8:O8) -> 12 | K8: 7 | L8: 4 | M8: 1 | N8: 0 | O8: 0
F9: Temps de course | G9: =IF(G8=0,0,G8-G6) -> 06:45:00 | H9: T4 | I9: 0 | J9: =SUM(K9:O9) -> 0
B11: place | C11: 44 | D11: PACALIS | F11: Moyenne par zone | G11: =IF(SUM(J13:J16)=0,0,(SUM(L13:L16)*1+SUM(M13:M16)*2+SUM(N13:N16)*3+SUM(O13:O16)*5)/SUM(J13:J16)) -> 0.8888888889 | H11: TOUR | I11: Total/tr | J11: Nbre Zones | K11: Pénalité Temps | M11: =R13 -> 0 | N11: TOTAL | P11: =IF(OR(P13="Disq",P14="Disq",P15="Disq",P16="Disq",R13="HC"),"Disq",IF(OR(P13="Abd",P14="Abd",P15="Abd",P16="Abd"),"Abd",SUM(I13:I16)+M11)) -> 32 | T11: =P11 -> 32
B12: 2 | C12: NTR 018542 | D12: Eric | K12: Nbr.0 | L12: Nbr.1 | M12: Nbr.2 | N12: Nbr.3 | O12: Nbr.5 | P12: Pén. Jury
C13: Grand Est | F13: Heure Départ | G13: 09:17:00 | H13: T1 | I13: =IF(OR(P13="Disq",P13="Abd"),P13,(L13*1)+(M13*2)+(N13*3)+(O13*5)+P13) -> 13 | J13: =SUM(K13:O13) -> 12 | K13: 5 | L13: 5 | M13: 0 | N13: 1 | O13: 1 | R13: =IF(G15>$O$2,"HC",0) -> 0 | U13: =SUM(K13:K16) -> 16 | V13: =SUM(L13:L16) -> 15 | W13: =SUM(M13:M16) -> 2
B14: Pts Chpt | C14: MC Stanislas | H14: T2 | I14: =IF(OR(P14="Disq",P14="Abd"),P14,(L14*1)+(M14*2)+(N14*3)+(O14*5)+P14) -> 12 | J14: =SUM(K14:O14) -> 12 | K14: 5 | L14: 5 | M14: 1 | N14: 0 | O14: 1
B15: =VLOOKUP(B12,Attribution_des_points,2,FALSE) -> 17 | F15: Heure Arrivée | G15: 17:27:00 | H15: T3 | I15: 7 | J15: =SUM(K15:O15) -> 12 | K15: 6 | L15: 5 | M15: 1 | N15: 0 | O15: 0
F16: Temps de course | G16: =IF(G15=0,0,G15-G13) -> 08:10:00 | H16: T4 | I16: 0 | J16: =SUM(K16:O16) -> 0
B18: place | C18: 42 | D18: POIROT | F18: Moyenne par zone | G18: =IF(SUM(J20:J23)=0,0,(SUM(L20:L23)*1+SUM(M20:M23)*2+SUM(N20:N23)*3+SUM(O20:O23)*5)/SUM(J20:J23)) -> 0.9444444444 | H18: TOUR | I18: Total/tr | J18: Nbre Zones | K18: Pénalité Temps | M18: =R20 -> 0 | N18: TOTAL | P18: =IF(OR(P20="Disq",P21="Disq",P22="Disq",P23="Disq",R20="HC"),"Disq",IF(OR(P20="Abd",P21="Abd",P22="Abd",P23="Abd"),"Abd",SUM(I20:I23)+M18)) -> 34 | T18: =P18 -> 34
B19: 3 | C19: NTR 106709 | D19: Kevin | K19: Nbr.0 | L19: Nbr.1 | M19: Nbr.2 | N19: Nbr.3 | O19: Nbr.5 | P19: Pén. Jury
C20: Grand Est | F20: Heure Départ | G20: 10:04:00 | H20: T1 | I20: =IF(OR(P20="Disq",P20="Abd"),P20,(L20*1)+(M20*2)+(N20*3)+(O20*5)+P20) -> 20 | J20: =SUM(K20:O20) -> 12 | K20: 3 | L20: 4 | M20: 3 | N20: 0 | O20: 2 | R20: =IF(G22>$O$2,"HC",0) -> 0 | U20: =SUM(K20:K23) -> 17 | V20: =SUM(L20:L23) -> 10 | W20: =SUM(M20:M23) -> 7
B21: Pts Chpt | C21: La Bressaude | H21: T2 | I21: =IF(OR(P21="Disq",P21="Abd"),P21,(L21*1)+(M21*2)+(N21*3)+(O21*5)+P21) -> 7 | J21: =SUM(K21:O21) -> 12 | K21: 6 | L21: 5 | M21: 1 | N21: 0 | O21: 0
B22: =VLOOKUP(B19,Attribution_des_points,2,FALSE) -> 15 | F22: Heure Arrivée | G22: 16:10:00 | H22: T3 | I22: 7 | J22: =SUM(K22:O22) -> 12 | K22: 8 | L22: 1 | M22: 3 | N22: 0 | O22: 0
F23: Temps de course | G23: =IF(G22=0,0,G22-G20) -> 06:06:00 | H23: T4 | I23: 0 | J23: =SUM(K23:O23) -> 0
B25: place | C25: 49 | D25: PIQUET | F25: Moyenne par zone | G25: =IF(SUM(J27:J30)=0,0,(SUM(L27:L30)*1+SUM(M27:M30)*2+SUM(N27:N30)*3+SUM(O27:O30)*5)/SUM(J27:J30)) -> 1.916666667 | H25: TOUR | I25: Total/tr | J25: Nbre Zones | K25: Pénalité Temps | M25: =R27 -> 0 | N25: TOTAL | P25: =IF(OR(P27="Disq",P28="Disq",P29="Disq",P30="Disq",R27="HC"),"Disq",IF(OR(P27="Abd",P28="Abd",P29="Abd",P30="Abd"),"Abd",SUM(I27:I30)+M25)) -> 69 | T25: =P25 -> 69
B26: 4 | C26: NTR 038065 | D26: David | K26: Nbr.0 | L26: Nbr.1 | M26: Nbr.2 | N26: Nbr.3 | O26: Nbr.5 | P26: Pén. Jury
C27: Bourg. - Fr Comté | F27: Heure Départ | G27: 09:41:00 | H27: T1 | I27: =IF(OR(P27="Disq",P27="Abd"),P27,(L27*1)+(M27*2)+(N27*3)+(O27*5)+P27) -> 26 | J27: =SUM(K27:O27) -> 12 | K27: 2 | L27: 5 | M27: 0 | N27: 2 | O27: 3 | R27: =IF(G29>$O$2,"HC",0) -> 0 | U27: =SUM(K27:K30) -> 9 | V27: =SUM(L27:L30) -> 11 | W27: =SUM(M27:M30) -> 4
B28: Pts Chpt | C28: TC Comptois | H28: T2 | I28: =IF(OR(P28="Disq",P28="Abd"),P28,(L28*1)+(M28*2)+(N28*3)+(O28*5)+P28) -> 14 | J28: =SUM(K28:O28) -> 12 | K28: 4 | L28: 4 | M28: 2 | N28: 2 | O28: 0
B29: =VLOOKUP(B26,Attribution_des_points,2,FALSE) -> 13 | F29: Heure Arrivée | G29: 17:10:00 | H29: T3 | I29: 29 | J29: =SUM(K29:O29) -> 12 | K29: 3 | L29: 2 | M29: 2 | N29: 1 | O29: 4
F30: Temps de course | G30: =IF(G29=0,0,G29-G27) -> 07:29:00 | H30: T4 | I30: 0 | J30: =SUM(K30:O30) -> 0
B32: place | C32: 48 | D32: PERNIN | F32: Moyenne par zone | G32: =IF(SUM(J34:J37)=0,0,(SUM(L34:L37)*1+SUM(M34:M37)*2+SUM(N34:N37)*3+SUM(O34:O37)*5)/SUM(J34:J37)) -> 2.055555556 | H32: TOUR | I32: Total/tr | J32: Nbre Zones | K32: Pénalité Temps | M32: =R34 -> 0 | N32: TOTAL | P32: =IF(OR(P34="Disq",P35="Disq",P36="Disq",P37="Disq",R34="HC"),"Disq",IF(OR(P34="Abd",P35="Abd",P36="Abd",P37="Abd"),"Abd",SUM(I34:I37)+M32)) -> 74 | T32: =P32 -> 74
B33: 5 | C33: NTR 260188 | D33: Simon | K33: Nbr.0 | L33: Nbr.1 | M33: Nbr.2 | N33: Nbr.3 | O33: Nbr.5 | P33: Pén. Jury
C34: Bourg. - Fr Comté | F34: Heure Départ | G34: 09:22:00 | H34: T1 | I34: =IF(OR(P34="Disq",P34="Abd"),P34,(L34*1)+(M34*2)+(N34*3)+(O34*5)+P34) -> 28 | J34: =SUM(K34:O34) -> 12 | K34: 1 | L34: 4 | M34: 1 | N34: 4 | O34: 2 | R34: =IF(G36>$O$2,"HC",0) -> 0 | U34: =SUM(K34:K37) -> 7 | V34: =SUM(L34:L37) -> 9 | W34: =SUM(M34:M37) -> 5
B35: Pts Chpt | C35: TC Comptois | H35: T2 | I35: =IF(OR(P35="Disq",P35="Abd"),P35,(L35*1)+(M35*2)+(N35*3)+(O35*5)+P35) -> 24 | J35: =SUM(K35:O35) -> 12 | K35: 2 | L35: 3 | M35: 2 | N35: 4 | O35: 1
B36: =VLOOKUP(B33,Attribution_des_points,2,FALSE) -> 11 | F36: Heure Arrivée | G36: 16:10:00 | H36: T3 | I36: 22 | J36: =SUM(K36:O36) -> 12 | K36: 4 | L36: 2 | M36: 2 | N36: 2 | O36: 2
F37: Temps de course | G37: =IF(G36=0,0,G36-G34) -> 06:48:00 | H37: T4 | I37: 0 | J37: =SUM(K37:O37) -> 0
B39: place | C39: 51 | D39: ANTOINE | F39: Moyenne par zone | G39: =IF(SUM(J41:J44)=0,0,(SUM(L41:L44)*1+SUM(M41:M44)*2+SUM(N41:N44)*3+SUM(O41:O44)*5)/SUM(J41:J44)) -> 2.166666667 | H39: TOUR | I39: Total/tr | J39: Nbre Zones | K39: Pénalité Temps | M39: =R41 -> 0 | N39: TOTAL | P39: =IF(OR(P41="Disq",P42="Disq",P43="Disq",P44="Disq",R41="HC"),"Disq",IF(OR(P41="Abd",P42="Abd",P43="Abd",P44="Abd"),"Abd",SUM(I41:I44)+M39)) -> 78 | T39: =P39 -> 78
B40: 6 | C40: NTR 192504 | D40: Stephane | K40: Nbr.0 | L40: Nbr.1 | M40: Nbr.2 | N40: Nbr.3 | O40: Nbr.5 | P40: Pén. Jury
C41: Grand Est | F41: Heure Départ | G41: 09:45:00 | H41: T1 | I41: =IF(OR(P41="Disq",P41="Abd"),P41,(L41*1)+(M41*2)+(N41*3)+(O41*5)+P41) -> 19 | J41: =SUM(K41:O41) -> 12 | K41: 3 | L41: 3 | M41: 4 | N41: 1 | O41: 1 | R41: =IF(G43>$O$2,"HC",0) -> 0 | U41: =SUM(K41:K44) -> 6 | V41: =SUM(L41:L44) -> 7 | W41: =SUM(M41:M44) -> 8
B42: Pts Chpt | C42: AMVHV | H42: T2 | I42: =IF(OR(P42="Disq",P42="Abd"),P42,(L42*1)+(M42*2)+(N42*3)+(O42*5)+P42) -> 24 | J42: =SUM(K42:O42) -> 12 | K42: 2 | L42: 3 | M42: 2 | N42: 4 | O42: 1
B43: =VLOOKUP(B40,Attribution_des_points,2,FALSE) -> 10 | F43: Heure Arrivée | G43: 15:58:00 | H43: T3 | I43: 35 | J43: =SUM(K43:O43) -> 12 | K43: 1 | L43: 1 | M43: 2 | N43: 5 | O43: 3
F44: Temps de course | G44: =IF(G43=0,0,G43-G41) -> 06:13:00 | H44: T4 | I44: 0 | J44: =SUM(K44:O44) -> 0
B46: place | C46: 54 | D46: PROST | F46: Moyenne par zone | G46: =IF(SUM(J48:J51)=0,0,(SUM(L48:L51)*1+SUM(M48:M51)*2+SUM(N48:N51)*3+SUM(O48:O51)*5)/SUM(J48:J51)) -> 2.222222222 | H46: TOUR | I46: Total/tr | J46: Nbre Zones | K46: Pénalité Temps | M46: =R48 -> 0 | N46: TOTAL | P46: =IF(OR(P48="Disq",P49="Disq",P50="Disq",P51="Disq",R48="HC"),"Disq",IF(OR(P48="Abd",P49="Abd",P50="Abd",P51="Abd"),"Abd",SUM(I48:I51)+M46)) -> 80 | T46: =P46 -> 80
B47: 7 | C47: NTR 205623 | D47: Ayrton | K47: Nbr.0 | L47: Nbr.1 | M47: Nbr.2 | N47: Nbr.3 | O47: Nbr.5 | P47: Pén. Jury
C48: Bourg. - Fr Comté | F48: Heure Départ | G48: 09:14:00 | H48: T1 | I48: =IF(OR(P48="Disq",P48="Abd"),P48,(L48*1)+(M48*2)+(N48*3)+(O48*5)+P48) -> 25 | J48: =SUM(K48:O48) -> 12 | K48: 1 | L48: 3 | M48: 4 | N48: 3 | O48: 1 | R48: =IF(G50>$O$2,"HC",0) -> 0 | U48: =SUM(K48:K51) -> 3 | V48: =SUM(L48:L51) -> 6 | W48: =SUM(M48:M51) -> 11
B49: Pts Chpt | C49: TC Comptois | H49: T2 | I49: =IF(OR(P49="Disq",P49="Abd"),P49,(L49*1)+(M49*2)+(N49*3)+(O49*5)+P49) -> 31 | J49: =SUM(K49:O49) -> 12 | K49: 0 | L49: 1 | M49: 3 | N49: 8 | O49: 0
B50: =VLOOKUP(B47,Attribution_des_points,2,FALSE) -> 9 | F50: Heure Arrivée | G50: 16:14:00 | H50: T3 | I50: 24 | J50: =SUM(K50:O50) -> 12 | K50: 2 | L50: 2 | M50: 4 | N50: 3 | O50: 1
F51: Temps de course | G51: =IF(G50=0,0,G50-G48) -> 07:00:00 | H51: T4 | I51: 0 | J51: =SUM(K51:O51) -> 0
B53: place | C53: 41 | D53: JEUDY | F53: Moyenne par zone | G53: =IF(SUM(J55:J58)=0,0,(SUM(L55:L58)*1+SUM(M55:M58)*2+SUM(N55:N58)*3+SUM(O55:O58)*5)/SUM(J55:J58)) -> 2.305555556 | H53: TOUR | I53: Total/tr | J53: Nbre Zones | K53: Pénalité Temps | M53: =R55 -> 0 | N53: TOTAL | P53: =IF(OR(P55="Disq",P56="Disq",P57="Disq",P58="Disq",R55="HC"),"Disq",IF(OR(P55="Abd",P56="Abd",P57="Abd",P58="Abd"),"Abd",SUM(I55:I58)+M53)) -> 83 | T53: =P53 -> 83
B54: 8 | C54: NCO 331167 | D54: Adrien | K54: Nbr.0 | L54: Nbr.1 | M54: Nbr.2 | N54: Nbr.3 | O54: Nbr.5 | P54: Pén. Jury
C55: Grand Est | F55: Heure Départ | G55: 09:10:00 | H55: T1 | I55: =IF(OR(P55="Disq",P55="Abd"),P55,(L55*1)+(M55*2)+(N55*3)+(O55*5)+P55) -> 25 | J55: =SUM(K55:O55) -> 12 | K55: 3 | L55: 0 | M55: 2 | N55: 7 | O55: 0 | R55: =IF(G57>$O$2,"HC",0) -> 0 | U55: =SUM(K55:K58) -> 6 | V55: =SUM(L55:L58) -> 3 | W55: =SUM(M55:M58) -> 5
B56: Pts Chpt | C56: RN 66 | H56: T2 | I56: =IF(OR(P56="Disq",P56="Abd"),P56,(L56*1)+(M56*2)+(N56*3)+(O56*5)+P56) -> 32 | J56: =SUM(K56:O56) -> 12 | K56: 2 | L56: 1 | M56: 0 | N56: 7 | O56: 2
B57: =VLOOKUP(B54,Attribution_des_points,2,FALSE) -> 8 | F57: Heure Arrivée | G57: 16:21:00 | H57: T3 | I57: 26 | J57: =SUM(K57:O57) -> 12 | K57: 1 | L57: 2 | M57: 3 | N57: 6 | O57: 0
F58: Temps de course | G58: =IF(G57=0,0,G57-G55) -> 07:11:00 | H58: T4 | I58: 0 | J58: =SUM(K58:O58) -> 0
B60: place | C60: 43 | D60: JACQUES | F60: Moyenne par zone | G60: =IF(SUM(J62:J65)=0,0,(SUM(L62:L65)*1+SUM(M62:M65)*2+SUM(N62:N65)*3+SUM(O62:O65)*5)/SUM(J62:J65)) -> 2.472222222 | H60: TOUR | I60: Total/tr | J60: Nbre Zones | K60: Pénalité Temps | M60: =R62 -> 0 | N60: TOTAL | P60: =IF(OR(P62="Disq",P63="Disq",P64="Disq",P65="Disq",R62="HC"),"Disq",IF(OR(P62="Abd",P63="Abd",P64="Abd",P65="Abd"),"Abd",SUM(I62:I65)+M60)) -> 89 | T60: =P60 -> 89
B61: 9 | C61: NTR 117187 | D61: Julien | K61: Nbr.0 | L61: Nbr.1 | M61: Nbr.2 | N61: Nbr.3 | O61: Nbr.5 | P61: Pén. Jury
C62: Grand Est | F62: Heure Départ | G62: 09:30:00 | H62: T1 | I62: =IF(OR(P62="Disq",P62="Abd"),P62,(L62*1)+(M62*2)+(N62*3)+(O62*5)+P62) -> 35 | J62: =SUM(K62:O62) -> 12 | K62: 0 | L62: 2 | M62: 3 | N62: 4 | O62: 3 | R62: =IF(G64>$O$2,"HC",0) -> 0 | U62: =SUM(K62:K65) -> 4 | V62: =SUM(L62:L65) -> 6 | W62: =SUM(M62:M65) -> 7
B63: Pts Chpt | C63: MC Stanislas | H63: T2 | I63: =IF(OR(P63="Disq",P63="Abd"),P63,(L63*1)+(M63*2)+(N63*3)+(O63*5)+P63) -> 27 | J63: =SUM(K63:O63) -> 12 | K63: 2 | L63: 2 | M63: 3 | N63: 3 | O63: 2
B64: =VLOOKUP(B61,Attribution_des_points,2,FALSE) -> 7 | F64: Heure Arrivée | G64: 16:54:00 | H64: T3 | I64: 27 | J64: =SUM(K64:O64) -> 12 | K64: 2 | L64: 2 | M64: 1 | N64: 6 | O64: 1
F65: Temps de course | G65: =IF(G64=0,0,G64-G62) -> 07:24:00 | H65: T4 | I65: 0 | J65: =SUM(K65:O65) -> 0
B67: place | C67: 50 | D67: PIQUET | F67: Moyenne par zone | G67: =IF(SUM(J69:J72)=0,0,(SUM(L69:L72)*1+SUM(M69:M72)*2+SUM(N69:N72)*3+SUM(O69:O72)*5)/SUM(J69:J72)) -> 2.527777778 | H67: TOUR | I67: Total/tr | J67: Nbre Zones | K67: Pénalité Temps | M67: =R69 -> 0 | N67: TOTAL | P67: =IF(OR(P69="Disq",P70="Disq",P71="Disq",P72="Disq",R69="HC"),"Disq",IF(OR(P69="Abd",P70="Abd",P71="Abd",P72="Abd"),"Abd",SUM(I69:I72)+M67)) -> 91 | T67: =P67 -> 91
B68: 10 | C68: NTR 287931 | D68: Alois | K68: Nbr.0 | L68: Nbr.1 | M68: Nbr.2 | N68: Nbr.3 | O68: Nbr.5 | P68: Pén. Jury
C69: Bourg. - Fr Comté | F69: Heure Départ | G69: 09:42:00 | H69: T1 | I69: =IF(OR(P69="Disq",P69="Abd"),P69,(L69*1)+(M69*2)+(N69*3)+(O69*5)+P69) -> 31 | J69: =SUM(K69:O69) -> 12 | K69: 1 | L69: 2 | M69: 2 | N69: 5 | O69: 2 | R69: =IF(G71>$O$2,"HC",0) -> 0 | U69: =SUM(K69:K72) -> 5 | V69: =SUM(L69:L72) -> 5 | W69: =SUM(M69:M72) -> 8
B70: Pts Chpt | C70: TC Comptois | H70: T2 | I70: =IF(OR(P70="Disq",P70="Abd"),P70,(L70*1)+(M70*2)+(N70*3)+(O70*5)+P70) -> 26 | J70: =SUM(K70:O70) -> 12 | K70: 3 | L70: 1 | M70: 3 | N70: 3 | O70: 2
B71: =VLOOKUP(B68,Attribution_des_points,2,FALSE) -> 6 | F71: Heure Arrivée | G71: 17:10:00 | H71: T3 | I71: 34 | J71: =SUM(K71:O71) -> 12 | K71: 1 | L71: 2 | M71: 3 | N71: 2 | O71: 4
F72: Temps de course | G72: =IF(G71=0,0,G71-G69) -> 07:28:00 | H72: T4 | I72: 0 | J72: =SUM(K72:O72) -> 0
B74: place | C74: 53 | D74: MOREL | F74: Moyenne par zone | G74: =IF(SUM(J76:J79)=0,0,(SUM(L76:L79)*1+SUM(M76:M79)*2+SUM(N76:N79)*3+SUM(O76:O79)*5)/SUM(J76:J79)) -> 2.583333333 | H74: TOUR | I74: Total/tr | J74: Nbre Zones | K74: Pénalité Temps | M74: =R76 -> 0 | N74: TOTAL | P74: =IF(OR(P76="Disq",P77="Disq",P78="Disq",P79="Disq",R76="HC"),"Disq",IF(OR(P76="Abd",P77="Abd",P78="Abd",P79="Abd"),"Abd",SUM(I76:I79)+M74)) -> 93 | T74: =P74 -> 93
B75: 11 | C75: LJA 108917-056 | D75: Alexandre | K75: Nbr.0 | L75: Nbr.1 | M75: Nbr.2 | N75: Nbr.3 | O75: Nbr.5 | P75: Pén. Jury
C76: Grand Est | F76: Heure Départ | G76: 10:06:00 | H76: T1 | I76: =IF(OR(P76="Disq",P76="Abd"),P76,(L76*1)+(M76*2)+(N76*3)+(O76*5)+P76) -> 27 | J76: =SUM(K76:O76) -> 12 | K76: 1 | L76: 1 | M76: 6 | N76: 3 | O76: 1 | R76: =IF(G78>$O$2,"HC",0) -> 0 | U76: =SUM(K76:K79) -> 5 | V76: =SUM(L76:L79) -> 3 | W76: =SUM(M76:M79) -> 8
B77: Pts Chpt | C77: JOURNEE | H77: T2 | I77: =IF(OR(P77="Disq",P77="Abd"),P77,(L77*1)+(M77*2)+(N77*3)+(O77*5)+P77) -> 36 | J77: =SUM(K77:O77) -> 12 | K77: 1 | L77: 1 | M77: 1 | N77: 6 | O77: 3
B78: =VLOOKUP(B75,Attribution_des_points,2,FALSE) -> 5 | F78: Heure Arrivée | G78: 16:11:00 | H78: T3 | I78: 30 | J78: =SUM(K78:O78) -> 12 | K78: 3 | L78: 1 | M78: 1 | N78: 4 | O78: 3
F79: Temps de course | G79: =IF(G78=0,0,G78-G76) -> 06:05:00 | H79: T4 | I79: 0 | J79: =SUM(K79:O79) -> 0
B81: place | C81: 47 | D81: MAGEN-TERRASSE | F81: Moyenne par zone | G81: =IF(SUM(J83:J86)=0,0,(SUM(L83:L86)*1+SUM(M83:M86)*2+SUM(N83:N86)*3+SUM(O83:O86)*5)/SUM(J83:J86)) -> 3.027777778 | H81: TOUR | I81: Total/tr | J81: Nbre Zones | K81: Pénalité Temps | M81: =R83 -> 0 | N81: TOTAL | P81: =IF(OR(P83="Disq",P84="Disq",P85="Disq",P86="Disq",R83="HC"),"Disq",IF(OR(P83="Abd",P84="Abd",P85="Abd",P86="Abd"),"Abd",SUM(I83:I86)+M81)) -> 109 | T81: =P81 -> 109
B82: 12 | C82: NTR 319153 | D82: Corentin | K82: Nbr.0 | L82: Nbr.1 | M82: Nbr.2 | N82: Nbr.3 | O82: Nbr.5 | P82: Pén. Jury
C83: Grand Est | F83: Heure Départ | G83: 09:47:00 | H83: T1 | I83: =IF(OR(P83="Disq",P83="Abd"),P83,(L83*1)+(M83*2)+(N83*3)+(O83*5)+P83) -> 34 | J83: =SUM(K83:O83) -> 12 | K83: 0 | L83: 2 | M83: 2 | N83: 6 | O83: 2 | R83: =IF(G85>$O$2,"HC",0) -> 0 | U83: =SUM(K83:K86) -> 0 | V83: =SUM(L83:L86) -> 6 | W83: =SUM(M83:M86) -> 5
B84: Pts Chpt | C84: AMVHV | H84: T2 | I84: =IF(OR(P84="Disq",P84="Abd"),P84,(L84*1)+(M84*2)+(N84*3)+(O84*5)+P84) -> 30 | J84: =SUM(K84:O84) -> 12 | K84: 0 | L84: 3 | M84: 2 | N84: 6 | O84: 1
B85: =VLOOKUP(B82,Attribution_des_points,2,FALSE) -> 4 | F85: Heure Arrivée | G85: 16:54:00 | H85: T3 | I85: 45 | J85: =SUM(K85:O85) -> 12 | K85: 0 | L85: 1 | M85: 1 | N85: 4 | O85: 6
F86: Temps de course | G86: =IF(G85=0,0,G85-G83) -> 07:07:00 | H86: T4 | I86: 0 | J86: =SUM(K86:O86) -> 0
B88: place | C88: 45 | D88: TRIMOREAU | F88: Moyenne par zone | G88: =IF(SUM(J90:J93)=0,0,(SUM(L90:L93)*1+SUM(M90:M93)*2+SUM(N90:N93)*3+SUM(O90:O93)*5)/SUM(J90:J93)) -> 3.666666667 | H88: TOUR | I88: Total/tr | J88: Nbre Zones | K88: Pénalité Temps | M88: =R90 -> 0 | N88: TOTAL | P88: =IF(OR(P90="Disq",P91="Disq",P92="Disq",P93="Disq",R90="HC"),"Disq",IF(OR(P90="Abd",P91="Abd",P92="Abd",P93="Abd"),"Abd",SUM(I90:I93)+M88)) -> 132 | T88: =P88 -> 132
B89: 13 | C89: NCO 250394 | D89: Stephane | K89: Nbr.0 | L89: Nbr.1 | M89: Nbr.2 | N89: Nbr.3 | O89: Nbr.5 | P89: Pén. Jury
C90: Grand Est | F90: Heure Départ | G90: 09:31:00 | H90: T1 | I90: =IF(OR(P90="Disq",P90="Abd"),P90,(L90*1)+(M90*2)+(N90*3)+(O90*5)+P90) -> 42 | J90: =SUM(K90:O90) -> 12 | K90: 0 | L90: 0 | M90: 0 | N90: 9 | O90: 3 | R90: =IF(G92>$O$2,"HC",0) -> 0 | U90: =SUM(K90:K93) -> 0 | V90: =SUM(L90:L93) -> 0 | W90: =SUM(M90:M93) -> 0
B91: Pts Chpt | C91: MC Stanislas | H91: T2 | I91: =IF(OR(P91="Disq",P91="Abd"),P91,(L91*1)+(M91*2)+(N91*3)+(O91*5)+P91) -> 44 | J91: =SUM(K91:O91) -> 12 | K91: 0 | L91: 0 | M91: 0 | N91: 8 | O91: 4
B92: =VLOOKUP(B89,Attribution_des_points,2,FALSE) -> 3 | F92: Heure Arrivée | G92: 16:54:00 | H92: T3 | I92: 46 | J92: =SUM(K92:O92) -> 12 | K92: 0 | L92: 0 | M92: 0 | N92: 7 | O92: 5
F93: Temps de course | G93: =IF(G92=0,0,G92-G90) -> 07:23:00 | H93: T4 | I93: 0 | J93: =SUM(K93:O93) -> 0

Sheet S3+
B2: CLASSEMENT | F2: S3+ | H2: Heure d'Arrivée Maxi | O2: ='Données Courses'!E6 -> 17:30:00 | S2: =COUNTA(T:T) -> 9
B4: place | C4: 71 | D4: POIROT | F4: Moyenne par zone | G4: =IF(SUM(J6:J9)=0,0,(SUM(L6:L9)*1+SUM(M6:M9)*2+SUM(N6:N9)*3+SUM(O6:O9)*5)/SUM(J6:J9)) -> 0.4722222222 | H4: TOUR | I4: Total/tr | J4: Nbre Zones | K4: Pénalité Temps | M4: =R6 -> 0 | N4: TOTAL | P4: =IF(OR(P6="Disq",P7="Disq",P8="Disq",P9="Disq",R6="HC"),"Disq",IF(OR(P6="Abd",P7="Abd",P8="Abd",P9="Abd"),"Abd",SUM(I6:I9)+M4)) -> 17 | T4: =P4 -> 17
B5: 1 | C5: NTR 132374 | D5: Kevin | K5: Nbr.0 | L5: Nbr.1 | M5: Nbr.2 | N5: Nbr.3 | O5: Nbr.5 | P5: Pén. Jury
C6: Grand Est | F6: Heure Départ | G6: 10:20:00 | H6: T1 | I6: =IF(OR(P6="Disq",P6="Abd"),P6,(L6*1)+(M6*2)+(N6*3)+(O6*5)+P6) -> 6 | J6: =SUM(K6:O6) -> 12 | K6: 6 | L6: 6 | M6: 0 | N6: 0 | O6: 0 | R6: =IF(G8>$O$2,"HC",0) -> 0 | U6: =SUM(K6:K9) -> 23 | V6: =SUM(L6:L9) -> 10 | W6: =SUM(M6:M9) -> 2
B7: Pts Chpt | C7: La Bressaude | H7: T2 | I7: =IF(OR(P7="Disq",P7="Abd"),P7,(L7*1)+(M7*2)+(N7*3)+(O7*5)+P7) -> 7 | J7: =SUM(K7:O7) -> 12 | K7: 8 | L7: 2 | M7: 1 | N7: 1 | O7: 0
B8: =VLOOKUP(B5,Attribution_des_points,2,FALSE) -> 20 | F8: Heure Arrivée | G8: 16:29:00 | H8: T3 | I8: 4 | J8: =SUM(K8:O8) -> 12 | K8: 9 | L8: 2 | M8: 1 | N8: 0 | O8: 0
F9: Temps de course | G9: =IF(G8=0,0,G8-G6) -> 06:09:00 | H9: T4 | I9: 0 | J9: =SUM(K9:O9) -> 0
B11: place | C11: 78 | D11: CUNAT | F11: Moyenne par zone | G11: =IF(SUM(J13:J16)=0,0,(SUM(L13:L16)*1+SUM(M13:M16)*2+SUM(N13:N16)*3+SUM(O13:O16)*5)/SUM(J13:J16)) -> 1.111111111 | H11: TOUR | I11: Total/tr | J11: Nbre Zones | K11: Pénalité Temps | M11: =R13 -> 0 | N11: TOTAL | P11: =IF(OR(P13="Disq",P14="Disq",P15="Disq",P16="Disq",R13="HC"),"Disq",IF(OR(P13="Abd",P14="Abd",P15="Abd",P16="Abd"),"Abd",SUM(I13:I16)+M11)) -> 40 | T11: =P11 -> 40
B12: 2 | C12: NTR 007609 | D12: Jerome | K12: Nbr.0 | L12: Nbr.1 | M12: Nbr.2 | N12: Nbr.3 | O12: Nbr.5 | P12: Pén. Jury
C13: Grand Est | F13: Heure Départ | G13: 10:10:00 | H13: T1 | I13: =IF(OR(P13="Disq",P13="Abd"),P13,(L13*1)+(M13*2)+(N13*3)+(O13*5)+P13) -> 17 | J13: =SUM(K13:O13) -> 12 | K13: 5 | L13: 3 | M13: 0 | N13: 3 | O13: 1 | R13: =IF(G15>$O$2,"HC",0) -> 0 | U13: =SUM(K13:K16) -> 20 | V13: =SUM(L13:L16) -> 5 | W13: =SUM(M13:M16) -> 4
B14: Pts Chpt | C14: AMVHV | H14: T2 | I14: =IF(OR(P14="Disq",P14="Abd"),P14,(L14*1)+(M14*2)+(N14*3)+(O14*5)+P14) -> 10 | J14: =SUM(K14:O14) -> 12 | K14: 7 | L14: 1 | M14: 3 | N14: 1 | O14: 0
B15: =VLOOKUP(B12,Attribution_des_points,2,FALSE) -> 17 | F15: Heure Arrivée | G15: 16:08:00 | H15: T3 | I15: 13 | J15: =SUM(K15:O15) -> 12 | K15: 8 | L15: 1 | M15: 1 | N15: 0 | O15: 2
F16: Temps de course | G16: =IF(G15=0,0,G15-G13) -> 05:58:00 | H16: T4 | I16: 0 | J16: =SUM(K16:O16) -> 0
B18: place | C18: 79 | D18: SESSA | F18: Moyenne par zone | G18: =IF(SUM(J20:J23)=0,0,(SUM(L20:L23)*1+SUM(M20:M23)*2+SUM(N20:N23)*3+SUM(O20:O23)*5)/SUM(J20:J23)) -> 1.527777778 | H18: TOUR | I18: Total/tr | J18: Nbre Zones | K18: Pénalité Temps | M18: =R20 -> 0 | N18: TOTAL | P18: =IF(OR(P20="Disq",P21="Disq",P22="Disq",P23="Disq",R20="HC"),"Disq",IF(OR(P20="Abd",P21="Abd",P22="Abd",P23="Abd"),"Abd",SUM(I20:I23)+M18)) -> 55 | T18: =P18 -> 55
B19: 3 | C19: NTR 110020 | D19: Marc | K19: Nbr.0 | L19: Nbr.1 | M19: Nbr.2 | N19: Nbr.3 | O19: Nbr.5 | P19: Pén. Jury
C20: Grand Est | F20: Heure Départ | G20: 09:36:00 | H20: T1 | I20: =IF(OR(P20="Disq",P20="Abd"),P20,(L20*1)+(M20*2)+(N20*3)+(O20*5)+P20) -> 19 | J20: =SUM(K20:O20) -> 12 | K20: 5 | L20: 2 | M20: 0 | N20: 4 | O20: 1 | R20: =IF(G22>$O$2,"HC",0) -> 0 | U20: =SUM(K20:K23) -> 16 | V20: =SUM(L20:L23) -> 5 | W20: =SUM(M20:M23) -> 1
B21: Pts Chpt | C21: ETLB | H21: T2 | I21: =IF(OR(P21="Disq",P21="Abd"),P21,(L21*1)+(M21*2)+(N21*3)+(O21*5)+P21) -> 17 | J21: =SUM(K21:O21) -> 12 | K21: 7 | L21: 0 | M21: 0 | N21: 4 | O21: 1
B22: =VLOOKUP(B19,Attribution_des_points,2,FALSE) -> 15 | F22: Heure Arrivée | G22: 15:40:00 | H22: T3 | I22: 19 | J22: =SUM(K22:O22) -> 12 | K22: 4 | L22: 3 | M22: 1 | N22: 3 | O22: 1
F23: Temps de course | G23: =IF(G22=0,0,G22-G20) -> 06:04:00 | H23: T4 | I23: 0 | J23: =SUM(K23:O23) -> 0
B25: place | C25: 74 | D25: MARTIN | F25: Moyenne par zone | G25: =IF(SUM(J27:J30)=0,0,(SUM(L27:L30)*1+SUM(M27:M30)*2+SUM(N27:N30)*3+SUM(O27:O30)*5)/SUM(J27:J30)) -> 1.583333333 | H25: TOUR | I25: Total/tr | J25: Nbre Zones | K25: Pénalité Temps | M25: =R27 -> 0 | N25: TOTAL | P25: =IF(OR(P27="Disq",P28="Disq",P29="Disq",P30="Disq",R27="HC"),"Disq",IF(OR(P27="Abd",P28="Abd",P29="Abd",P30="Abd"),"Abd",SUM(I27:I30)+M25)) -> 57 | T25: =P25 -> 57
B26: 4 | C26: NTR 016638 | D26: Eric | K26: Nbr.0 | L26: Nbr.1 | M26: Nbr.2 | N26: Nbr.3 | O26: Nbr.5 | P26: Pén. Jury
C27: Grand Est | F27: Heure Départ | G27: 10:07:00 | H27: T1 | I27: =IF(OR(P27="Disq",P27="Abd"),P27,(L27*1)+(M27*2)+(N27*3)+(O27*5)+P27) -> 24 | J27: =SUM(K27:O27) -> 12 | K27: 5 | L27: 0 | M27: 1 | N27: 4 | O27: 2 | R27: =IF(G29>$O$2,"HC",0) -> 0 | U27: =SUM(K27:K30) -> 16 | V27: =SUM(L27:L30) -> 3 | W27: =SUM(M27:M30) -> 3
B28: Pts Chpt | C28: MC Stanislas | H28: T2 | I28: =IF(OR(P28="Disq",P28="Abd"),P28,(L28*1)+(M28*2)+(N28*3)+(O28*5)+P28) -> 18 | J28: =SUM(K28:O28) -> 12 | K28: 6 | L28: 0 | M28: 2 | N28: 3 | O28: 1
B29: =VLOOKUP(B26,Attribution_des_points,2,FALSE) -> 13 | F29: Heure Arrivée | G29: 16:10:00 | H29: T3 | I29: 15 | J29: =SUM(K29:O29) -> 12 | K29: 5 | L29: 3 | M29: 0 | N29: 4 | O29: 0
F30: Temps de course | G30: =IF(G29=0,0,G29-G27) -> 06:03:00 | H30: T4 | I30: 0 | J30: =SUM(K30:O30) -> 0
B32: place | C32: 72 | D32: POIROT | F32: Moyenne par zone | G32: =IF(SUM(J34:J37)=0,0,(SUM(L34:L37)*1+SUM(M34:M37)*2+SUM(N34:N37)*3+SUM(O34:O37)*5)/SUM(J34:J37)) -> 1.583333333 | H32: TOUR | I32: Total/tr | J32: Nbre Zones | K32: Pénalité Temps | M32: =R34 -> 0 | N32: TOTAL | P32: =IF(OR(P34="Disq",P35="Disq",P36="Disq",P37="Disq",R34="HC"),"Disq",IF(OR(P34="Abd",P35="Abd",P36="Abd",P37="Abd"),"Abd",SUM(I34:I37)+M32)) -> 57 | T32: =P32 -> 57
B33: 5 | C33: NCO 019772 | D33: Hervé | K33: Nbr.0 | L33: Nbr.1 | M33: Nbr.2 | N33: Nbr.3 | O33: Nbr.5 | P33: Pén. Jury
C34: Grand Est | F34: Heure Départ | G34: 09:06:00 | H34: T1 | I34: =IF(OR(P34="Disq",P34="Abd"),P34,(L34*1)+(M34*2)+(N34*3)+(O34*5)+P34) -> 19 | J34: =SUM(K34:O34) -> 12 | K34: 5 | L34: 2 | M34: 2 | N34: 1 | O34: 2 | R34: =IF(G36>$O$2,"HC",0) -> 0 | U34: =SUM(K34:K37) -> 13 | V34: =SUM(L34:L37) -> 8 | W34: =SUM(M34:M37) -> 6
B35: Pts Chpt | C35: La Bressaude | H35: T2 | I35: =IF(OR(P35="Disq",P35="Abd"),P35,(L35*1)+(M35*2)+(N35*3)+(O35*5)+P35) -> 17 | J35: =SUM(K35:O35) -> 12 | K35: 4 | L35: 4 | M35: 1 | N35: 2 | O35: 1
B36: =VLOOKUP(B33,Attribution_des_points,2,FALSE) -> 11 | F36: Heure Arrivée | G36: 15:00:00 | H36: T3 | I36: 21 | J36: =SUM(K36:O36) -> 12 | K36: 4 | L36: 2 | M36: 3 | N36: 1 | O36: 2
F37: Temps de course | G37: =IF(G36=0,0,G36-G34) -> 05:54:00 | H37: T4 | I37: 0 | J37: =SUM(K37:O37) -> 0
B39: place | C39: 77 | D39: MELET | F39: Moyenne par zone | G39: =IF(SUM(J41:J44)=0,0,(SUM(L41:L44)*1+SUM(M41:M44)*2+SUM(N41:N44)*3+SUM(O41:O44)*5)/SUM(J41:J44)) -> 1.666666667 | H39: TOUR | I39: Total/tr | J39: Nbre Zones | K39: Pénalité Temps | M39: =R41 -> 0 | N39: TOTAL | P39: =IF(OR(P41="Disq",P42="Disq",P43="Disq",P44="Disq",R41="HC"),"Disq",IF(OR(P41="Abd",P42="Abd",P43="Abd",P44="Abd"),"Abd",SUM(I41:I44)+M39)) -> 60 | T39: =P39 -> 60
B40: 6 | C40: NTR 045027 | D40: Denis | K40: Nbr.0 | L40: Nbr.1 | M40: Nbr.2 | N40: Nbr.3 | O40: Nbr.5 | P40: Pén. Jury
C41: Bourg. - Fr Comté | F41: Heure Départ | G41: 09:49:00 | H41: T1 | I41: =IF(OR(P41="Disq",P41="Abd"),P41,(L41*1)+(M41*2)+(N41*3)+(O41*5)+P41) -> 25 | J41: =SUM(K41:O41) -> 12 | K41: 2 | L41: 2 | M41: 5 | N41: 1 | O41: 2 | R41: =IF(G43>$O$2,"HC",0) -> 0 | U41: =SUM(K41:K44) -> 16 | V41: =SUM(L41:L44) -> 4 | W41: =SUM(M41:M44) -> 6
B42: Pts Chpt | C42: MC du Risoux | H42: T2 | I42: =IF(OR(P42="Disq",P42="Abd"),P42,(L42*1)+(M42*2)+(N42*3)+(O42*5)+P42) -> 20 | J42: =SUM(K42:O42) -> 12 | K42: 6 | L42: 2 | M42: 0 | N42: 1 | O42: 3
B43: =VLOOKUP(B40,Attribution_des_points,2,FALSE) -> 10 | F43: Heure Arrivée | G43: 16:08:00 | H43: T3 | I43: 15 | J43: =SUM(K43:O43) -> 12 | K43: 8 | L43: 0 | M43: 1 | N43: 1 | O43: 2
F44: Temps de course | G44: =IF(G43=0,0,G43-G41) -> 06:19:00 | H44: T4 | I44: 0 | J44: =SUM(K44:O44) -> 0
B46: place | C46: 76 | D46: BECK | F46: Moyenne par zone | G46: =IF(SUM(J48:J51)=0,0,(SUM(L48:L51)*1+SUM(M48:M51)*2+SUM(N48:N51)*3+SUM(O48:O51)*5)/SUM(J48:J51)) -> 1.916666667 | H46: TOUR | I46: Total/tr | J46: Nbre Zones | K46: Pénalité Temps | M46: =R48 -> 0 | N46: TOTAL | P46: =IF(OR(P48="Disq",P49="Disq",P50="Disq",P51="Disq",R48="HC"),"Disq",IF(OR(P48="Abd",P49="Abd",P50="Abd",P51="Abd"),"Abd",SUM(I48:I51)+M46)) -> 69 | T46: =P46 -> 69
B47: 7 | C47: NTR 263869 | D47: Solène | K47: Nbr.0 | L47: Nbr.1 | M47: Nbr.2 | N47: Nbr.3 | O47: Nbr.5 | P47: Pén. Jury
C48: Grand Est | F48: Heure Départ | G48: 10:00:00 | H48: T1 | I48: =IF(OR(P48="Disq",P48="Abd"),P48,(L48*1)+(M48*2)+(N48*3)+(O48*5)+P48) -> 22 | J48: =SUM(K48:O48) -> 12 | K48: 4 | L48: 2 | M48: 2 | N48: 2 | O48: 2 | R48: =IF(G50>$O$2,"HC",0) -> 0 | U48: =SUM(K48:K51) -> 14 | V48: =SUM(L48:L51) -> 4 | W48: =SUM(M48:M51) -> 3
B49: Pts Chpt | C49: TC Ban de la Roche | H49: T2 | I49: =IF(OR(P49="Disq",P49="Abd"),P49,(L49*1)+(M49*2)+(N49*3)+(O49*5)+P49) -> 20 | J49: =SUM(K49:O49) -> 12 | K49: 6 | L49: 1 | M49: 0 | N49: 3 | O49: 2
B50: =VLOOKUP(B47,Attribution_des_points,2,FALSE) -> 9 | F50: Heure Arrivée | G50: 16:55:00 | H50: T3 | I50: 27 | J50: =SUM(K50:O50) -> 12 | K50: 4 | L50: 1 | M50: 1 | N50: 3 | O50: 3
F51: Temps de course | G51: =IF(G50=0,0,G50-G48) -> 06:55:00 | H51: T4 | I51: 0 | J51: =SUM(K51:O51) -> 0
B53: place | C53: 75 | D53: BELLETTINI | F53: Moyenne par zone | G53: =IF(SUM(J55:J58)=0,0,(SUM(L55:L58)*1+SUM(M55:M58)*2+SUM(N55:N58)*3+SUM(O55:O58)*5)/SUM(J55:J58)) -> 2.055555556 | H53: TOUR | I53: Total/tr | J53: Nbre Zones | K53: Pénalité Temps | M53: =R55 -> 0 | N53: TOTAL | P53: =IF(OR(P55="Disq",P56="Disq",P57="Disq",P58="Disq",R55="HC"),"Disq",IF(OR(P55="Abd",P56="Abd",P57="Abd",P58="Abd"),"Abd",SUM(I55:I58)+M53)) -> 74 | T53: =P53 -> 74
B54: 8 | C54: NTR 288844 | D54: Igor | K54: Nbr.0 | L54: Nbr.1 | M54: Nbr.2 | N54: Nbr.3 | O54: Nbr.5 | P54: Pén. Jury
C55: Bourg. - Fr Comté | F55: Heure Départ | G55: 09:15:00 | H55: T1 | I55: =IF(OR(P55="Disq",P55="Abd"),P55,(L55*1)+(M55*2)+(N55*3)+(O55*5)+P55) -> 21 | J55: =SUM(K55:O55) -> 12 | K55: 5 | L55: 0 | M55: 2 | N55: 4 | O55: 1 | R55: =IF(G57>$O$2,"HC",0) -> 0 | U55: =SUM(K55:K58) -> 12 | V55: =SUM(L55:L58) -> 2 | W55: =SUM(M55:M58) -> 4
B56: Pts Chpt | C56: TC Comptois | H56: T2 | I56: =IF(OR(P56="Disq",P56="Abd"),P56,(L56*1)+(M56*2)+(N56*3)+(O56*5)+P56) -> 22 | J56: =SUM(K56:O56) -> 12 | K56: 3 | L56: 2 | M56: 1 | N56: 6 | O56: 0
B57: =VLOOKUP(B54,Attribution_des_points,2,FALSE) -> 8 | F57: Heure Arrivée | G57: 16:16:00 | H57: T3 | I57: 31 | J57: =SUM(K57:O57) -> 12 | K57: 4 | L57: 0 | M57: 1 | N57: 3 | O57: 4
F58: Temps de course | G58: =IF(G57=0,0,G57-G55) -> 07:01:00 | H58: T4 | I58: 0 | J58: =SUM(K58:O58) -> 0
B60: place | C60: 73 | D60: RIEGER | F60: Moyenne par zone | G60: =IF(SUM(J62:J65)=0,0,(SUM(L62:L65)*1+SUM(M62:M65)*2+SUM(N62:N65)*3+SUM(O62:O65)*5)/SUM(J62:J65)) -> 1.5 | H60: TOUR | I60: Total/tr | J60: Nbre Zones | K60: Pénalité Temps | M60: =R62 -> 0 | N60: TOTAL | P60: =IF(OR(P62="Disq",P63="Disq",P64="Disq",P65="Disq",R62="HC"),"Disq",IF(OR(P62="Abd",P63="Abd",P64="Abd",P65="Abd"),"Abd",SUM(I62:I65)+M60)) -> Abd | T60: =P60 -> Abd
B61: Abd | C61: NTR 030508 | D61: Denis | K61: Nbr.0 | L61: Nbr.1 | M61: Nbr.2 | N61: Nbr.3 | O61: Nbr.5 | P61: Pén. Jury
C62: Grand Est | F62: Heure Départ | G62: 10:01:00 | H62: T1 | I62: =IF(OR(P62="Disq",P62="Abd"),P62,(L62*1)+(M62*2)+(N62*3)+(O62*5)+P62) -> 20 | J62: =SUM(K62:O62) -> 12 | K62: 5 | L62: 1 | M62: 1 | N62: 4 | O62: 1 | R62: =IF(G64>$O$2,"HC",0) -> 0 | U62: =SUM(K62:K65) -> 12 | V62: =SUM(L62:L65) -> 1 | W62: =SUM(M62:M65) -> 2
B63: Pts Chpt | C63: TC Ban de la Roche | H63: T2 | I63: =IF(OR(P63="Disq",P63="Abd"),P63,(L63*1)+(M63*2)+(N63*3)+(O63*5)+P63) -> abd | J63: =SUM(K63:O63) -> 12 | K63: 7 | L63: 0 | M63: 1 | N63: 3 | O63: 1 | P63: abd
B64: =VLOOKUP(B61,Attribution_des_points,2,FALSE) -> NC | F64: Heure Arrivée | G64: 00:00:00 | H64: T3 | I64: 0 | J64: =SUM(K64:O64) -> 0
F65: Temps de course | G65: =IF(G64=0,0,G64-G62) -> 00:00:00 | H65: T4 | I65: 0 | J65: =SUM(K65:O65) -> 0

Sheet S3+ MAT2
B2: CLASSEMENT | F2: S3+ MAT2 | H2: Heure d'Arrivée Maxi | O2: ='Données Courses'!E6 -> 17:30:00 | S2: =COUNTA(T:T) -> 1
B4: place | C4: 90 | D4: GERLIER | F4: Moyenne par zone | G4: =IF(SUM(J6:J9)=0,0,(SUM(L6:L9)*1+SUM(M6:M9)*2+SUM(N6:N9)*3+SUM(O6:O9)*5)/SUM(J6:J9)) -> 1.138888889 | H4: TOUR | I4: Total/tr | J4: Nbre Zones | K4: Pénalité Temps | M4: =R6 -> 0 | N4: TOTAL | P4: =IF(OR(P6="Disq",P7="Disq",P8="Disq",P9="Disq",R6="HC"),"Disq",IF(OR(P6="Abd",P7="Abd",P8="Abd",P9="Abd"),"Abd",SUM(I6:I9)+M4)) -> 41 | T4: =P4 -> 41
B5: 1 | C5: NTR 011402 | D5: Denis | K5: Nbr.0 | L5: Nbr.1 | M5: Nbr.2 | N5: Nbr.3 | O5: Nbr.5 | P5: Pén. Jury
C6: Bourg. - Fr Comté | F6: Heure Départ | G6: 09:48:00 | H6: T1 | I6: =IF(OR(P6="Disq",P6="Abd"),P6,(L6*1)+(M6*2)+(N6*3)+(O6*5)+P6) -> 12 | J6: =SUM(K6:O6) -> 12 | K6: 6 | L6: 2 | M6: 2 | N6: 2 | O6: 0 | R6: =IF(G8>$O$2,"HC",0) -> 0 | U6: =SUM(K6:K9) -> 22 | V6: =SUM(L6:L9) -> 4 | W6: =SUM(M6:M9) -> 3
B7: Pts Chpt | C7: MC Bermont | H7: T2 | I7: =IF(OR(P7="Disq",P7="Abd"),P7,(L7*1)+(M7*2)+(N7*3)+(O7*5)+P7) -> 17 | J7: =SUM(K7:O7) -> 12 | K7: 7 | L7: 2 | M7: 0 | N7: 0 | O7: 3
B8: =VLOOKUP(B5,Attribution_des_points,2,FALSE) -> 20 | F8: Heure Arrivée | G8: 15:55:00 | H8: T3 | I8: 12 | J8: =SUM(K8:O8) -> 12 | K8: 9 | L8: 0 | M8: 1 | N8: 0 | O8: 2
F9: Temps de course | G9: =IF(G8=0,0,G8-G6) -> 06:07:00 | H9: T4 | I9: 0 | J9: =SUM(K9:O9) -> 0

Sheet S3
B2: CLASSEMENT | F2: S3 | H2: Heure d'Arrivée Maxi | O2: ='Données Courses'!E6 -> 17:30:00 | S2: =COUNTA(T:T) -> 16
B4: place | C4: 118 | D4: VAXELAIRE | F4: Moyenne par zone | G4: =IF(SUM(J6:J9)=0,0,(SUM(L6:L9)*1+SUM(M6:M9)*2+SUM(N6:N9)*3+SUM(O6:O9)*5)/SUM(J6:J9)) -> 0.1666666667 | H4: TOUR | I4: Total/tr | J4: Nbre Zones | K4: Pénalité Temps | M4: =R6 -> 0 | N4: TOTAL | P4: =IF(OR(P6="Disq",P7="Disq",P8="Disq",P9="Disq",R6="HC"),"Disq",IF(OR(P6="Abd",P7="Abd",P8="Abd",P9="Abd"),"Abd",SUM(I6:I9)+M4)) -> 6 | T4: =P4 -> 6
B5: 1 | C5: NTR 039562 | D5: Gerald | K5: Nbr.0 | L5: Nbr.1 | M5: Nbr.2 | N5: Nbr.3 | O5: Nbr.5 | P5: Pén. Jury
C6: Grand Est | F6: Heure Départ | G6: 10:21:00 | H6: T1 | I6: =IF(OR(P6="Disq",P6="Abd"),P6,(L6*1)+(M6*2)+(N6*3)+(O6*5)+P6) -> 4 | J6: =SUM(K6:O6) -> 12 | K6: 9 | L6: 2 | M6: 1 | N6: 0 | O6: 0 | R6: =IF(G8>$O$2,"HC",0) -> 0 | U6: =SUM(K6:K9) -> 31 | V6: =SUM(L6:L9) -> 4 | W6: =SUM(M6:M9) -> 1
B7: Pts Chpt | C7: La Bressaude | H7: T2 | I7: =IF(OR(P7="Disq",P7="Abd"),P7,(L7*1)+(M7*2)+(N7*3)+(O7*5)+P7) -> 2 | J7: =SUM(K7:O7) -> 12 | K7: 10 | L7: 2 | M7: 0 | N7: 0 | O7: 0
B8: =VLOOKUP(B5,Attribution_des_points,2,FALSE) -> 20 | F8: Heure Arrivée | G8: 16:10:00 | H8: T3 | I8: 0 | J8: =SUM(K8:O8) -> 12 | K8: 12 | L8: 0 | M8: 0 | N8: 0 | O8: 0
F9: Temps de course | G9: =IF(G8=0,0,G8-G6) -> 05:49:00 | H9: T4 | I9: 0 | J9: =SUM(K9:O9) -> 0
B11: place | C11: 112 | D11: COLIN | F11: Moyenne par zone | G11: =IF(SUM(J13:J16)=0,0,(SUM(L13:L16)*1+SUM(M13:M16)*2+SUM(N13:N16)*3+SUM(O13:O16)*5)/SUM(J13:J16)) -> 0.3333333333 | H11: TOUR | I11: Total/tr | J11: Nbre Zones | K11: Pénalité Temps | M11: =R13 -> 0 | N11: TOTAL | P11: =IF(OR(P13="Disq",P14="Disq",P15="Disq",P16="Disq",R13="HC"),"Disq",IF(OR(P13="Abd",P14="Abd",P15="Abd",P16="Abd"),"Abd",SUM(I13:I16)+M11)) -> 12 | T11: =P11 -> 12
B12: 2 | C12: NTR 081748 | D12: Jeremy | K12: Nbr.0 | L12: Nbr.1 | M12: Nbr.2 | N12: Nbr.3 | O12: Nbr.5 | P12: Pén. Jury
C13: Grand Est | F13: Heure Départ | G13: 09:37:00 | H13: T1 | I13: =IF(OR(P13="Disq",P13="Abd"),P13,(L13*1)+(M13*2)+(N13*3)+(O13*5)+P13) -> 1 | J13: =SUM(K13:O13) -> 12 | K13: 11 | L13: 1 | M13: 0 | N13: 0 | O13: 0 | R13: =IF(G15>$O$2,"HC",0) -> 0 | U13: =SUM(K13:K16) -> 29 | V13: =SUM(L13:L16) -> 5 | W13: =SUM(M13:M16) -> 1
B14: Pts Chpt | C14: La Bressaude | H14: T2 | I14: =IF(OR(P14="Disq",P14="Abd"),P14,(L14*1)+(M14*2)+(N14*3)+(O14*5)+P14) -> 3 | J14: =SUM(K14:O14) -> 12 | K14: 9 | L14: 3 | M14: 0 | N14: 0 | O14: 0
B15: =VLOOKUP(B12,Attribution_des_points,2,FALSE) -> 17 | F15: Heure Arrivée | G15: 15:50:00 | H15: T3 | I15: 8 | J15: =SUM(K15:O15) -> 12 | K15: 9 | L15: 1 | M15: 1 | N15: 0 | O15: 1
F16: Temps de course | G16: =IF(G15=0,0,G15-G13) -> 06:13:00 | H16: T4 | I16: 0 | J16: =SUM(K16:O16) -> 0
B18: place | C18: 104 | D18: PETITJEAN | F18: Moyenne par zone | G18: =IF(SUM(J20:J23)=0,0,(SUM(L20:L23)*1+SUM(M20:M23)*2+SUM(N20:N23)*3+SUM(O20:O23)*5)/SUM(J20:J23)) -> 0.4166666667 | H18: TOUR | I18: Total/tr | J18: Nbre Zones | K18: Pénalité Temps | M18: =R20 -> 0 | N18: TOTAL | P18: =IF(OR(P20="Disq",P21="Disq",P22="Disq",P23="Disq",R20="HC"),"Disq",IF(OR(P20="Abd",P21="Abd",P22="Abd",P23="Abd"),"Abd",SUM(I20:I23)+M18)) -> 15 | T18: =P18 -> 15
B19: 3 | C19: NTR 037880 | D19: Marc | K19: Nbr.0 | L19: Nbr.1 | M19: Nbr.2 | N19: Nbr.3 | O19: Nbr.5 | P19: Pén. Jury
C20: Grand Est | F20: Heure Départ | G20: 09:46:00 | H20: T1 | I20: =IF(OR(P20="Disq",P20="Abd"),P20,(L20*1)+(M20*2)+(N20*3)+(O20*5)+P20) -> 8 | J20: =SUM(K20:O20) -> 12 | K20: 8 | L20: 3 | M20: 0 | N20: 0 | O20: 1 | R20: =IF(G22>$O$2,"HC",0) -> 0 | U20: =SUM(K20:K23) -> 27 | V20: =SUM(L20:L23) -> 6 | W20: =SUM(M20:M23) -> 2
B21: Pts Chpt | C21: AMVHV | H21: T2 | I21: =IF(OR(P21="Disq",P21="Abd"),P21,(L21*1)+(M21*2)+(N21*3)+(O21*5)+P21) -> 4 | J21: =SUM(K21:O21) -> 12 | K21: 9 | L21: 2 | M21: 1 | N21: 0 | O21: 0
B22: =VLOOKUP(B19,Attribution_des_points,2,FALSE) -> 15 | F22: Heure Arrivée | G22: 15:58:00 | H22: T3 | I22: 3 | J22: =SUM(K22:O22) -> 12 | K22: 10 | L22: 1 | M22: 1 | N22: 0 | O22: 0
F23: Temps de course | G23: =IF(G22=0,0,G22-G20) -> 06:12:00 | H23: T4 | I23: 0 | J23: =SUM(K23:O23) -> 0
B25: place | C25: 115 | D25: SCHMIDLIN | F25: Moyenne par zone | G25: =IF(SUM(J27:J30)=0,0,(SUM(L27:L30)*1+SUM(M27:M30)*2+SUM(N27:N30)*3+SUM(O27:O30)*5)/SUM(J27:J30)) -> 0.4444444444 | H25: TOUR | I25: Total/tr | J25: Nbre Zones | K25: Pénalité Temps | M25: =R27 -> 0 | N25: TOTAL | P25: =IF(OR(P27="Disq",P28="Disq",P29="Disq",P30="Disq",R27="HC"),"Disq",IF(OR(P27="Abd",P28="Abd",P29="Abd",P30="Abd"),"Abd",SUM(I27:I30)+M25)) -> 16 | T25: =P25 -> 16
B26: 4 | C26: NTR 38884 | D26: Jean Luc | K26: Nbr.0 | L26: Nbr.1 | M26: Nbr.2 | N26: Nbr.3 | O26: Nbr.5 | P26: Pén. Jury
C27: Bourg. - Fr Comté | F27: Heure Départ | G27: 09:23:00 | H27: T1 | I27: =IF(OR(P27="Disq",P27="Abd"),P27,(L27*1)+(M27*2)+(N27*3)+(O27*5)+P27) -> 2 | J27: =SUM(K27:O27) -> 12 | K27: 10 | L27: 2 | M27: 0 | N27: 0 | O27: 0 | R27: =IF(G29>$O$2,"HC",0) -> 0 | U27: =SUM(K27:K30) -> 24 | V27: =SUM(L27:L30) -> 9 | W27: =SUM(M27:M30) -> 2
B28: Pts Chpt | C28: TC Comptois | H28: T2 | I28: =IF(OR(P28="Disq",P28="Abd"),P28,(L28*1)+(M28*2)+(N28*3)+(O28*5)+P28) -> 6 | J28: =SUM(K28:O28) -> 12 | K28: 8 | L28: 3 | M28: 0 | N28: 1 | O28: 0
B29: =VLOOKUP(B26,Attribution_des_points,2,FALSE) -> 13 | F29: Heure Arrivée | G29: 16:00:00 | H29: T3 | I29: 8 | J29: =SUM(K29:O29) -> 12 | K29: 6 | L29: 4 | M29: 2 | N29: 0 | O29: 0
F30: Temps de course | G30: =IF(G29=0,0,G29-G27) -> 06:37:00 | H30: T4 | I30: 0 | J30: =SUM(K30:O30) -> 0
B32: place | C32: 102 | D32: PIERREL | F32: Moyenne par zone | G32: =IF(SUM(J34:J37)=0,0,(SUM(L34:L37)*1+SUM(M34:M37)*2+SUM(N34:N37)*3+SUM(O34:O37)*5)/SUM(J34:J37)) -> 0.6111111111 | H32: TOUR | I32: Total/tr | J32: Nbre Zones | K32: Pénalité Temps | M32: =R34 -> 0 | N32: TOTAL | P32: =IF(OR(P34="Disq",P35="Disq",P36="Disq",P37="Disq",R34="HC"),"Disq",IF(OR(P34="Abd",P35="Abd",P36="Abd",P37="Abd"),"Abd",SUM(I34:I37)+M32)) -> 22 | T32: =P32 -> 22
B33: 5 | C33: NCO 019494 | D33: Christophe | K33: Nbr.0 | L33: Nbr.1 | M33: Nbr.2 | N33: Nbr.3 | O33: Nbr.5 | P33: Pén. Jury
C34: Grand Est | F34: Heure Départ | G34: 09:10:00 | H34: T1 | I34: =IF(OR(P34="Disq",P34="Abd"),P34,(L34*1)+(M34*2)+(N34*3)+(O34*5)+P34) -> 6 | J34: =SUM(K34:O34) -> 12 | K34: 9 | L34: 1 | M34: 1 | N34: 1 | O34: 0 | R34: =IF(G36>$O$2,"HC",0) -> 0 | U34: =SUM(K34:K37) -> 27 | V34: =SUM(L34:L37) -> 3 | W34: =SUM(M34:M37) -> 3
B35: Pts Chpt | C35: La Bressaude | H35: T2 | I35: =IF(OR(P35="Disq",P35="Abd"),P35,(L35*1)+(M35*2)+(N35*3)+(O35*5)+P35) -> 10 | J35: =SUM(K35:O35) -> 12 | K35: 8 | L35: 1 | M35: 2 | N35: 0 | O35: 1
B36: =VLOOKUP(B33,Attribution_des_points,2,FALSE) -> 11 | F36: Heure Arrivée | G36: 15:47:00 | H36: T3 | I36: 6 | J36: =SUM(K36:O36) -> 12 | K36: 10 | L36: 1 | M36: 0 | N36: 0 | O36: 1
F37: Temps de course | G37: =IF(G36=0,0,G36-G34) -> 06:37:00 | H37: T4 | I37: 0 | J37: =SUM(K37:O37) -> 0
B39: place | C39: 106 | D39: POIROT | F39: Moyenne par zone | G39: =IF(SUM(J41:J44)=0,0,(SUM(L41:L44)*1+SUM(M41:M44)*2+SUM(N41:N44)*3+SUM(O41:O44)*5)/SUM(J41:J44)) -> 0.7222222222 | H39: TOUR | I39: Total/tr | J39: Nbre Zones | K39: Pénalité Temps | M39: =R41 -> 0 | N39: TOTAL | P39: =IF(OR(P41="Disq",P42="Disq",P43="Disq",P44="Disq",R41="HC"),"Disq",IF(OR(P41="Abd",P42="Abd",P43="Abd",P44="Abd"),"Abd",SUM(I41:I44)+M39)) -> 26 | T39: =P39 -> 26
B40: 6 | C40: NTR 019775 | D40: Joel | K40: Nbr.0 | L40: Nbr.1 | M40: Nbr.2 | N40: Nbr.3 | O40: Nbr.5 | P40: Pén. Jury
C41: Grand Est | F41: Heure Départ | G41: 09:00:00 | H41: T1 | I41: =IF(OR(P41="Disq",P41="Abd"),P41,(L41*1)+(M41*2)+(N41*3)+(O41*5)+P41) -> 5 | J41: =SUM(K41:O41) -> 12 | K41: 9 | L41: 2 | M41: 0 | N41: 1 | O41: 0 | R41: =IF(G43>$O$2,"HC",0) -> 0 | U41: =SUM(K41:K44) -> 22 | V41: =SUM(L41:L44) -> 8 | W41: =SUM(M41:M44) -> 2
B42: Pts Chpt | C42: La Bressaude | H42: T2 | I42: =IF(OR(P42="Disq",P42="Abd"),P42,(L42*1)+(M42*2)+(N42*3)+(O42*5)+P42) -> 17 | J42: =SUM(K42:O42) -> 12 | K42: 5 | L42: 2 | M42: 2 | N42: 2 | O42: 1
B43: =VLOOKUP(B40,Attribution_des_points,2,FALSE) -> 10 | F43: Heure Arrivée | G43: 14:01:00 | H43: T3 | I43: 4 | J43: =SUM(K43:O43) -> 12 | K43: 8 | L43: 4 | M43: 0 | N43: 0 | O43: 0
F44: Temps de course | G44: =IF(G43=0,0,G43-G41) -> 05:01:00 | H44: T4 | I44: 0 | J44: =SUM(K44:O44) -> 0
B46: place | C46: 103 | D46: POIROT | F46: Moyenne par zone | G46: =IF(SUM(J48:J51)=0,0,(SUM(L48:L51)*1+SUM(M48:M51)*2+SUM(N48:N51)*3+SUM(O48:O51)*5)/SUM(J48:J51)) -> 0.8888888889 | H46: TOUR | I46: Total/tr | J46: Nbre Zones | K46: Pénalité Temps | M46: =R48 -> 0 | N46: TOTAL | P46: =IF(OR(P48="Disq",P49="Disq",P50="Disq",P51="Disq",R48="HC"),"Disq",IF(OR(P48="Abd",P49="Abd",P50="Abd",P51="Abd"),"Abd",SUM(I48:I51)+M46)) -> 32 | T46: =P46 -> 32
B47: 7 | C47: NJ3C 318948 | D47: Ethan | K47: Nbr.0 | L47: Nbr.1 | M47: Nbr.2 | N47: Nbr.3 | O47: Nbr.5 | P47: Pén. Jury
C48: Grand Est | F48: Heure Départ | G48: 09:05:00 | H48: T1 | I48: =IF(OR(P48="Disq",P48="Abd"),P48,(L48*1)+(M48*2)+(N48*3)+(O48*5)+P48) -> 9 | J48: =SUM(K48:O48) -> 12 | K48: 7 | L48: 3 | M48: 0 | N48: 2 | O48: 0 | R48: =IF(G50>$O$2,"HC",0) -> 0 | U48: =SUM(K48:K51) -> 19 | V48: =SUM(L48:L51) -> 8 | W48: =SUM(M48:M51) -> 3
B49: Pts Chpt | C49: La Bressaude | H49: T2 | I49: =IF(OR(P49="Disq",P49="Abd"),P49,(L49*1)+(M49*2)+(N49*3)+(O49*5)+P49) -> 15 | J49: =SUM(K49:O49) -> 12 | K49: 5 | L49: 2 | M49: 2 | N49: 3 | O49: 0
B50: =VLOOKUP(B47,Attribution_des_points,2,FALSE) -> 9 | F50: Heure Arrivée | G50: 15:21:00 | H50: T3 | I50: 8 | J50: =SUM(K50:O50) -> 12 | K50: 7 | L50: 3 | M50: 1 | N50: 1 | O50: 0
F51: Temps de course | G51: =IF(G50=0,0,G50-G48) -> 06:16:00 | H51: T4 | I51: 0 | J51: =SUM(K51:O51) -> 0
B53: place | C53: 110 | D53: THIEBAUT | F53: Moyenne par zone | G53: =IF(SUM(J55:J58)=0,0,(SUM(L55:L58)*1+SUM(M55:M58)*2+SUM(N55:N58)*3+SUM(O55:O58)*5)/SUM(J55:J58)) -> 1.222222222 | H53: TOUR | I53: Total/tr | J53: Nbre Zones | K53: Pénalité Temps | M53: =R55 -> 0 | N53: TOTAL | P53: =IF(OR(P55="Disq",P56="Disq",P57="Disq",P58="Disq",R55="HC"),"Disq",IF(OR(P55="Abd",P56="Abd",P57="Abd",P58="Abd"),"Abd",SUM(I55:I58)+M53)) -> 44 | T53: =P53 -> 44
B54: 8 | C54: NCO 340098 | D54: Mathéo | K54: Nbr.0 | L54: Nbr.1 | M54: Nbr.2 | N54: Nbr.3 | O54: Nbr.5 | P54: Pén. Jury
C55: Grand Est | F55: Heure Départ | G55: 09:08:00 | H55: T1 | I55: =IF(OR(P55="Disq",P55="Abd"),P55,(L55*1)+(M55*2)+(N55*3)+(O55*5)+P55) -> 13 | J55: =SUM(K55:O55) -> 12 | K55: 7 | L55: 2 | M55: 0 | N55: 2 | O55: 1 | R55: =IF(G57>$O$2,"HC",0) -> 0 | U55: =SUM(K55:K58) -> 17 | V55: =SUM(L55:L58) -> 8 | W55: =SUM(M55:M58) -> 3
B56: Pts Chpt | C56: La Bressaude | H56: T2 | I56: =IF(OR(P56="Disq",P56="Abd"),P56,(L56*1)+(M56*2)+(N56*3)+(O56*5)+P56) -> 14 | J56: =SUM(K56:O56) -> 12 | K56: 5 | L56: 4 | M56: 1 | N56: 1 | O56: 1
B57: =VLOOKUP(B54,Attribution_des_points,2,FALSE) -> 8 | F57: Heure Arrivée | G57: 13:48:00 | H57: T3 | I57: 17 | J57: =SUM(K57:O57) -> 12 | K57: 5 | L57: 2 | M57: 2 | N57: 2 | O57: 1
F58: Temps de course | G58: =IF(G57=0,0,G57-G55) -> 04:40:00 | H58: T4 | I58: 0 | J58: =SUM(K58:O58) -> 0
B60: place | C60: 108 | D60: BUCHER | F60: Moyenne par zone | G60: =IF(SUM(J62:J65)=0,0,(SUM(L62:L65)*1+SUM(M62:M65)*2+SUM(N62:N65)*3+SUM(O62:O65)*5)/SUM(J62:J65)) -> 1.277777778 | H60: TOUR | I60: Total/tr | J60: Nbre Zones | K60: Pénalité Temps | M60: =R62 -> 0 | N60: TOTAL | P60: =IF(OR(P62="Disq",P63="Disq",P64="Disq",P65="Disq",R62="HC"),"Disq",IF(OR(P62="Abd",P63="Abd",P64="Abd",P65="Abd"),"Abd",SUM(I62:I65)+M60)) -> 46 | T60: =P60 -> 46
B61: 9 | C61: NTR 005409 | D61: Thomas | K61: Nbr.0 | L61: Nbr.1 | M61: Nbr.2 | N61: Nbr.3 | O61: Nbr.5 | P61: Pén. Jury
C62: Grand Est | F62: Heure Départ | G62: 09:50:00 | H62: T1 | I62: =IF(OR(P62="Disq",P62="Abd"),P62,(L62*1)+(M62*2)+(N62*3)+(O62*5)+P62) -> 20 | J62: =SUM(K62:O62) -> 12 | K62: 5 | L62: 2 | M62: 1 | N62: 2 | O62: 2 | R62: =IF(G64>$O$2,"HC",0) -> 0 | U62: =SUM(K62:K65) -> 18 | V62: =SUM(L62:L65) -> 7 | W62: =SUM(M62:M65) -> 4
B63: Pts Chpt | C63: MC Zone 68 | H63: T2 | I63: =IF(OR(P63="Disq",P63="Abd"),P63,(L63*1)+(M63*2)+(N63*3)+(O63*5)+P63) -> 15 | J63: =SUM(K63:O63) -> 12 | K63: 7 | L63: 1 | M63: 2 | N63: 0 | O63: 2
B64: =VLOOKUP(B61,Attribution_des_points,2,FALSE) -> 7 | F64: Heure Arrivée | G64: 16:55:00 | H64: T3 | I64: 11 | J64: =SUM(K64:O64) -> 12 | K64: 6 | L64: 4 | M64: 1 | N64: 0 | O64: 1
F65: Temps de course | G65: =IF(G64=0,0,G64-G62) -> 07:05:00 | H65: T4 | I65: 0 | J65: =SUM(K65:O65) -> 0
B67: place | C67: 116 | D67: BALLAND | F67: Moyenne par zone | G67: =IF(SUM(J69:J72)=0,0,(SUM(L69:L72)*1+SUM(M69:M72)*2+SUM(N69:N72)*3+SUM(O69:O72)*5)/SUM(J69:J72)) -> 1.638888889 | H67: TOUR | I67: Total/tr | J67: Nbre Zones | K67: Pénalité Temps | M67: =R69 -> 0 | N67: TOTAL | P67: =IF(OR(P69="Disq",P70="Disq",P71="Disq",P72="Disq",R69="HC"),"Disq",IF(OR(P69="Abd",P70="Abd",P71="Abd",P72="Abd"),"Abd",SUM(I69:I72)+M67)) -> 59 | T67: =P67 -> 59
B68: 10 | C68: NTR 361550 | D68: Florian | K68: Nbr.0 | L68: Nbr.1 | M68: Nbr.2 | N68: Nbr.3 | O68: Nbr.5 | P68: Pén. Jury
C69: Grand Est | F69: Heure Départ | G69: 09:38:00 | H69: T1 | I69: =IF(OR(P69="Disq",P69="Abd"),P69,(L69*1)+(M69*2)+(N69*3)+(O69*5)+P69) -> 25 | J69: =SUM(K69:O69) -> 12 | K69: 3 | L69: 1 | M69: 2 | N69: 5 | O69: 1 | R69: =IF(G71>$O$2,"HC",0) -> 0 | U69: =SUM(K69:K72) -> 9 | V69: =SUM(L69:L72) -> 11 | W69: =SUM(M69:M72) -> 4
B70: Pts Chpt | C70: La Bressaude | H70: T2 | I70: =IF(OR(P70="Disq",P70="Abd"),P70,(L70*1)+(M70*2)+(N70*3)+(O70*5)+P70) -> 24 | J70: =SUM(K70:O70) -> 12 | K70: 2 | L70: 3 | M70: 2 | N70: 4 | O70: 1
B71: =VLOOKUP(B68,Attribution_des_points,2,FALSE) -> 6 | F71: Heure Arrivée | G71: 15:55:00 | H71: T3 | I71: 10 | J71: =SUM(K71:O71) -> 12 | K71: 4 | L71: 7 | M71: 0 | N71: 1 | O71: 0
F72: Temps de course | G72: =IF(G71=0,0,G71-G69) -> 06:17:00 | H72: T4 | I72: 0 | J72: =SUM(K72:O72) -> 0
B74: place | C74: 105 | D74: NADOT | F74: Moyenne par zone | G74: =IF(SUM(J76:J79)=0,0,(SUM(L76:L79)*1+SUM(M76:M79)*2+SUM(N76:N79)*3+SUM(O76:O79)*5)/SUM(J76:J79)) -> 1.694444444 | H74: TOUR | I74: Total/tr | J74: Nbre Zones | K74: Pénalité Temps | M74: =R76 -> 0 | N74: TOTAL | P74: =IF(OR(P76="Disq",P77="Disq",P78="Disq",P79="Disq",R76="HC"),"Disq",IF(OR(P76="Abd",P77="Abd",P78="Abd",P79="Abd"),"Abd",SUM(I76:I79)+M74)) -> 61 | T74: =P74 -> 61
B75: 11 | C75: NTR 329543 | D75: Marie | K75: Nbr.0 | L75: Nbr.1 | M75: Nbr.2 | N75: Nbr.3 | O75: Nbr.5 | P75: Pén. Jury
C76: Grand Est | F76: Heure Départ | G76: 09:34:00 | H76: T1 | I76: =IF(OR(P76="Disq",P76="Abd"),P76,(L76*1)+(M76*2)+(N76*3)+(O76*5)+P76) -> 27 | J76: =SUM(K76:O76) -> 12 | K76: 3 | L76: 2 | M76: 0 | N76: 5 | O76: 2 | R76: =IF(G78>$O$2,"HC",0) -> 0 | U76: =SUM(K76:K79) -> 11 | V76: =SUM(L76:L79) -> 8 | W76: =SUM(M76:M79) -> 4
B77: Pts Chpt | C77: MC Stanislas | H77: T2 | I77: =IF(OR(P77="Disq",P77="Abd"),P77,(L77*1)+(M77*2)+(N77*3)+(O77*5)+P77) -> 19 | J77: =SUM(K77:O77) -> 12 | K77: 4 | L77: 3 | M77: 1 | N77: 3 | O77: 1
B78: =VLOOKUP(B75,Attribution_des_points,2,FALSE) -> 5 | F78: Heure Arrivée | G78: 15:54:00 | H78: T3 | I78: 15 | J78: =SUM(K78:O78) -> 12 | K78: 4 | L78: 3 | M78: 3 | N78: 2 | O78: 0
F79: Temps de course | G79: =IF(G78=0,0,G78-G76) -> 06:20:00 | H79: T4 | I79: 0 | J79: =SUM(K79:O79) -> 0
B81: place | C81: 101 | D81: HOLFERT | F81: Moyenne par zone | G81: =IF(SUM(J83:J86)=0,0,(SUM(L83:L86)*1+SUM(M83:M86)*2+SUM(N83:N86)*3+SUM(O83:O86)*5)/SUM(J83:J86)) -> 2 | H81: TOUR | I81: Total/tr | J81: Nbre Zones | K81: Pénalité Temps | M81: =R83 -> 0 | N81: TOTAL | P81: =IF(OR(P83="Disq",P84="Disq",P85="Disq",P86="Disq",R83="HC"),"Disq",IF(OR(P83="Abd",P84="Abd",P85="Abd",P86="Abd"),"Abd",SUM(I83:I86)+M81)) -> 72 | T81: =P81 -> 72
B82: 12 | C82: NTR 013020 | D82: Dominique | K82: Nbr.0 | L82: Nbr.1 | M82: Nbr.2 | N82: Nbr.3 | O82: Nbr.5 | P82: Pén. Jury
C83: Grand Est | F83: Heure Départ | G83: 09:52:00 | H83: T1 | I83: =IF(OR(P83="Disq",P83="Abd"),P83,(L83*1)+(M83*2)+(N83*3)+(O83*5)+P83) -> 34 | J83: =SUM(K83:O83) -> 12 | K83: 1 | L83: 2 | M83: 1 | N83: 5 | O83: 3 | R83: =IF(G85>$O$2,"HC",0) -> 0 | U83: =SUM(K83:K86) -> 6 | V83: =SUM(L83:L86) -> 10 | W83: =SUM(M83:M86) -> 4
B84: Pts Chpt | C84: TC Ban de la Roche | H84: T2 | I84: =IF(OR(P84="Disq",P84="Abd"),P84,(L84*1)+(M84*2)+(N84*3)+(O84*5)+P84) -> 20 | J84: =SUM(K84:O84) -> 12 | K84: 2 | L84: 4 | M84: 2 | N84: 4 | O84: 0
B85: =VLOOKUP(B82,Attribution_des_points,2,FALSE) -> 4 | F85: Heure Arrivée | G85: 16:52:00 | H85: T3 | I85: 18 | J85: =SUM(K85:O85) -> 12 | K85: 3 | L85: 4 | M85: 1 | N85: 4 | O85: 0
F86: Temps de course | G86: =IF(G85=0,0,G85-G83) -> 07:00:00 | H86: T4 | I86: 0 | J86: =SUM(K86:O86) -> 0
B88: place | C88: 107 | D88: ALLHEILY | F88: Moyenne par zone | G88: =IF(SUM(J90:J93)=0,0,(SUM(L90:L93)*1+SUM(M90:M93)*2+SUM(N90:N93)*3+SUM(O90:O93)*5)/SUM(J90:J93)) -> 2.027777778 | H88: TOUR | I88: Total/tr | J88: Nbre Zones | K88: Pénalité Temps | M88: =R90 -> 0 | N88: TOTAL | P88: =IF(OR(P90="Disq",P91="Disq",P92="Disq",P93="Disq",R90="HC"),"Disq",IF(OR(P90="Abd",P91="Abd",P92="Abd",P93="Abd"),"Abd",SUM(I90:I93)+M88)) -> 73 | T88: =P88 -> 73
B89: 13 | C89: NTR 342860 | D89: Jules | K89: Nbr.0 | L89: Nbr.1 | M89: Nbr.2 | N89: Nbr.3 | O89: Nbr.5 | P89: Pén. Jury
C90: Grand Est | F90: Heure Départ | G90: 09:19:00 | H90: T1 | I90: =IF(OR(P90="Disq",P90="Abd"),P90,(L90*1)+(M90*2)+(N90*3)+(O90*5)+P90) -> 34 | J90: =SUM(K90:O90) -> 12 | K90: 2 | L90: 1 | M90: 0 | N90: 6 | O90: 3 | R90: =IF(G92>$O$2,"HC",0) -> 0 | U90: =SUM(K90:K93) -> 9 | V90: =SUM(L90:L93) -> 8 | W90: =SUM(M90:M93) -> 2
B91: Pts Chpt | C91: MC Zone 68 | H91: T2 | I91: =IF(OR(P91="Disq",P91="Abd"),P91,(L91*1)+(M91*2)+(N91*3)+(O91*5)+P91) -> 14 | J91: =SUM(K91:O91) -> 12 | K91: 5 | L91: 3 | M91: 1 | N91: 3 | O91: 0
B92: =VLOOKUP(B89,Attribution_des_points,2,FALSE) -> 3 | F92: Heure Arrivée | G92: 15:45:00 | H92: T3 | I92: 25 | J92: =SUM(K92:O92) -> 12 | K92: 2 | L92: 4 | M92: 1 | N92: 3 | O92: 2
F93: Temps de course | G93: =IF(G92=0,0,G92-G90) -> 06:26:00 | H93: T4 | I93: 0 | J93: =SUM(K93:O93) -> 0
B95: place | C95: 113 | D95: EQUOY | F95: Moyenne par zone | G95: =IF(SUM(J97:J100)=0,0,(SUM(L97:L100)*1+SUM(M97:M100)*2+SUM(N97:N100)*3+SUM(O97:O100)*5)/SUM(J97:J100)) -> 2.333333333 | H95: TOUR | I95: Total/tr | J95: Nbre Zones | K95: Pénalité Temps | M95: =R97 -> 0 | N95: TOTAL | P95: =IF(OR(P97="Disq",P98="Disq",P99="Disq",P100="Disq",R97="HC"),"Disq",IF(OR(P97="Abd",P98="Abd",P99="Abd",P100="Abd"),"Abd",SUM(I97:I100)+M95)) -> 84 | T95: =P95 -> 84
B96: 14 | C96: LJA 358767-564 | D96: Maxence | K96: Nbr.0 | L96: Nbr.1 | M96: Nbr.2 | N96: Nbr.3 | O96: Nbr.5 | P96: Pén. Jury
F97: Heure Départ | G97: 09:25:00 | H97: T1 | I97: =IF(OR(P97="Disq",P97="Abd"),P97,(L97*1)+(M97*2)+(N97*3)+(O97*5)+P97) -> 25 | J97: =SUM(K97:O97) -> 12 | K97: 2 | L97: 2 | M97: 3 | N97: 4 | O97: 1 | R97: =IF(G99>$O$2,"HC",0) -> 0 | U97: =SUM(K97:K100) -> 6 | V97: =SUM(L97:L100) -> 4 | W97: =SUM(M97:M100) -> 8
B98: Pts Chpt | C98: JOURNEE | H98: T2 | I98: =IF(OR(P98="Disq",P98="Abd"),P98,(L98*1)+(M98*2)+(N98*3)+(O98*5)+P98) -> 29 | J98: =SUM(K98:O98) -> 12 | K98: 1 | L98: 2 | M98: 4 | N98: 3 | O98: 2
B99: =VLOOKUP(B96,Attribution_des_points,2,FALSE) -> 2 | F99: Heure Arrivée | G99: 16:16:00 | H99: T3 | I99: 30 | J99: =SUM(K99:O99) -> 12 | K99: 3 | L99: 0 | M99: 1 | N99: 6 | O99: 2
F100: Temps de course | G100: =IF(G99=0,0,G99-G97) -> 06:51:00 | H100: T4 | I100: 0 | J100: =SUM(K100:O100) -> 0
B102: place | C102: 109 | D102: CHRISTOPH | F102: Moyenne par zone | G102: =IF(SUM(J104:J107)=0,0,(SUM(L104:L107)*1+SUM(M104:M107)*2+SUM(N104:N107)*3+SUM(O104:O107)*5)/SUM(J104:J107)) -> 2.388888889 | H102: TOUR | I102: Total/tr | J102: Nbre Zones | K102: Pénalité Temps | M102: =R104 -> 0 | N102: TOTAL | P102: =IF(OR(P104="Disq",P105="Disq",P106="Disq",P107="Disq",R104="HC"),"Disq",IF(OR(P104="Abd",P105="Abd",P106="Abd",P107="Abd"),"Abd",SUM(I104:I107)+M102)) -> 86 | T102: =P102 -> 86
B103: 15 | C103: NTR 267647 | D103: Claude | K103: Nbr.0 | L103: Nbr.1 | M103: Nbr.2 | N103: Nbr.3 | O103: Nbr.5 | P103: Pén. Jury
C104: Grand Est | F104: Heure Départ | G104: 09:32:00 | H104: T1 | I104: =IF(OR(P104="Disq",P104="Abd"),P104,(L104*1)+(M104*2)+(N104*3)+(O104*5)+P104) -> 33 | J104: =SUM(K104:O104) -> 12 | K104: 1 | L104: 2 | M104: 0 | N104: 7 | O104: 2 | R104: =IF(G106>$O$2,"HC",0) -> 0 | U104: =SUM(K104:K107) -> 6 | V104: =SUM(L104:L107) -> 4 | W104: =SUM(M104:M107) -> 6
B105: Pts Chpt | C105: MC Stanislas | H105: T2 | I105: =IF(OR(P105="Disq",P105="Abd"),P105,(L105*1)+(M105*2)+(N105*3)+(O105*5)+P105) -> 25 | J105: =SUM(K105:O105) -> 12 | K105: 3 | L105: 1 | M105: 2 | N105: 5 | O105: 1
B106: =VLOOKUP(B103,Attribution_des_points,2,FALSE) -> 1 | F106: Heure Arrivée | G106: 16:09:00 | H106: T3 | I106: 28 | J106: =SUM(K106:O106) -> 12 | K106: 2 | L106: 1 | M106: 4 | N106: 3 | O106: 2
F107: Temps de course | G107: =IF(G106=0,0,G106-G104) -> 06:37:00 | H107: T4 | I107: 0 | J107: =SUM(K107:O107) -> 0
B109: place | C109: 117 | D109: ANTOINE | F109: Moyenne par zone | G109: =IF(SUM(J111:J114)=0,0,(SUM(L111:L114)*1+SUM(M111:M114)*2+SUM(N111:N114)*3+SUM(O111:O114)*5)/SUM(J111:J114)) -> 0 | H109: TOUR | I109: Total/tr | J109: Nbre Zones | K109: Pénalité Temps | M109: =R111 -> 0 | N109: TOTAL | P109: =IF(OR(P111="Disq",P112="Disq",P113="Disq",P114="Disq",R111="HC"),"Disq",IF(OR(P111="Abd",P112="Abd",P113="Abd",P114="Abd"),"Abd",SUM(I111:I114)+M109)) -> Abd | T109: =P109 -> Abd
B110: Abd | C110: LJA 188981-056 | D110: Aurelien | K110: Nbr.0 | L110: Nbr.1 | M110: Nbr.2 | N110: Nbr.3 | O110: Nbr.5 | P110: Pén. Jury
C111: Grand Est | F111: Heure Départ | G111: 00:00:00 | H111: T1 | I111: =IF(OR(P111="Disq",P111="Abd"),P111,(L111*1)+(M111*2)+(N111*3)+(O111*5)+P111) -> abd | J111: =SUM(K111:O111) -> 0 | P111: abd | R111: =IF(G113>$O$2,"HC",0) -> 0 | U111: =SUM(K111:K114) -> 0 | V111: =SUM(L111:L114) -> 0 | W111: =SUM(M111:M114) -> 0
B112: Pts Chpt | C112: La Bressaude | H112: T2 | I112: =IF(OR(P112="Disq",P112="Abd"),P112,(L112*1)+(M112*2)+(N112*3)+(O112*5)+P112) -> 0 | J112: =SUM(K112:O112) -> 0
B113: =VLOOKUP(B110,Attribution_des_points,2,FALSE) -> NC | F113: Heure Arrivée | G113: 00:00:00 | H113: T3 | I113: 0 | J113: =SUM(K113:O113) -> 0
F114: Temps de course | G114: =IF(G113=0,0,G113-G111) -> 00:00:00 | H114: T4 | I114: 0 | J114: =SUM(K114:O114) -> 0

Sheet S3 MAT2
B2: CLASSEMENT | F2: S3 MAT2 | H2: Heure d'Arrivée Maxi | O2: ='Données Courses'!E6 -> 17:30:00 | S2: =COUNTA(T:T) -> 1
B4: place | C4: 140 | D4: WEIBEL | F4: Moyenne par zone | G4: =IF(SUM(J6:J9)=0,0,(SUM(L6:L9)*1+SUM(M6:M9)*2+SUM(N6:N9)*3+SUM(O6:O9)*5)/SUM(J6:J9)) -> 0.6666666667 | H4: TOUR | I4: Total/tr | J4: Nbre Zones | K4: Pénalité Temps | M4: =R6 -> 0 | N4: TOTAL | P4: =IF(OR(P6="Disq",P7="Disq",P8="Disq",P9="Disq",R6="HC"),"Disq",IF(OR(P6="Abd",P7="Abd",P8="Abd",P9="Abd"),"Abd",SUM(I6:I9)+M4)) -> Abd | T4: =P4 -> Abd
B5: Abd | C5: MAT2 040920 | D5: Christian | K5: Nbr.0 | L5: Nbr.1 | M5: Nbr.2 | N5: Nbr.3 | O5: Nbr.5 | P5: Pén. Jury
C6: Grand Est | F6: Heure Départ | G6: 10:21:00 | H6: T1 | I6: =IF(OR(P6="Disq",P6="Abd"),P6,(L6*1)+(M6*2)+(N6*3)+(O6*5)+P6) -> abd | J6: =SUM(K6:O6) -> 12 | K6: 8 | L6: 3 | M6: 0 | N6: 0 | O6: 1 | P6: abd | R6: =IF(G8>$O$2,"HC",0) -> 0 | U6: =SUM(K6:K9) -> 8 | V6: =SUM(L6:L9) -> 3 | W6: =SUM(M6:M9) -> 0
B7: Pts Chpt | C7: TC Ban de la Roche | H7: T2 | I7: =IF(OR(P7="Disq",P7="Abd"),P7,(L7*1)+(M7*2)+(N7*3)+(O7*5)+P7) -> 0 | J7: =SUM(K7:O7) -> 0
B8: =VLOOKUP(B5,Attribution_des_points,2,FALSE) -> NC | F8: Heure Arrivée | G8: 00:00:00 | H8: T3 | I8: 0 | J8: =SUM(K8:O8) -> 0
F9: Temps de course | G9: =IF(G8=0,0,G8-G6) -> 00:00:00 | H9: T4 | I9: 0 | J9: =SUM(K9:O9) -> 0

Sheet S4+
B2: CLASSEMENT | F2: S4+ | H2: Heure d'Arrivée Maxi | O2: ='Données Courses'!E6 -> 17:30:00 | S2: =COUNTA(T:T) -> 7
B4: place | C4: 157 | D4: FEIDT | F4: Moyenne par zone | G4: =IF(SUM(J6:J9)=0,0,(SUM(L6:L9)*1+SUM(M6:M9)*2+SUM(N6:N9)*3+SUM(O6:O9)*5)/SUM(J6:J9)) -> 0.6666666667 | H4: TOUR | I4: Total/tr | J4: Nbre Zones | K4: Pénalité Temps | M4: =R6 -> 0 | N4: TOTAL | P4: =IF(OR(P6="Disq",P7="Disq",P8="Disq",P9="Disq",R6="HC"),"Disq",IF(OR(P6="Abd",P7="Abd",P8="Abd",P9="Abd"),"Abd",SUM(I6:I9)+M4)) -> 24 | T4: =P4 -> 24
B5: 1 | C5: NTR 010125 | D5: Martin | K5: Nbr.0 | L5: Nbr.1 | M5: Nbr.2 | N5: Nbr.3 | O5: Nbr.5 | P5: Pén. Jury
C6: Grand Est | F6: Heure Départ | G6: 10:12:00 | H6: T1 | I6: =IF(OR(P6="Disq",P6="Abd"),P6,(L6*1)+(M6*2)+(N6*3)+(O6*5)+P6) -> 13 | J6: =SUM(K6:O6) -> 12 | K6: 4 | L6: 5 | M6: 1 | N6: 2 | O6: 0 | R6: =IF(G8>$O$2,"HC",0) -> 0 | U6: =SUM(K6:K9) -> 21 | V6: =SUM(L6:L9) -> 10 | W6: =SUM(M6:M9) -> 1
B7: Pts Chpt | C7: TC Ban de la Roche | H7: T2 | I7: =IF(OR(P7="Disq",P7="Abd"),P7,(L7*1)+(M7*2)+(N7*3)+(O7*5)+P7) -> 5 | J7: =SUM(K7:O7) -> 12 | K7: 9 | L7: 2 | M7: 0 | N7: 1 | O7: 0
B8: =VLOOKUP(B5,Attribution_des_points,2,FALSE) -> 20 | F8: Heure Arrivée | G8: 17:11:00 | H8: T3 | I8: 6 | J8: =SUM(K8:O8) -> 12 | K8: 8 | L8: 3 | M8: 0 | N8: 1 | O8: 0
F9: Temps de course | G9: =IF(G8=0,0,G8-G6) -> 06:59:00 | H9: T4 | I9: 0 | J9: =SUM(K9:O9) -> 0
B11: place | C11: 152 | D11: POIROT | F11: Moyenne par zone | G11: =IF(SUM(J13:J16)=0,0,(SUM(L13:L16)*1+SUM(M13:M16)*2+SUM(N13:N16)*3+SUM(O13:O16)*5)/SUM(J13:J16)) -> 0.7777777778 | H11: TOUR | I11: Total/tr | J11: Nbre Zones | K11: Pénalité Temps | M11: =R13 -> 0 | N11: TOTAL | P11: =IF(OR(P13="Disq",P14="Disq",P15="Disq",P16="Disq",R13="HC"),"Disq",IF(OR(P13="Abd",P14="Abd",P15="Abd",P16="Abd"),"Abd",SUM(I13:I16)+M11)) -> 28 | T11: =P11 -> 28
B12: 2 | C12: NJ3 318952 | D12: Noah | K12: Nbr.0 | L12: Nbr.1 | M12: Nbr.2 | N12: Nbr.3 | O12: Nbr.5 | P12: Pén. Jury
C13: Grand Est | F13: Heure Départ | G13: 09:07:00 | H13: T1 | I13: =IF(OR(P13="Disq",P13="Abd"),P13,(L13*1)+(M13*2)+(N13*3)+(O13*5)+P13) -> 6 | J13: =SUM(K13:O13) -> 12 | K13: 10 | L13: 1 | M13: 0 | N13: 0 | O13: 1 | R13: =IF(G15>$O$2,"HC",0) -> 0 | U13: =SUM(K13:K16) -> 24 | V13: =SUM(L13:L16) -> 6 | W13: =SUM(M13:M16) -> 0
B14: Pts Chpt | C14: La Bressaude | H14: T2 | I14: =IF(OR(P14="Disq",P14="Abd"),P14,(L14*1)+(M14*2)+(N14*3)+(O14*5)+P14) -> 14 | J14: =SUM(K14:O14) -> 12 | K14: 6 | L14: 3 | M14: 0 | N14: 2 | O14: 1
B15: =VLOOKUP(B12,Attribution_des_points,2,FALSE) -> 17 | F15: Heure Arrivée | G15: 15:12:00 | H15: T3 | I15: 8 | J15: =SUM(K15:O15) -> 12 | K15: 8 | L15: 2 | M15: 0 | N15: 2 | O15: 0
F16: Temps de course | G16: =IF(G15=0,0,G15-G13) -> 06:05:00 | H16: T4 | I16: 0 | J16: =SUM(K16:O16) -> 0
B18: place | C18: 153 | D18: GREMILLET | F18: Moyenne par zone | G18: =IF(SUM(J20:J23)=0,0,(SUM(L20:L23)*1+SUM(M20:M23)*2+SUM(N20:N23)*3+SUM(O20:O23)*5)/SUM(J20:J23)) -> 0.8055555556 | H18: TOUR | I18: Total/tr | J18: Nbre Zones | K18: Pénalité Temps | M18: =R20 -> 0 | N18: TOTAL | P18: =IF(OR(P20="Disq",P21="Disq",P22="Disq",P23="Disq",R20="HC"),"Disq",IF(OR(P20="Abd",P21="Abd",P22="Abd",P23="Abd"),"Abd",SUM(I20:I23)+M18)) -> 29 | T18: =P18 -> 29
B19: 3 | C19: NTR 081896 | D19: Luc | K19: Nbr.0 | L19: Nbr.1 | M19: Nbr.2 | N19: Nbr.3 | O19: Nbr.5 | P19: Pén. Jury
C20: Grand Est | F20: Heure Départ | G20: 09:01:00 | H20: T1 | I20: =IF(OR(P20="Disq",P20="Abd"),P20,(L20*1)+(M20*2)+(N20*3)+(O20*5)+P20) -> 12 | J20: =SUM(K20:O20) -> 12 | K20: 7 | L20: 2 | M20: 1 | N20: 1 | O20: 1 | R20: =IF(G22>$O$2,"HC",0) -> 0 | U20: =SUM(K20:K23) -> 24 | V20: =SUM(L20:L23) -> 5 | W20: =SUM(M20:M23) -> 1
B21: Pts Chpt | C21: La Bressaude | H21: T2 | I21: =IF(OR(P21="Disq",P21="Abd"),P21,(L21*1)+(M21*2)+(N21*3)+(O21*5)+P21) -> 6 | J21: =SUM(K21:O21) -> 12 | K21: 8 | L21: 3 | M21: 0 | N21: 1 | O21: 0
B22: =VLOOKUP(B19,Attribution_des_points,2,FALSE) -> 15 | F22: Heure Arrivée | G22: 13:40:00 | H22: T3 | I22: 11 | J22: =SUM(K22:O22) -> 12 | K22: 9 | L22: 0 | M22: 0 | N22: 2 | O22: 1
F23: Temps de course | G23: =IF(G22=0,0,G22-G20) -> 04:39:00 | H23: T4 | I23: 0 | J23: =SUM(K23:O23) -> 0
B25: place | C25: 156 | D25: TOUSSAINT | F25: Moyenne par zone | G25: =IF(SUM(J27:J30)=0,0,(SUM(L27:L30)*1+SUM(M27:M30)*2+SUM(N27:N30)*3+SUM(O27:O30)*5)/SUM(J27:J30)) -> 1.027777778 | H25: TOUR | I25: Total/tr | J25: Nbre Zones | K25: Pénalité Temps | M25: =R27 -> 0 | N25: TOTAL | P25: =IF(OR(P27="Disq",P28="Disq",P29="Disq",P30="Disq",R27="HC"),"Disq",IF(OR(P27="Abd",P28="Abd",P29="Abd",P30="Abd"),"Abd",SUM(I27:I30)+M25)) -> 37 | T25: =P25 -> 37
B26: 4 | C26: NTR 260384 | D26: Laurent | K26: Nbr.0 | L26: Nbr.1 | M26: Nbr.2 | N26: Nbr.3 | O26: Nbr.5 | P26: Pén. Jury
C27: Grand Est | F27: Heure Départ | G27: 09:26:00 | H27: T1 | I27: =IF(OR(P27="Disq",P27="Abd"),P27,(L27*1)+(M27*2)+(N27*3)+(O27*5)+P27) -> 17 | J27: =SUM(K27:O27) -> 12 | K27: 5 | L27: 2 | M27: 0 | N27: 5 | O27: 0 | R27: =IF(G29>$O$2,"HC",0) -> 0 | U27: =SUM(K27:K30) -> 19 | V27: =SUM(L27:L30) -> 5 | W27: =SUM(M27:M30) -> 4
B28: Pts Chpt | C28: TC Ban de la Roche | H28: T2 | I28: =IF(OR(P28="Disq",P28="Abd"),P28,(L28*1)+(M28*2)+(N28*3)+(O28*5)+P28) -> 11 | J28: =SUM(K28:O28) -> 12 | K28: 6 | L28: 2 | M28: 3 | N28: 1 | O28: 0
B29: =VLOOKUP(B26,Attribution_des_points,2,FALSE) -> 13 | F29: Heure Arrivée | G29: 15:56:00 | H29: T3 | I29: 9 | J29: =SUM(K29:O29) -> 12 | K29: 8 | L29: 1 | M29: 1 | N29: 2 | O29: 0
F30: Temps de course | G30: =IF(G29=0,0,G29-G27) -> 06:30:00 | H30: T4 | I30: 0 | J30: =SUM(K30:O30) -> 0
B32: place | C32: 154 | D32: SCHMITZ | F32: Moyenne par zone | G32: =IF(SUM(J34:J37)=0,0,(SUM(L34:L37)*1+SUM(M34:M37)*2+SUM(N34:N37)*3+SUM(O34:O37)*5)/SUM(J34:J37)) -> 1.027777778 | H32: TOUR | I32: Total/tr | J32: Nbre Zones | K32: Pénalité Temps | M32: =R34 -> 0 | N32: TOTAL | P32: =IF(OR(P34="Disq",P35="Disq",P36="Disq",P37="Disq",R34="HC"),"Disq",IF(OR(P34="Abd",P35="Abd",P36="Abd",P37="Abd"),"Abd",SUM(I34:I37)+M32)) -> 37 | T32: =P32 -> 37
B33: 5 | C33: NTR 151263 | D33: Jean Paul | K33: Nbr.0 | L33: Nbr.1 | M33: Nbr.2 | N33: Nbr.3 | O33: Nbr.5 | P33: Pén. Jury
C34: Grand Est | F34: Heure Départ | G34: 09:29:00 | H34: T1 | I34: =IF(OR(P34="Disq",P34="Abd"),P34,(L34*1)+(M34*2)+(N34*3)+(O34*5)+P34) -> 11 | J34: =SUM(K34:O34) -> 12 | K34: 4 | L34: 6 | M34: 1 | N34: 1 | O34: 0 | R34: =IF(G36>$O$2,"HC",0) -> 0 | U34: =SUM(K34:K37) -> 16 | V34: =SUM(L34:L37) -> 12 | W34: =SUM(M34:M37) -> 3
B35: Pts Chpt | C35: MC Stanislas | H35: T2 | I35: =IF(OR(P35="Disq",P35="Abd"),P35,(L35*1)+(M35*2)+(N35*3)+(O35*5)+P35) -> 12 | J35: =SUM(K35:O35) -> 12 | K35: 6 | L35: 3 | M35: 2 | N35: 0 | O35: 1
B36: =VLOOKUP(B33,Attribution_des_points,2,FALSE) -> 11 | F36: Heure Arrivée | G36: 16:10:00 | H36: T3 | I36: 14 | J36: =SUM(K36:O36) -> 12 | K36: 6 | L36: 3 | M36: 0 | N36: 2 | O36: 1
F37: Temps de course | G37: =IF(G36=0,0,G36-G34) -> 06:41:00 | H37: T4 | I37: 0 | J37: =SUM(K37:O37) -> 0
B39: place | C39: 155 | D39: FLEURETTE | F39: Moyenne par zone | G39: =IF(SUM(J41:J44)=0,0,(SUM(L41:L44)*1+SUM(M41:M44)*2+SUM(N41:N44)*3+SUM(O41:O44)*5)/SUM(J41:J44)) -> 1.138888889 | H39: TOUR | I39: Total/tr | J39: Nbre Zones | K39: Pénalité Temps | M39: =R41 -> 0 | N39: TOTAL | P39: =IF(OR(P41="Disq",P42="Disq",P43="Disq",P44="Disq",R41="HC"),"Disq",IF(OR(P41="Abd",P42="Abd",P43="Abd",P44="Abd"),"Abd",SUM(I41:I44)+M39)) -> 41 | T39: =P39 -> 41
B40: 6 | C40: NTR 308338 | D40: Mathieu | K40: Nbr.0 | L40: Nbr.1 | M40: Nbr.2 | N40: Nbr.3 | O40: Nbr.5 | P40: Pén. Jury
C41: Grand Est | F41: Heure Départ | G41: 09:27:00 | H41: T1 | I41: =IF(OR(P41="Disq",P41="Abd"),P41,(L41*1)+(M41*2)+(N41*3)+(O41*5)+P41) -> 12 | J41: =SUM(K41:O41) -> 12 | K41: 6 | L41: 2 | M41: 2 | N41: 2 | O41: 0 | R41: =IF(G43>$O$2,"HC",0) -> 0 | U41: =SUM(K41:K44) -> 19 | V41: =SUM(L41:L44) -> 6 | W41: =SUM(M41:M44) -> 2
B42: Pts Chpt | C42: La Bressaude | H42: T2 | I42: =IF(OR(P42="Disq",P42="Abd"),P42,(L42*1)+(M42*2)+(N42*3)+(O42*5)+P42) -> 17 | J42: =SUM(K42:O42) -> 12 | K42: 5 | L42: 3 | M42: 0 | N42: 3 | O42: 1
B43: =VLOOKUP(B40,Attribution_des_points,2,FALSE) -> 10 | F43: Heure Arrivée | G43: 14:36:00 | H43: T3 | I43: 12 | J43: =SUM(K43:O43) -> 12 | K43: 8 | L43: 1 | M43: 0 | N43: 2 | O43: 1
F44: Temps de course | G44: =IF(G43=0,0,G43-G41) -> 05:09:00 | H44: T4 | I44: 0 | J44: =SUM(K44:O44) -> 0
B46: place | C46: 151 | D46: JEUDY | F46: Moyenne par zone | G46: =IF(SUM(J48:J51)=0,0,(SUM(L48:L51)*1+SUM(M48:M51)*2+SUM(N48:N51)*3+SUM(O48:O51)*5)/SUM(J48:J51)) -> 1.194444444 | H46: TOUR | I46: Total/tr | J46: Nbre Zones | K46: Pénalité Temps | M46: =R48 -> 0 | N46: TOTAL | P46: =IF(OR(P48="Disq",P49="Disq",P50="Disq",P51="Disq",R48="HC"),"Disq",IF(OR(P48="Abd",P49="Abd",P50="Abd",P51="Abd"),"Abd",SUM(I48:I51)+M46)) -> 43 | T46: =P46 -> 43
B47: 7 | C47: NTR 331168 | D47: Justin | K47: Nbr.0 | L47: Nbr.1 | M47: Nbr.2 | N47: Nbr.3 | O47: Nbr.5 | P47: Pén. Jury
C48: Grand Est | F48: Heure Départ | G48: 09:11:00 | H48: T1 | I48: =IF(OR(P48="Disq",P48="Abd"),P48,(L48*1)+(M48*2)+(N48*3)+(O48*5)+P48) -> 13 | J48: =SUM(K48:O48) -> 12 | K48: 7 | L48: 1 | M48: 0 | N48: 4 | O48: 0 | R48: =IF(G50>$O$2,"HC",0) -> 0 | U48: =SUM(K48:K51) -> 18 | V48: =SUM(L48:L51) -> 5 | W48: =SUM(M48:M51) -> 1
B49: Pts Chpt | C49: RN 66 | H49: T2 | I49: =IF(OR(P49="Disq",P49="Abd"),P49,(L49*1)+(M49*2)+(N49*3)+(O49*5)+P49) -> 13 | J49: =SUM(K49:O49) -> 12 | K49: 6 | L49: 2 | M49: 1 | N49: 3 | O49: 0
B50: =VLOOKUP(B47,Attribution_des_points,2,FALSE) -> 9 | F50: Heure Arrivée | G50: 16:21:00 | H50: T3 | I50: 17 | J50: =SUM(K50:O50) -> 12 | K50: 5 | L50: 2 | M50: 0 | N50: 5 | O50: 0
F51: Temps de course | G51: =IF(G50=0,0,G50-G48) -> 07:10:00 | H51: T4 | I51: 0 | J51: =SUM(K51:O51) -> 0

Sheet S4+ MAT2
B2: CLASSEMENT | F2: S4+ MAT2 | H2: Heure d'Arrivée Maxi | O2: ='Données Courses'!E6 -> 17:30:00 | S2: =COUNTA(T:T) -> 3
B4: place | C4: 170 | D4: POIRIER | F4: Moyenne par zone | G4: =IF(SUM(J6:J9)=0,0,(SUM(L6:L9)*1+SUM(M6:M9)*2+SUM(N6:N9)*3+SUM(O6:O9)*5)/SUM(J6:J9)) -> 0.3611111111 | H4: TOUR | I4: Total/tr | J4: Nbre Zones | K4: Pénalité Temps | M4: =R6 -> 0 | N4: TOTAL | P4: =IF(OR(P6="Disq",P7="Disq",P8="Disq",P9="Disq",R6="HC"),"Disq",IF(OR(P6="Abd",P7="Abd",P8="Abd",P9="Abd"),"Abd",SUM(I6:I9)+M4)) -> 13 | T4: =P4 -> 13
B5: 1 | C5: MAT2 139683 | D5: Regis | K5: Nbr.0 | L5: Nbr.1 | M5: Nbr.2 | N5: Nbr.3 | O5: Nbr.5 | P5: Pén. Jury
C6: Grand Est | F6: Heure Départ | G6: 09:55:00 | H6: T1 | I6: =IF(OR(P6="Disq",P6="Abd"),P6,(L6*1)+(M6*2)+(N6*3)+(O6*5)+P6) -> 4 | J6: =SUM(K6:O6) -> 12 | K6: 9 | L6: 2 | M6: 1 | N6: 0 | O6: 0 | R6: =IF(G8>$O$2,"HC",0) -> 0 | U6: =SUM(K6:K9) -> 28 | V6: =SUM(L6:L9) -> 6 | W6: =SUM(M6:M9) -> 1
B7: Pts Chpt | C7: ETLB | H7: T2 | I7: =IF(OR(P7="Disq",P7="Abd"),P7,(L7*1)+(M7*2)+(N7*3)+(O7*5)+P7) -> 3 | J7: =SUM(K7:O7) -> 12 | K7: 9 | L7: 3 | M7: 0 | N7: 0 | O7: 0
B8: =VLOOKUP(B5,Attribution_des_points,2,FALSE) -> 20 | F8: Heure Arrivée | G8: 16:52:00 | H8: T3 | I8: 6 | J8: =SUM(K8:O8) -> 12 | K8: 10 | L8: 1 | M8: 0 | N8: 0 | O8: 1
F9: Temps de course | G9: =IF(G8=0,0,G8-G6) -> 06:57:00 | H9: T4 | I9: 0 | J9: =SUM(K9:O9) -> 0
B11: place | C11: 172 | D11: WEBER | F11: Moyenne par zone | G11: =IF(SUM(J13:J16)=0,0,(SUM(L13:L16)*1+SUM(M13:M16)*2+SUM(N13:N16)*3+SUM(O13:O16)*5)/SUM(J13:J16)) -> 0.6388888889 | H11: TOUR | I11: Total/tr | J11: Nbre Zones | K11: Pénalité Temps | M11: =R13 -> 0 | N11: TOTAL | P11: =IF(OR(P13="Disq",P14="Disq",P15="Disq",P16="Disq",R13="HC"),"Disq",IF(OR(P13="Abd",P14="Abd",P15="Abd",P16="Abd"),"Abd",SUM(I13:I16)+M11)) -> 23 | T11: =P11 -> 23
B12: 2 | C12: MAT2 286684 | D12: Christian | K12: Nbr.0 | L12: Nbr.1 | M12: Nbr.2 | N12: Nbr.3 | O12: Nbr.5 | P12: Pén. Jury
C13: Grand Est | F13: Heure Départ | G13: 09:57:00 | H13: T1 | I13: =IF(OR(P13="Disq",P13="Abd"),P13,(L13*1)+(M13*2)+(N13*3)+(O13*5)+P13) -> 10 | J13: =SUM(K13:O13) -> 12 | K13: 8 | L13: 2 | M13: 0 | N13: 1 | O13: 1 | R13: =IF(G15>$O$2,"HC",0) -> 0 | U13: =SUM(K13:K16) -> 25 | V13: =SUM(L13:L16) -> 4 | W13: =SUM(M13:M16) -> 4
B14: Pts Chpt | C14: ETLB | H14: T2 | I14: =IF(OR(P14="Disq",P14="Abd"),P14,(L14*1)+(M14*2)+(N14*3)+(O14*5)+P14) -> 5 | J14: =SUM(K14:O14) -> 12 | K14: 9 | L14: 2 | M14: 0 | N14: 1 | O14: 0
B15: =VLOOKUP(B12,Attribution_des_points,2,FALSE) -> 17 | F15: Heure Arrivée | G15: 16:52:00 | H15: T3 | I15: 8 | J15: =SUM(K15:O15) -> 12 | K15: 8 | L15: 0 | M15: 4 | N15: 0 | O15: 0
F16: Temps de course | G16: =IF(G15=0,0,G15-G13) -> 06:55:00 | H16: T4 | I16: 0 | J16: =SUM(K16:O16) -> 0
B18: place | C18: 171 | D18: DEREMARQUE | F18: Moyenne par zone | G18: =IF(SUM(J20:J23)=0,0,(SUM(L20:L23)*1+SUM(M20:M23)*2+SUM(N20:N23)*3+SUM(O20:O23)*5)/SUM(J20:J23)) -> 0.7777777778 | H18: TOUR | I18: Total/tr | J18: Nbre Zones | K18: Pénalité Temps | M18: =R20 -> 0 | N18: TOTAL | P18: =IF(OR(P20="Disq",P21="Disq",P22="Disq",P23="Disq",R20="HC"),"Disq",IF(OR(P20="Abd",P21="Abd",P22="Abd",P23="Abd"),"Abd",SUM(I20:I23)+M18)) -> 28 | T18: =P18 -> 28
B19: 3 | C19: MAT2 154364 | D19: Jean Paul | K19: Nbr.0 | L19: Nbr.1 | M19: Nbr.2 | N19: Nbr.3 | O19: Nbr.5 | P19: Pén. Jury
C20: Grand Est | F20: Heure Départ | G20: 09:56:00 | H20: T1 | I20: =IF(OR(P20="Disq",P20="Abd"),P20,(L20*1)+(M20*2)+(N20*3)+(O20*5)+P20) -> 14 | J20: =SUM(K20:O20) -> 12 | K20: 6 | L20: 1 | M20: 2 | N20: 3 | O20: 0 | R20: =IF(G22>$O$2,"HC",0) -> 0 | U20: =SUM(K20:K23) -> 21 | V20: =SUM(L20:L23) -> 7 | W20: =SUM(M20:M23) -> 3
B21: Pts Chpt | C21: MC Epernay | H21: T2 | I21: =IF(OR(P21="Disq",P21="Abd"),P21,(L21*1)+(M21*2)+(N21*3)+(O21*5)+P21) -> 6 | J21: =SUM(K21:O21) -> 12 | K21: 8 | L21: 3 | M21: 0 | N21: 1 | O21: 0
B22: =VLOOKUP(B19,Attribution_des_points,2,FALSE) -> 15 | F22: Heure Arrivée | G22: 16:52:00 | H22: T3 | I22: 8 | J22: =SUM(K22:O22) -> 12 | K22: 7 | L22: 3 | M22: 1 | N22: 1 | O22: 0
F23: Temps de course | G23: =IF(G22=0,0,G22-G20) -> 06:56:00 | H23: T4 | I23: 0 | J23: =SUM(K23:O23) -> 0

Sheet S4
B2: CLASSEMENT | F2: S4 | H2: Heure d'Arrivée Maxi | O2: ='Données Courses'!E6 -> 17:30:00 | S2: =COUNTA(T:T) -> 10
B4: place | C4: 182 | D4: MANGIN | F4: Moyenne par zone | G4: =IF(SUM(J6:J9)=0,0,(SUM(L6:L9)*1+SUM(M6:M9)*2+SUM(N6:N9)*3+SUM(O6:O9)*5)/SUM(J6:J9)) -> 0.3333333333 | H4: TOUR | I4: Total/tr | J4: Nbre Zones | K4: Pénalité Temps | M4: =R6 -> 0 | N4: TOTAL | P4: =IF(OR(P6="Disq",P7="Disq",P8="Disq",P9="Disq",R6="HC"),"Disq",IF(OR(P6="Abd",P7="Abd",P8="Abd",P9="Abd"),"Abd",SUM(I6:I9)+M4)) -> 8 | T4: =P4 -> 8
B5: 1 | C5: LJA 382075-564 | D5: David | K5: Nbr.0 | L5: Nbr.1 | M5: Nbr.2 | N5: Nbr.3 | O5: Nbr.5 | P5: Pén. Jury
F6: Heure Départ | G6: 09:28:00 | H6: T1 | I6: =IF(OR(P6="Disq",P6="Abd"),P6,(L6*1)+(M6*2)+(N6*3)+(O6*5)+P6) -> 6 | J6: =SUM(K6:O6) -> 12 | K6: 8 | L6: 2 | M6: 2 | N6: 0 | O6: 0 | R6: =IF(G8>$O$2,"HC",0) -> 0 | U6: =SUM(K6:K9) -> 18 | V6: =SUM(L6:L9) -> 4 | W6: =SUM(M6:M9) -> 2
B7: Pts Chpt | C7: JOURNEE | H7: T2 | I7: =IF(OR(P7="Disq",P7="Abd"),P7,(L7*1)+(M7*2)+(N7*3)+(O7*5)+P7) -> 2 | J7: =SUM(K7:O7) -> 12 | K7: 10 | L7: 2 | M7: 0 | N7: 0 | O7: 0
B8: =VLOOKUP(B5,Attribution_des_points,2,FALSE) -> 20 | F8: Heure Arrivée | G8: 13:58:00 | H8: T3 | I8: 0 | J8: =SUM(K8:O8) -> 0
F9: Temps de course | G9: =IF(G8=0,0,G8-G6) -> 04:30:00 | H9: T4 | I9: 0 | J9: =SUM(K9:O9) -> 0
B11: place | C11: 209 | D11: CAILLEAU | F11: Moyenne par zone | G11: =IF(SUM(J13:J16)=0,0,(SUM(L13:L16)*1+SUM(M13:M16)*2+SUM(N13:N16)*3+SUM(O13:O16)*5)/SUM(J13:J16)) -> 0.6666666667 | H11: TOUR | I11: Total/tr | J11: Nbre Zones | K11: Pénalité Temps | M11: =R13 -> 0 | N11: TOTAL | P11: =IF(OR(P13="Disq",P14="Disq",P15="Disq",P16="Disq",R13="HC"),"Disq",IF(OR(P13="Abd",P14="Abd",P15="Abd",P16="Abd"),"Abd",SUM(I13:I16)+M11)) -> 16 | T11: =P11 -> 16
B12: 2 | C12: LJA 395075-564 | D12: Timothé | K12: Nbr.0 | L12: Nbr.1 | M12: Nbr.2 | N12: Nbr.3 | O12: Nbr.5 | P12: Pén. Jury
F13: Heure Départ | G13: 09:21:00 | H13: T1 | I13: =IF(OR(P13="Disq",P13="Abd"),P13,(L13*1)+(M13*2)+(N13*3)+(O13*5)+P13) -> 11 | J13: =SUM(K13:O13) -> 12 | K13: 8 | L13: 1 | M13: 1 | N13: 1 | O13: 1 | R13: =IF(G15>$O$2,"HC",0) -> 0 | U13: =SUM(K13:K16) -> 17 | V13: =SUM(L13:L16) -> 3 | W13: =SUM(M13:M16) -> 1
B14: Pts Chpt | C14: JOURNEE | H14: T2 | I14: =IF(OR(P14="Disq",P14="Abd"),P14,(L14*1)+(M14*2)+(N14*3)+(O14*5)+P14) -> 5 | J14: =SUM(K14:O14) -> 12 | K14: 9 | L14: 2 | M14: 0 | N14: 1 | O14: 0
B15: =VLOOKUP(B12,Attribution_des_points,2,FALSE) -> 17 | F15: Heure Arrivée | G15: 16:16:00 | H15: T3 | I15: 0 | J15: =SUM(K15:O15) -> 0
F16: Temps de course | G16: =IF(G15=0,0,G15-G13) -> 06:55:00 | H16: T4 | I16: 0 | J16: =SUM(K16:O16) -> 0
B18: place | C18: 183 | D18: NADOT | F18: Moyenne par zone | G18: =IF(SUM(J20:J23)=0,0,(SUM(L20:L23)*1+SUM(M20:M23)*2+SUM(N20:N23)*3+SUM(O20:O23)*5)/SUM(J20:J23)) -> 0.7916666667 | H18: TOUR | I18: Total/tr | J18: Nbre Zones | K18: Pénalité Temps | M18: =R20 -> 0 | N18: TOTAL | P18: =IF(OR(P20="Disq",P21="Disq",P22="Disq",P23="Disq",R20="HC"),"Disq",IF(OR(P20="Abd",P21="Abd",P22="Abd",P23="Abd"),"Abd",SUM(I20:I23)+M18)) -> 19 | T18: =P18 -> 19
B19: 3 | C19: NTR 339275 | D19: Camille | K19: Nbr.0 | L19: Nbr.1 | M19: Nbr.2 | N19: Nbr.3 | O19: Nbr.5 | P19: Pén. Jury
C20: Grand Est | F20: Heure Départ | G20: 09:33:00 | H20: T1 | I20: =IF(OR(P20="Disq",P20="Abd"),P20,(L20*1)+(M20*2)+(N20*3)+(O20*5)+P20) -> 14 | J20: =SUM(K20:O20) -> 12 | K20: 5 | L20: 4 | M20: 1 | N20: 1 | O20: 1 | R20: =IF(G22>$O$2,"HC",0) -> 0 | U20: =SUM(K20:K23) -> 13 | V20: =SUM(L20:L23) -> 7 | W20: =SUM(M20:M23) -> 2
B21: Pts Chpt | C21: MC Stanislas | H21: T2 | I21: =IF(OR(P21="Disq",P21="Abd"),P21,(L21*1)+(M21*2)+(N21*3)+(O21*5)+P21) -> 5 | J21: =SUM(K21:O21) -> 12 | K21: 8 | L21: 3 | M21: 1 | N21: 0 | O21: 0
B22: =VLOOKUP(B19,Attribution_des_points,2,FALSE) -> 15 | F22: Heure Arrivée | G22: 14:08:00 | H22: T3 | I22: 0 | J22: =SUM(K22:O22) -> 0
F23: Temps de course | G23: =IF(G22=0,0,G22-G20) -> 04:35:00 | H23: T4 | I23: 0 | J23: =SUM(K23:O23) -> 0
B25: place | C25: 181 | D25: PIERREL | F25: Moyenne par zone | G25: =IF(SUM(J27:J30)=0,0,(SUM(L27:L30)*1+SUM(M27:M30)*2+SUM(N27:N30)*3+SUM(O27:O30)*5)/SUM(J27:J30)) -> 0.9166666667 | H25: TOUR | I25: Total/tr | J25: Nbre Zones | K25: Pénalité Temps | M25: =R27 -> 0 | N25: TOTAL | P25: =IF(OR(P27="Disq",P28="Disq",P29="Disq",P30="Disq",R27="HC"),"Disq",IF(OR(P27="Abd",P28="Abd",P29="Abd",P30="Abd"),"Abd",SUM(I27:I30)+M25)) -> 22 | T25: =P25 -> 22
B26: 4 | C26: NCO 331170 | D26: Charlotte | K26: Nbr.0 | L26: Nbr.1 | M26: Nbr.2 | N26: Nbr.3 | O26: Nbr.5 | P26: Pén. Jury
C27: Grand Est | F27: Heure Départ | G27: 09:09:00 | H27: T1 | I27: =IF(OR(P27="Disq",P27="Abd"),P27,(L27*1)+(M27*2)+(N27*3)+(O27*5)+P27) -> 9 | J27: =SUM(K27:O27) -> 12 | K27: 5 | L27: 5 | M27: 2 | N27: 0 | O27: 0 | R27: =IF(G29>$O$2,"HC",0) -> 0 | U27: =SUM(K27:K30) -> 10 | V27: =SUM(L27:L30) -> 10 | W27: =SUM(M27:M30) -> 2
B28: Pts Chpt | C28: La Bressaude | H28: T2 | I28: =IF(OR(P28="Disq",P28="Abd"),P28,(L28*1)+(M28*2)+(N28*3)+(O28*5)+P28) -> 13 | J28: =SUM(K28:O28) -> 12 | K28: 5 | L28: 5 | M28: 0 | N28: 1 | O28: 1
B29: =VLOOKUP(B26,Attribution_des_points,2,FALSE) -> 13 | F29: Heure Arrivée | G29: 00:00:00 | H29: T3 | I29: 0 | J29: =SUM(K29:O29) -> 0
F30: Temps de course | G30: =IF(G29=0,0,G29-G27) -> 00:00:00 | H30: T4 | I30: 0 | J30: =SUM(K30:O30) -> 0
B32: place | C32: 187 | D32: CROUVIZIER | F32: Moyenne par zone | G32: =IF(SUM(J34:J37)=0,0,(SUM(L34:L37)*1+SUM(M34:M37)*2+SUM(N34:N37)*3+SUM(O34:O37)*5)/SUM(J34:J37)) -> 2 | H32: TOUR | I32: Total/tr | J32: Nbre Zones | K32: Pénalité Temps | M32: =R34 -> 0 | N32: TOTAL | P32: =IF(OR(P34="Disq",P35="Disq",P36="Disq",P37="Disq",R34="HC"),"Disq",IF(OR(P34="Abd",P35="Abd",P36="Abd",P37="Abd"),"Abd",SUM(I34:I37)+M32)) -> 48 | T32: =P32 -> 48
B33: 5 | C33: NTR 295688 | D33: Morgane | K33: Nbr.0 | L33: Nbr.1 | M33: Nbr.2 | N33: Nbr.3 | O33: Nbr.5 | P33: Pén. Jury
C34: Grand Est | F34: Heure Départ | G34: 09:35:00 | H34: T1 | I34: =IF(OR(P34="Disq",P34="Abd"),P34,(L34*1)+(M34*2)+(N34*3)+(O34*5)+P34) -> 30 | J34: =SUM(K34:O34) -> 12 | K34: 1 | L34: 2 | M34: 3 | N34: 4 | O34: 2 | R34: =IF(G36>$O$2,"HC",0) -> 0 | U34: =SUM(K34:K37) -> 7 | V34: =SUM(L34:L37) -> 2 | W34: =SUM(M34:M37) -> 5
B35: Pts Chpt | C35: ETLB | H35: T2 | I35: =IF(OR(P35="Disq",P35="Abd"),P35,(L35*1)+(M35*2)+(N35*3)+(O35*5)+P35) -> 18 | J35: =SUM(K35:O35) -> 12 | K35: 6 | L35: 0 | M35: 2 | N35: 3 | O35: 1
B36: =VLOOKUP(B33,Attribution_des_points,2,FALSE) -> 11 | F36: Heure Arrivée | G36: 15:39:00 | H36: T3 | I36: 0 | J36: =SUM(K36:O36) -> 0
F37: Temps de course | G37: =IF(G36=0,0,G36-G34) -> 06:04:00 | H37: T4 | I37: 0 | J37: =SUM(K37:O37) -> 0
B39: place | C39: 185 | D39: CLAUDE | F39: Moyenne par zone | G39: =IF(SUM(J41:J44)=0,0,(SUM(L41:L44)*1+SUM(M41:M44)*2+SUM(N41:N44)*3+SUM(O41:O44)*5)/SUM(J41:J44)) -> 2.291666667 | H39: TOUR | I39: Total/tr | J39: Nbre Zones | K39: Pénalité Temps | M39: =R41 -> 0 | N39: TOTAL | P39: =IF(OR(P41="Disq",P42="Disq",P43="Disq",P44="Disq",R41="HC"),"Disq",IF(OR(P41="Abd",P42="Abd",P43="Abd",P44="Abd"),"Abd",SUM(I41:I44)+M39)) -> 55 | T39: =P39 -> 55
B40: 6 | C40: NJ3C 364632 | D40: Zoe | K40: Nbr.0 | L40: Nbr.1 | M40: Nbr.2 | N40: Nbr.3 | O40: Nbr.5 | P40: Pén. Jury
C41: Grand Est | F41: Heure Départ | G41: 10:09:00 | H41: T1 | I41: =IF(OR(P41="Disq",P41="Abd"),P41,(L41*1)+(M41*2)+(N41*3)+(O41*5)+P41) -> 31 | J41: =SUM(K41:O41) -> 12 | K41: 1 | L41: 2 | M41: 0 | N41: 8 | O41: 1 | R41: =IF(G43>$O$2,"HC",0) -> 0 | U41: =SUM(K41:K44) -> 2 | V41: =SUM(L41:L44) -> 5 | W41: =SUM(M41:M44) -> 3
B42: Pts Chpt | C42: AMVHV | H42: T2 | I42: =IF(OR(P42="Disq",P42="Abd"),P42,(L42*1)+(M42*2)+(N42*3)+(O42*5)+P42) -> 24 | J42: =SUM(K42:O42) -> 12 | K42: 1 | L42: 3 | M42: 3 | N42: 5 | O42: 0
B43: =VLOOKUP(B40,Attribution_des_points,2,FALSE) -> 10 | F43: Heure Arrivée | G43: 15:53:00 | H43: T3 | I43: 0 | J43: =SUM(K43:O43) -> 0
F44: Temps de course | G44: =IF(G43=0,0,G43-G41) -> 05:44:00 | H44: T4 | I44: 0 | J44: =SUM(K44:O44) -> 0
B46: place | C46: 184 | D46: RIVET | F46: Moyenne par zone | G46: =IF(SUM(J48:J51)=0,0,(SUM(L48:L51)*1+SUM(M48:M51)*2+SUM(N48:N51)*3+SUM(O48:O51)*5)/SUM(J48:J51)) -> 2.583333333 | H46: TOUR | I46: Total/tr | J46: Nbre Zones | K46: Pénalité Temps | M46: =R48 -> 0 | N46: TOTAL | P46: =IF(OR(P48="Disq",P49="Disq",P50="Disq",P51="Disq",R48="HC"),"Disq",IF(OR(P48="Abd",P49="Abd",P50="Abd",P51="Abd"),"Abd",SUM(I48:I51)+M46)) -> 62 | T46: =P46 -> 62
B47: 7 | C47: NTR 50899 | D47: Jean Christophe | K47: Nbr.0 | L47: Nbr.1 | M47: Nbr.2 | N47: Nbr.3 | O47: Nbr.5 | P47: Pén. Jury
C48: Grand Est | F48: Heure Départ | G48: 10:08:00 | H48: T1 | I48: =IF(OR(P48="Disq",P48="Abd"),P48,(L48*1)+(M48*2)+(N48*3)+(O48*5)+P48) -> 30 | J48: =SUM(K48:O48) -> 12 | K48: 2 | L48: 1 | M48: 0 | N48: 8 | O48: 1 | R48: =IF(G50>$O$2,"HC",0) -> 0 | U48: =SUM(K48:K51) -> 4 | V48: =SUM(L48:L51) -> 2 | W48: =SUM(M48:M51) -> 0
B49: Pts Chpt | C49: AMVHV | H49: T2 | I49: =IF(OR(P49="Disq",P49="Abd"),P49,(L49*1)+(M49*2)+(N49*3)+(O49*5)+P49) -> 32 | J49: =SUM(K49:O49) -> 12 | K49: 2 | L49: 1 | M49: 0 | N49: 7 | O49: 2
B50: =VLOOKUP(B47,Attribution_des_points,2,FALSE) -> 9 | F50: Heure Arrivée | G50: 00:00:00 | H50: T3 | I50: 0 | J50: =SUM(K50:O50) -> 0
F51: Temps de course | G51: =IF(G50=0,0,G50-G48) -> 00:00:00 | H51: T4 | I51: 0 | J51: =SUM(K51:O51) -> 0
B53: place | C53: 208 | D53: CAILLEAU | F53: Moyenne par zone | G53: =IF(SUM(J55:J58)=0,0,(SUM(L55:L58)*1+SUM(M55:M58)*2+SUM(N55:N58)*3+SUM(O55:O58)*5)/SUM(J55:J58)) -> 3.416666667 | H53: TOUR | I53: Total/tr | J53: Nbre Zones | K53: Pénalité Temps | M53: =R55 -> 0 | N53: TOTAL | P53: =IF(OR(P55="Disq",P56="Disq",P57="Disq",P58="Disq",R55="HC"),"Disq",IF(OR(P55="Abd",P56="Abd",P57="Abd",P58="Abd"),"Abd",SUM(I55:I58)+M53)) -> 82 | T53: =P53 -> 82
B54: 8 | C54: LJA 395153-564 | D54: Tom | K54: Nbr.0 | L54: Nbr.1 | M54: Nbr.2 | N54: Nbr.3 | O54: Nbr.5 | P54: Pén. Jury
F55: Heure Départ | G55: 09:20:00 | H55: T1 | I55: =IF(OR(P55="Disq",P55="Abd"),P55,(L55*1)+(M55*2)+(N55*3)+(O55*5)+P55) -> 45 | J55: =SUM(K55:O55) -> 12 | K55: 1 | L55: 0 | M55: 0 | N55: 5 | O55: 6 | R55: =IF(G57>$O$2,"HC",0) -> 0 | U55: =SUM(K55:K58) -> 3 | V55: =SUM(L55:L58) -> 0 | W55: =SUM(M55:M58) -> 1
B56: Pts Chpt | C56: JOURNEE | H56: T2 | I56: =IF(OR(P56="Disq",P56="Abd"),P56,(L56*1)+(M56*2)+(N56*3)+(O56*5)+P56) -> 37 | J56: =SUM(K56:O56) -> 12 | K56: 2 | L56: 0 | M56: 1 | N56: 5 | O56: 4
B57: =VLOOKUP(B54,Attribution_des_points,2,FALSE) -> 8 | F57: Heure Arrivée | G57: 16:13:00 | H57: T3 | I57: 0 | J57: =SUM(K57:O57) -> 0
F58: Temps de course | G58: =IF(G57=0,0,G57-G55) -> 06:53:00 | H58: T4 | I58: 0 | J58: =SUM(K58:O58) -> 0
B60: place | C60: 206 | D60: KARST | F60: Moyenne par zone | G60: =IF(SUM(J62:J65)=0,0,(SUM(L62:L65)*1+SUM(M62:M65)*2+SUM(N62:N65)*3+SUM(O62:O65)*5)/SUM(J62:J65)) -> 4.416666667 | H60: TOUR | I60: Total/tr | J60: Nbre Zones | K60: Pénalité Temps | M60: =R62 -> 0 | N60: TOTAL | P60: =IF(OR(P62="Disq",P63="Disq",P64="Disq",P65="Disq",R62="HC"),"Disq",IF(OR(P62="Abd",P63="Abd",P64="Abd",P65="Abd"),"Abd",SUM(I62:I65)+M60)) -> Abd | T60: =P60 -> Abd
B61: Abd | C61: NJ3C 403074 | D61: Nolan | K61: Nbr.0 | L61: Nbr.1 | M61: Nbr.2 | N61: Nbr.3 | O61: Nbr.5 | P61: Pén. Jury
C62: Grand Est | F62: Heure Départ | G62: 09:13:00 | H62: T1 | I62: =IF(OR(P62="Disq",P62="Abd"),P62,(L62*1)+(M62*2)+(N62*3)+(O62*5)+P62) -> abd | J62: =SUM(K62:O62) -> 12 | K62: 0 | L62: 0 | M62: 1 | N62: 2 | O62: 9 | P62: abd | R62: =IF(G64>$O$2,"HC",0) -> 0 | U62: =SUM(K62:K65) -> 0 | V62: =SUM(L62:L65) -> 0 | W62: =SUM(M62:M65) -> 1
B63: Pts Chpt | C63: MC Gazelec | H63: T2 | I63: =IF(OR(P63="Disq",P63="Abd"),P63,(L63*1)+(M63*2)+(N63*3)+(O63*5)+P63) -> 0 | J63: =SUM(K63:O63) -> 0
B64: =VLOOKUP(B61,Attribution_des_points,2,FALSE) -> NC | F64: Heure Arrivée | G64: 00:00:00 | H64: T3 | I64: 0 | J64: =SUM(K64:O64) -> 0
F65: Temps de course | G65: =IF(G64=0,0,G64-G62) -> 00:00:00 | H65: T4 | I65: 0 | J65: =SUM(K65:O65) -> 0
B67: place | C67: 207 | D67: KARST | F67: Moyenne par zone | G67: =IF(SUM(J69:J72)=0,0,(SUM(L69:L72)*1+SUM(M69:M72)*2+SUM(N69:N72)*3+SUM(O69:O72)*5)/SUM(J69:J72)) -> 3.5 | H67: TOUR | I67: Total/tr | J67: Nbre Zones | K67: Pénalité Temps | M67: =R69 -> 0 | N67: TOTAL | P67: =IF(OR(P69="Disq",P70="Disq",P71="Disq",P72="Disq",R69="HC"),"Disq",IF(OR(P69="Abd",P70="Abd",P71="Abd",P72="Abd"),"Abd",SUM(I69:I72)+M67)) -> Abd | T67: =P67 -> Abd
B68: Abd | C68: NJ3 403068 | D68: Leny | K68: Nbr.0 | L68: Nbr.1 | M68: Nbr.2 | N68: Nbr.3 | O68: Nbr.5 | P68: Pén. Jury
C69: Grand Est | F69: Heure Départ | G69: 09:12:00 | H69: T1 | I69: =IF(OR(P69="Disq",P69="Abd"),P69,(L69*1)+(M69*2)+(N69*3)+(O69*5)+P69) -> abd | J69: =SUM(K69:O69) -> 12 | K69: 0 | L69: 1 | M69: 0 | N69: 7 | O69: 4 | P69: abd | R69: =IF(G71>$O$2,"HC",0) -> 0 | U69: =SUM(K69:K72) -> 0 | V69: =SUM(L69:L72) -> 1 | W69: =SUM(M69:M72) -> 0
B70: Pts Chpt | C70: MC Gazelec | H70: T2 | I70: =IF(OR(P70="Disq",P70="Abd"),P70,(L70*1)+(M70*2)+(N70*3)+(O70*5)+P70) -> 0 | J70: =SUM(K70:O70) -> 0
B71: =VLOOKUP(B68,Attribution_des_points,2,FALSE) -> NC | F71: Heure Arrivée | G71: 00:00:00 | H71: T3 | I71: 0 | J71: =SUM(K71:O71) -> 0
F72: Temps de course | G72: =IF(G71=0,0,G71-G69) -> 00:00:00 | H72: T4 | I72: 0 | J72: =SUM(K72:O72) -> 0

Sheet S4 MAT2
B2: CLASSEMENT | F2: S4 MAT2 | H2: Heure d'Arrivée Maxi | O2: ='Données Courses'!E6 -> 17:30:00 | S2: =COUNTA(T:T) -> 3
B4: place | C4: 200 | D4: THOMAS | F4: Moyenne par zone | G4: =IF(SUM(J6:J9)=0,0,(SUM(L6:L9)*1+SUM(M6:M9)*2+SUM(N6:N9)*3+SUM(O6:O9)*5)/SUM(J6:J9)) -> 0.7916666667 | H4: TOUR | I4: Total/tr | J4: Nbre Zones | K4: Pénalité Temps | M4: =R6 -> 0 | N4: TOTAL | P4: =IF(OR(P6="Disq",P7="Disq",P8="Disq",P9="Disq",R6="HC"),"Disq",IF(OR(P6="Abd",P7="Abd",P8="Abd",P9="Abd"),"Abd",SUM(I6:I9)+M4)) -> 19 | T4: =P4 -> 19
B5: 1 | C5: NTR 023004 | D5: Dominique | K5: Nbr.0 | L5: Nbr.1 | M5: Nbr.2 | N5: Nbr.3 | O5: Nbr.5 | P5: Pén. Jury
C6: Grand Est | F6: Heure Départ | G6: 09:39:00 | H6: T1 | I6: =IF(OR(P6="Disq",P6="Abd"),P6,(L6*1)+(M6*2)+(N6*3)+(O6*5)+P6) -> 10 | J6: =SUM(K6:O6) -> 12 | K6: 5 | L6: 5 | M6: 1 | N6: 1 | O6: 0 | R6: =IF(G8>$O$2,"HC",0) -> 0 | U6: =SUM(K6:K9) -> 14 | V6: =SUM(L6:L9) -> 5 | W6: =SUM(M6:M9) -> 3
B7: Pts Chpt | C7: MC Stanislas | H7: T2 | I7: =IF(OR(P7="Disq",P7="Abd"),P7,(L7*1)+(M7*2)+(N7*3)+(O7*5)+P7) -> 9 | J7: =SUM(K7:O7) -> 12 | K7: 9 | L7: 0 | M7: 2 | N7: 0 | O7: 1
B8: =VLOOKUP(B5,Attribution_des_points,2,FALSE) -> 20 | F8: Heure Arrivée | G8: 14:34:00 | H8: T3 | I8: 0 | J8: =SUM(K8:O8) -> 0
F9: Temps de course | G9: =IF(G8=0,0,G8-G6) -> 04:55:00 | H9: T4 | I9: 0 | J9: =SUM(K9:O9) -> 0
B11: place | C11: 201 | D11: THOMAS | F11: Moyenne par zone | G11: =IF(SUM(J13:J16)=0,0,(SUM(L13:L16)*1+SUM(M13:M16)*2+SUM(N13:N16)*3+SUM(O13:O16)*5)/SUM(J13:J16)) -> 0.9166666667 | H11: TOUR | I11: Total/tr | J11: Nbre Zones | K11: Pénalité Temps | M11: =R13 -> 0 | N11: TOTAL | P11: =IF(OR(P13="Disq",P14="Disq",P15="Disq",P16="Disq",R13="HC"),"Disq",IF(OR(P13="Abd",P14="Abd",P15="Abd",P16="Abd"),"Abd",SUM(I13:I16)+M11)) -> 22 | T11: =P11 -> 22
B12: 2 | C12: NTR 023012 | D12: Nicolas | K12: Nbr.0 | L12: Nbr.1 | M12: Nbr.2 | N12: Nbr.3 | O12: Nbr.5 | P12: Pén. Jury
C13: Grand Est | F13: Heure Départ | G13: 09:40:00 | H13: T1 | I13: =IF(OR(P13="Disq",P13="Abd"),P13,(L13*1)+(M13*2)+(N13*3)+(O13*5)+P13) -> 11 | J13: =SUM(K13:O13) -> 12 | K13: 6 | L13: 4 | M13: 1 | N13: 0 | O13: 1 | R13: =IF(G15>$O$2,"HC",0) -> 0 | U13: =SUM(K13:K16) -> 12 | V13: =SUM(L13:L16) -> 7 | W13: =SUM(M13:M16) -> 2
B14: Pts Chpt | C14: MC Stanislas | H14: T2 | I14: =IF(OR(P14="Disq",P14="Abd"),P14,(L14*1)+(M14*2)+(N14*3)+(O14*5)+P14) -> 11 | J14: =SUM(K14:O14) -> 12 | K14: 6 | L14: 3 | M14: 1 | N14: 2 | O14: 0
B15: =VLOOKUP(B12,Attribution_des_points,2,FALSE) -> 17 | F15: Heure Arrivée | G15: 14:33:00 | H15: T3 | I15: 0 | J15: =SUM(K15:O15) -> 0
F16: Temps de course | G16: =IF(G15=0,0,G15-G13) -> 04:53:00 | H16: T4 | I16: 0 | J16: =SUM(K16:O16) -> 0
B18: place | C18: 202 | D18: FILLER | F18: Moyenne par zone | G18: =IF(SUM(J20:J23)=0,0,(SUM(L20:L23)*1+SUM(M20:M23)*2+SUM(N20:N23)*3+SUM(O20:O23)*5)/SUM(J20:J23)) -> 1.125 | H18: TOUR | I18: Total/tr | J18: Nbre Zones | K18: Pénalité Temps | M18: =R20 -> 0 | N18: TOTAL | P18: =IF(OR(P20="Disq",P21="Disq",P22="Disq",P23="Disq",R20="HC"),"Disq",IF(OR(P20="Abd",P21="Abd",P22="Abd",P23="Abd"),"Abd",SUM(I20:I23)+M18)) -> 27 | T18: =P18 -> 27
B19: 3 | C19: MAT2 010275 | D19: Jean Marc | K19: Nbr.0 | L19: Nbr.1 | M19: Nbr.2 | N19: Nbr.3 | O19: Nbr.5 | P19: Pén. Jury
C20: Grand Est | F20: Heure Départ | G20: 10:11:00 | H20: T1 | I20: =IF(OR(P20="Disq",P20="Abd"),P20,(L20*1)+(M20*2)+(N20*3)+(O20*5)+P20) -> 10 | J20: =SUM(K20:O20) -> 12 | K20: 7 | L20: 2 | M20: 1 | N20: 2 | R20: =IF(G22>$O$2,"HC",0) -> 0 | U20: =SUM(K20:K23) -> 11 | V20: =SUM(L20:L23) -> 5 | W20: =SUM(M20:M23) -> 4
B21: Pts Chpt | C21: TC Ban de la Roche | H21: T2 | I21: =IF(OR(P21="Disq",P21="Abd"),P21,(L21*1)+(M21*2)+(N21*3)+(O21*5)+P21) -> 17 | J21: =SUM(K21:O21) -> 12 | K21: 4 | L21: 3 | M21: 3 | N21: 1 | O21: 1
B22: =VLOOKUP(B19,Attribution_des_points,2,FALSE) -> 15 | F22: Heure Arrivée | G22: 15:42:00 | H22: T3 | I22: 0 | J22: =SUM(K22:O22) -> 0
F23: Temps de course | G23: =IF(G22=0,0,G22-G20) -> 05:31:00 | H23: T4 | I23: 0 | J23: =SUM(K23:O23) -> 0
